Workbook

Sheet Zusammenzug pro Versicherer
B1: aa | C1: a | D1: b | E1: c | F1: d | G1: e | H1: ea | I1: f | J1: g | K1: h | L1: i | M1: j | N1: k | O1: l | P1: m | Q1: mo | R1: n | S1: o | T1: p | U1: q | V1: r | W1: s | X1: t | Y1: u | Z1: v | AA1: w | AB1: x | AC1: y | AD1: z | AE1: aa | AF1: ab | AG1: ac | AH1: ad | AI1: ae | AJ1: af | AK1: ag | AL1: ah | AM1: ai | AN1: aj | AO1: ak | AP1: al | AQ1: am | AR1: an | AS1: ao | AT1: ap | AU1: aq | AV1: ar | AW1: as | AX1: at | AY1: au | AZ1: av | BA1: aw | BB1: ax | BC1: ay | BD1: az | BE1: ba | BF1: bb | BG1: bc | BH1: bd | BI1: be | BJ1: bf | BK1: bg | BL1: bh | BM1: bi | BN1: bj
A2: 2 | D2: =VLOOKUP( $A2 & D$1, TextDF, Sprachwahlcode + 1, FALSE ) -> Comptabilité de la prévoyance professionnelle 2016
A3: 3 | D3: =VLOOKUP( $A3 & D$1, TextDF, Sprachwahlcode + 1, FALSE ) -> Schéma de publication aux institutions de prévoyance assurées
A4: 5 | D4: =VLOOKUP( $A4 & D$1, TextDF, Sprachwahlcode + 1, FALSE ) -> AGGREGATION par assureur-vie | H4: 0 | I4: 0 | J4: 0 | K4: 0 | L4: 0
A5: 6 | D5: =VLOOKUP( $A5 & D$1, TextDF, Sprachwahlcode + 1, FALSE ) -> exerçant l'assurance collective de la prévoyance professionnelle | H5: 0 | I5: 0 | J5: 0 | K5: 0 | L5: 1
M6: 1
A7: 8 | B7: zzz | E7: 2 | F7: <<< SPRACHWAHL DEUTSCH / CHOIX FRANCAIS >>> | H7: =VLOOKUP( $A7 & H$1, TextDF, Sprachwahlcode + 1, FALSE ) -> Aggrégation année d'exercice | Q7: =VLOOKUP( $A7 & R$1, TextDF, Sprachwahlcode + 1, FALSE ) -> Aggrégation exercice précédent | V7: Swiss Life | AA7: Axa | AB7: AXA | AF7: Basler | AG7: Basler | AK7: Helvetia | AL7: Helvetia | AP7: Allianz Suisse | AQ7: Allianz Suisse | AU7: Pax | AV7: Pax | AZ7: Zürich | BA7: Zuerich | BE7: Mobiliar | BF7: Mobiliar | BJ7: Generali | BK7: Generali
A9: 10 | D9: =VLOOKUP( $A9 & D$1, TextDF, Sprachwahlcode + 1, FALSE ) -> Données en 1000 francs, selon comptabilité statutaire | H9: =VLOOKUP( $A9 & H$1, TextDF, Sprachwahlcode + 1, FALSE ) -> Colonne 0 | I9: =VLOOKUP( $A9 & I$1, TextDF, Sprachwahlcode + 1, FALSE ) -> Colonne 1 | J9: =VLOOKUP( $A9 & J$1, TextDF, Sprachwahlcode + 1, FALSE ) -> Colonne 2 | K9: =VLOOKUP( $A9 & K$1, TextDF, Sprachwahlcode + 1, FALSE ) -> Colonne 3 | L9: =VLOOKUP( $A9 & L$1, TextDF, Sprachwahlcode + 1, FALSE ) -> Colonne 4 | Q9: =VLOOKUP( $A9 & Q$1, TextDF, Sprachwahlcode + 1, FALSE ) -> Colonne 0 | R9: =VLOOKUP( $A9 & R$1, TextDF, Sprachwahlcode + 1, FALSE ) -> Colonne 1 | S9: =VLOOKUP( $A9 & S$1, TextDF, Sprachwahlcode + 1, FALSE ) -> Colonne 2 | T9: =VLOOKUP( $A9 & T$1, TextDF, Sprachwahlcode + 1, FALSE ) -> Colonne 3 | U9: =VLOOKUP( $A9 & U$1, TextDF, Sprachwahlcode + 1, FALSE ) -> Colonne 4 | V9: =$H9 -> Colonne 0 | W9: =$I9 -> Colonne 1 | X9: =$J9 -> Colonne 2 | Y9: =$K9 -> Colonne 3 | Z9: =$L9 -> Colonne 4 | AA9: =$H9 -> Colonne 0 | AB9: =$I9 -> Colonne 1 | AC9: =$J9 -> Colonne 2 | AD9: =$K9 -> Colonne 3 | AE9: =$L9 -> Colonne 4 | AF9: =$H9 -> Colonne 0 | AG9: =$I9 -> Colonne 1 | AH9: =$J9 -> Colonne 2 | AI9: =$K9 -> Colonne 3 | AJ9: =$L9 -> Colonne 4 | AK9: =$H9 -> Colonne 0 | AL9: =$I9 -> Colonne 1 | AM9: =$J9 -> Colonne 2 | AN9: =$K9 -> Colonne 3 | AO9: =$L9 -> Colonne 4 | AP9: =$H9 -> Colonne 0 | AQ9: =$I9 -> Colonne 1 | AR9: =$J9 -> Colonne 2 | AS9: =$K9 -> Colonne 3 | AT9: =$L9 -> Colonne 4 | AU9: =$H9 -> Colonne 0 | AV9: =$I9 -> Colonne 1 | AW9: =$J9 -> Colonne 2 | AX9: =$K9 -> Colonne 3 | AY9: =$L9 -> Colonne 4 | AZ9: =$H9 -> Colonne 0 | BA9: =$I9 -> Colonne 1 | BB9: =$J9 -> Colonne 2 | BC9: =$K9 -> Colonne 3 | BD9: =$L9 -> Colonne 4 | BE9: =$H9 -> Colonne 0 | BF9: =$I9 -> Colonne 1 | BG9: =$J9 -> Colonne 2 | BH9: =$K9 -> Colonne 3 | BI9: =$L9 -> Colonne 4 | BJ9: =$H9 -> Colonne 0 | BK9: =$I9 -> Colonne 1 | BL9: =$J9 -> Colonne 2 | BM9: =$K9 -> Colonne 3 | BN9: =$L9 -> Colonne 4
A12: 12 | D12: =VLOOKUP( $A12 & D$1, TextDF, Sprachwahlcode + 1, FALSE ) -> I. Compte de résultat | L12: =VLOOKUP( $A12 & L$1, TextDF, Sprachwahlcode + 1, FALSE ) -> Ventilation de la | U12: =VLOOKUP( $A12 & U$1, TextDF, Sprachwahlcode + 1, FALSE ) -> Vent. prime d'ép. | Z12: =$U12 -> Vent. prime d'ép. | AE12: =$U12 -> Vent. prime d'ép. | AJ12: =$U12 -> Vent. prime d'ép. | AO12: =$U12 -> Vent. prime d'ép. | AT12: =$U12 -> Vent. prime d'ép. | AY12: =$U12 -> Vent. prime d'ép. | BD12: =$U12 -> Vent. prime d'ép. | BI12: =$U12 -> Vent. prime d'ép. | BJ12: =VLOOKUP( $A12 & BJ$1, TextDF, Sprachwahlcode + 1, FALSE ) -> Generali Assurances Personnes n'exercerce plus d'affaires actives avec des fondations collectives dès 2001 et se trouve pour cette branche au run off. | BN12: =$U12 -> Vent. prime d'ép.
A13: 13 | B13: 395z_14 | C13: 395z | D13: =VLOOKUP( $A13 & D$1, TextDF, Sprachwahlcode + 1, FALSE ) -> Produit | G13: =VLOOKUP( $A13 & G$1, TextDF, Sprachwahlcode + 1, FALSE ) -> Col. 4: Contributions aux avoirs de vieillesse | L13: =MAX($H$4,$L$5) * Z13 + MAX($I$4,$L$5) * AE13 + MAX($J$4,$L$5) * AJ13 + MAX($K$4,$L$5) * AO13 + MAX($L$4,$L$5) * AT13 + MAX($I$5,$L$5) * BD13 + MAX($H$5,$L$5) * AY13 + MAX($J$5,$L$5) * BI13 + MAX($K$5,$L$5) * BN13 -> 7482747.304 | M13: =VLOOKUP( $A13 & M$1, TextDF, Sprachwahlcode + 1, FALSE ) -> Contributions aux avoirs de vieillesse | O13: =IF($K$17<>0,$L$13/$K$17,0) -> 0.3213923048 | U13: 7433854.421 | Z13: 2404437.965 | AE13: 2480716 | AJ13: 881943.1916 | AO13: 819167.7656 | AT13: 591376.644 | AY13: 191387.2307 | BD13: 113646.8929 | BI13: 0 | BN13: 71.61374561
A14: 14 | B14: 395zg_15 | C14: 395zg | E14: =VLOOKUP( $A14 & E$1, TextDF, Sprachwahlcode + 1, FALSE ) -> Primes | G14: Col. 4: Avoirs de vieillesse repris individuellement a) | L14: 8741641.369 | M14: Avoirs de vieillesse repris individuellement | O14: =IF($K$17<>0,$L$14/$K$17,0) -> 0.3754632026 | U14: 8350978.251 | Z14: 3018352.783 | AE14: 2888113 | AJ14: 1011357.632 | AO14: 1039048.807 | AT14: 465860.554 | AY14: 194456.6386 | BD14: 124420.419 | BI14: 0 | BN14: 31.53495969
A15: 15 | B15: 395 | C15: 395 | F15: =VLOOKUP( $A15 & F$1, TextDF, Sprachwahlcode + 1, FALSE ) -> Primes d'épargne | G15: Col. 4: Avoirs de vieillesse apportés par contrats repris | J15: =MAX($H$4,$L$5) * X15 + MAX($I$4,$L$5) * AC15 + MAX($J$4,$L$5) * AH15 + MAX($K$4,$L$5) * AM15 + MAX($L$4,$L$5) * AR15 + MAX($I$5,$L$5) * BB15 + MAX($H$5,$L$5) * AW15 + MAX($J$5,$L$5) * BG15 + MAX($K$5,$L$5) * BL15 -> 20000071.8 | L15: 2168511.334 | M15: Avoirs de vieillesse apportés par contrats repris | O15: =IF($K$17<>0,$L$15/$K$17,0) -> 0.09313996948 | S15: 21482567.16 | U15: 2898028.557 | X15: 7264675.156 | Z15: 946429.9474 | AC15: 6066050 | AE15: 566778 | AH15: 2165900.119 | AJ15: 168722.2247 | AM15: 2264823.265 | AO15: 244603.248 | AR15: 1213729.266 | AT15: 136786.868 | AW15: 457786.2195 | AY15: 71942.35025 | BB15: 416771.0698 | BD15: 33248.69545 | BG15: 145582.2205 | BI15: 0 | BL15: 4754.486035 | BN15: 0
A16: 16 | B16: 396 | C16: 396 | F16: =VLOOKUP( $A16 & F$1, TextDF, Sprachwahlcode + 1, FALSE ) -> Primes de risque | G16: Col. 4: Primes uniques pour rentes de vieill. reprises | J16: =MAX($H$4,$L$5) * X16 + MAX($I$4,$L$5) * AC16 + MAX($J$4,$L$5) * AH16 + MAX($K$4,$L$5) * AM16 + MAX($L$4,$L$5) * AR16 + MAX($I$5,$L$5) * BB16 + MAX($H$5,$L$5) * AW16 + MAX($J$5,$L$5) * BG16 + MAX($K$5,$L$5) * BL16 -> 2528464.887 | L16: 372465.8179 | M16: Primes uniques pour rentes de vieill. reprises | O16: =IF($K$17<>0,$L$16/$K$17,0) -> 0.01599782042 | S16: 2594270.311 | U16: 706429.6968 | X16: 694910.9575 | Z16: 34021.5824 | AC16: 606037 | AE16: 45500 | AH16: 228604.3675 | AJ16: 38363.0705 | AM16: 307877.1479 | AO16: 28452.556 | AR16: 115425.243 | AT16: 345.899 | AW16: 41756.0571 | AY16: 0 | BB16: 264745.1662 | BD16: 106809.2485 | BG16: 269077.2663 | BI16: 118973.4614 | BL16: 31.68168563 | BN16: 0
A17: 17 | B17: 397 | C17: 397 | F17: =VLOOKUP( $A17 & F$1, TextDF, Sprachwahlcode + 1, FALSE ) -> Primes de frais / Total des primes | G17: Col. 4: Primes uniques pour r. d'inv. et de surviv. reprises | J17: =MAX($H$4,$L$5) * X17 + MAX($I$4,$L$5) * AC17 + MAX($J$4,$L$5) * AH17 + MAX($K$4,$L$5) * AM17 + MAX($L$4,$L$5) * AR17 + MAX($I$5,$L$5) * BB17 + MAX($H$5,$L$5) * AW17 + MAX($J$5,$L$5) * BG17 + MAX($K$5,$L$5) * BL17 -> 753748.5205 | K17: =MAX($H$4,$L$5) * Y17 + MAX($I$4,$L$5) * AD17 + MAX($J$4,$L$5) * AI17 + MAX($K$4,$L$5) * AN17 + MAX($L$4,$L$5) * AS17 + MAX($I$5,$L$5) * BC17 + MAX($H$5,$L$5) * AX17 + MAX($J$5,$L$5) * BH17 + MAX($K$5,$L$5) * BM17 -> 23282285.21 | L17: 159598.2365 | M17: Primes uniques pour r. d'inv. et de surviv. reprises | O17: =IF($K$17<>0,$L$17/$K$17,0) -> 0.00685492146 | S17: 756935.4279 | T17: 24833772.9 | U17: 155610.5338 | X17: 216408.0846 | Y17: 8175994.198 | Z17: 30257.18595 | AC17: 191683 | AD17: 6863770 | AE17: 32299 | AH17: 67956.2112 | AI17: 2462460.698 | AJ17: 4775.03355 | AM17: 88002.79665 | AN17: 2660703.21 | AO17: 24886.39298 | AR17: 51086.448 | AS17: 1380240.957 | AT17: 2126.051 | AW17: 18087.67497 | AX17: 517629.9516 | AY17: 0 | BB17: 94149.94706 | BC17: 775666.1831 | BD17: 38645.8139 | BG17: 26346.4492 | BH17: 441005.936 | BI17: 26608.75915 | BL17: 27.90880908 | BM17: 4814.07653 | BN17: 0
A18: 18 | B18: 398z | C18: 398z | E18: =VLOOKUP( $A18 & E$1, TextDF, Sprachwahlcode + 1, FALSE ) -> Produits des placements de capitaux | G18: Col. 4: Primes uniques pour polices de libre passage | L18: 1075107.744 | M18: Primes uniques pour polices de libre passage | O18: =IF($K$17<>0,$L$18/$K$17,0) -> 0.04617707128 | U18: 1937665.708 | Z18: 831175.692 | AE18: 52644 | AJ18: 60738.96715 | AO18: 108664.4953 | AT18: 17233.252 | AY18: 0 | BD18: 0 | BI18: 0 | BN18: 4651.33733
A19: 19 | B19: 403_10a | C19: 398 | F19: =VLOOKUP( $A19 & F$1, TextDF, Sprachwahlcode + 1, FALSE ) -> Produit des placements de capitaux | J19: =MAX($H$4,$L$5) * X19 + MAX($I$4,$L$5) * AC19 + MAX($J$4,$L$5) * AH19 + MAX($K$4,$L$5) * AM19 + MAX($L$4,$L$5) * AR19 + MAX($I$5,$L$5) * BB19 + MAX($H$5,$L$5) * AW19 + MAX($J$5,$L$5) * BG19 + MAX($K$5,$L$5) * BL19 -> 5247065.173 | M19: Primes de risque | O19: =IF($K$17<>0,$J$16/$K$17,0) -> 0.1086003743 | S19: 5262151.927 | X19: 2066252.354 | AC19: 1660691 | AH19: 432304.4631 | AM19: 432914.2534 | AR19: 284021.269 | AW19: 74330.88577 | BB19: 227344.8711 | BG19: 64411.384 | BL19: 4794.69178
A20: 20 | B20: 403_10b | C20: 399 | F20: Résultat sur réalisations | J20: 722410.1118 | M20: Primes de frais | O20: =IF($K$17<>0,$J$17/$K$17,0) -> 0.03237433584 | S20: 1441578.714 | X20: 194079.6935 | AC20: 114522 | AH20: 127546.7443 | AM20: 98488.4886 | AR20: 67846.606 | AW20: 4234.42826 | BB20: 93810.79409 | BG20: 19667.636 | BL20: 2213.72105
A21: 21 | B21: 403_10c | C21: 400 | F21: Résultat monétaire | J21: -827563.0477 | S21: -394659.6434 | X21: -330661.648 | AC21: -331260 | AH21: -46784.36023 | AM21: -52098.13592 | AR21: -26359.152 | AW21: -5100 | BB21: -29699.64159 | BG21: -5537.457 | BL21: -62.65294
A22: 22 | B22: 403_10d | C22: 401 | F22: Solde entre plus-values et amortissements | J22: 166307.1175 | S22: -665105.131 | X22: -67523.69473 | AC22: 356616 | AH22: -42587.075 | AM22: -56953.98359 | AR22: -9168.652 | AW22: -3624.14475 | BB22: -2157.88962 | BG22: -7242.826 | BL22: -1050.61678
A23: 23 | B23: 404_07a | C23: 402 | F23: Charges d'intérêt | J23: 46175.90883 | S23: 48687.25059 | X23: 12640.19737 | AC23: 21252 | AH23: 1594.33569 | AM23: 3370.23305 | AR23: 3005.866 | AW23: 1792.93988 | BB23: 2183.78204 | BG23: 318.432 | BL23: 18.1228
A24: 24 | B24: 404_07b | C24: 403 | F24: Charges pour la gestion de la fortune / Produit net | J24: 494833.8462 | K24: =MAX($H$4,$L$5) * Y24 + MAX($I$4,$L$5) * AD24 + MAX($J$4,$L$5) * AI24 + MAX($K$4,$L$5) * AN24 + MAX($L$4,$L$5) * AS24 + MAX($I$5,$L$5) * BC24 + MAX($H$5,$L$5) * AX24 + MAX($J$5,$L$5) * BH24 + MAX($K$5,$L$5) * BM24 -> 4767209.599 | S24: 408995.634 | T24: 5186282.982 | X24: 159680.1776 | Y24: 1689826.33 | AC24: 196572 | AD24: 1582745 | AH24: 63341.06004 | AI24: 405544.3764 | AM24: 30543.71946 | AN24: 388436.67 | AR24: 20702.066 | AS24: 292632.139 | AW24: 2979.33785 | AX24: 65068.89155 | BB24: 15867.5948 | BC24: 271246.7572 | BG24: 4790.179 | BH24: 66190.126 | BL24: 357.71149 | BM24: 5519.30882
A25: 25 | B25: 407_07a | C25: 404 | E25: =VLOOKUP( $A25 & E$1, TextDF, Sprachwahlcode + 1, FALSE ) -> Autres produits (regroupés) | K25: =MAX($H$4,$L$5) * Y25 + MAX($I$4,$L$5) * AD25 + MAX($J$4,$L$5) * AI25 + MAX($K$4,$L$5) * AN25 + MAX($L$4,$L$5) * AS25 + MAX($I$5,$L$5) * BC25 + MAX($H$5,$L$5) * AX25 + MAX($J$5,$L$5) * BH25 + MAX($K$5,$L$5) * BM25 -> 43413.73724 | T25: 49713.94168 | Y25: 7439.51974 | AD25: 10408 | AI25: 3587.4581 | AN25: 21697.221 | AS25: 99.213 | AX25: 448.202 | BC25: -266.1766 | BH25: 0 | BM25: 0.3
A26: 26 | B26: 406 | C26: 405 | E26: =VLOOKUP( $A26 & E$1, TextDF, Sprachwahlcode + 1, FALSE ) -> Résultat de la réassurance (gain = +) | K26: =MAX($H$4,$L$5) * Y26 + MAX($I$4,$L$5) * AD26 + MAX($J$4,$L$5) * AI26 + MAX($K$4,$L$5) * AN26 + MAX($L$4,$L$5) * AS26 + MAX($I$5,$L$5) * BC26 + MAX($H$5,$L$5) * AX26 + MAX($J$5,$L$5) * BH26 + MAX($K$5,$L$5) * BM26 -> -30620.98987 | T26: -36080.67112 | Y26: -1124.50914 | AD26: -13371 | AI26: 1470.9891 | AN26: -10685.58293 | AS26: -2734.061 | AX26: 301.06934 | BC26: -263.98724 | BH26: -4213.908 | BM26: 0
A27: 27 | B27: 410_07a | C27: 406 | E27: =VLOOKUP( $A27 & E$1, TextDF, Sprachwahlcode + 1, FALSE ) -> Produit total | K27: =MAX($H$4,$L$5) * Y27 + MAX($I$4,$L$5) * AD27 + MAX($J$4,$L$5) * AI27 + MAX($K$4,$L$5) * AN27 + MAX($L$4,$L$5) * AS27 + MAX($I$5,$L$5) * BC27 + MAX($H$5,$L$5) * AX27 + MAX($J$5,$L$5) * BH27 + MAX($K$5,$L$5) * BM27 -> 28062287.56 | T27: 30033689.16 | Y27: 9872135.539 | AD27: 8443552 | AI27: 2873063.522 | AN27: 3060151.518 | AS27: 1670238.248 | AX27: 583448.1145 | BC27: 1046382.776 | BH27: 502982.154 | BM27: 10333.68535
A28: 27a | C28: 406w | E28: =VLOOKUP( $A28 & E$1, TextDF, Sprachwahlcode + 1, FALSE ) -> a) Apportés individuellement: prestations de libre passage lors d'entrée de service, achats, sommes résultant d'un processus d'épargne externe en cas décès etc
A30: 29 | C30: 407y | D30: =VLOOKUP( $A30 & D$1, TextDF, Sprachwahlcode + 1, FALSE ) -> Charges
A31: 30 | C31: 407z | E31: =VLOOKUP( $A31 & E$1, TextDF, Sprachwahlcode + 1, FALSE ) -> Prestations d'assurance brutes | K31: =VLOOKUP( $A31 & K$1, TextDF, Sprachwahlcode + 1, FALSE ) -> Prest. en capital | L31: =VLOOKUP( $A31 & L$1, TextDF, Sprachwahlcode + 1, FALSE ) -> Prest. de rentes | T31: =$K31 -> Prest. en capital | U31: =$L31 -> Prest. de rentes | Y31: =$K31 -> Prest. en capital | Z31: =$L31 -> Prest. de rentes | AD31: =$K31 -> Prest. en capital | AE31: =$L31 -> Prest. de rentes | AI31: =$K31 -> Prest. en capital | AJ31: =$L31 -> Prest. de rentes | AN31: =$K31 -> Prest. en capital | AO31: =$L31 -> Prest. de rentes | AS31: =$K31 -> Prest. en capital | AT31: =$L31 -> Prest. de rentes | AX31: =$K31 -> Prest. en capital | AY31: =$L31 -> Prest. de rentes | BC31: =$K31 -> Prest. en capital | BD31: =$L31 -> Prest. de rentes | BH31: =$K31 -> Prest. en capital | BI31: =$L31 -> Prest. de rentes | BM31: =$K31 -> Prest. en capital | BN31: =$L31 -> Prest. de rentes | GT31: 888
A32: 31 | B32: 398 | C32: 407 | F32: =VLOOKUP( $A32 & F$1, TextDF, Sprachwahlcode + 1, FALSE ) -> Prestations en cas de vieillesse, de décès ou d'invalidité | J32: =MAX($H$4,$L$5) * X32 + MAX($I$4,$L$5) * AC32 + MAX($J$4,$L$5) * AH32 + MAX($K$4,$L$5) * AM32 + MAX($L$4,$L$5) * AR32 + MAX($I$5,$L$5) * BB32 + MAX($H$5,$L$5) * AW32 + MAX($J$5,$L$5) * BG32 + MAX($K$5,$L$5) * BL32 -> 6589103.003 | K32: =MAX($H$4,$L$5) * Y32 + MAX($I$4,$L$5) * AD32 + MAX($J$4,$L$5) * AI32 + MAX($K$4,$L$5) * AN32 + MAX($L$4,$L$5) * AS32 + MAX($I$5,$L$5) * BC32 + MAX($H$5,$L$5) * AX32 + MAX($J$5,$L$5) * BH32 + MAX($K$5,$L$5) * BM32 -> 2936361.174 | L32: =MAX($H$4,$L$5) * Z32 + MAX($I$4,$L$5) * AE32 + MAX($J$4,$L$5) * AJ32 + MAX($K$4,$L$5) * AO32 + MAX($L$4,$L$5) * AT32 + MAX($I$5,$L$5) * BD32 + MAX($H$5,$L$5) * AY32 + MAX($J$5,$L$5) * BI32 + MAX($K$5,$L$5) * BN32 -> 3652741.829 | S32: 6408419.548 | T32: 2868315.253 | U32: 3540104.295 | X32: 2260367.037 | Y32: 1014323.495 | Z32: 1246043.542 | AC32: 1988810 | AD32: 826958 | AE32: 1161852 | AH32: 608394.8688 | AI32: 300962.82 | AJ32: 307432.0488 | AM32: 542272.3982 | AN32: 348945.9718 | AO32: 193326.4264 | AR32: 340456.26 | AS32: 176769.8 | AT32: 163686.46 | AW32: 114140.4983 | AX32: 86848.60945 | AY32: 27291.88885 | BB32: 539581.2286 | BC32: 129412.3843 | BD32: 410168.8443 | BG32: 189582.2781 | BH32: 48114.8788 | BI32: 141467.3993 | BL32: 5498.43393 | BM32: 4025.21461 | BN32: 1473.21932
A33: 32 | B33: 399 | C33: 408 | F33: =VLOOKUP( $A33 & F$1, TextDF, Sprachwahlcode + 1, FALSE ) -> Prestations de libre passage | J33: =MAX($H$4,$L$5) * X33 + MAX($I$4,$L$5) * AC33 + MAX($J$4,$L$5) * AH33 + MAX($K$4,$L$5) * AM33 + MAX($L$4,$L$5) * AR33 + MAX($I$5,$L$5) * BB33 + MAX($H$5,$L$5) * AW33 + MAX($J$5,$L$5) * BG33 + MAX($K$5,$L$5) * BL33 -> 10327968.27 | S33: 10053348.05 | X33: 3418271.169 | AC33: 3743206 | AH33: 1107936.516 | AM33: 986501.5206 | AR33: 716554.087 | AW33: 198294.5517 | BB33: 137540.0528 | BG33: 0 | BL33: 19664.3697
A34: 33 | B34: 400 | C34: 409 | F34: =VLOOKUP( $A34 & F$1, TextDF, Sprachwahlcode + 1, FALSE ) -> Valeurs de rachat résultant de résiliations de contrat | J34: =MAX($H$4,$L$5) * X34 + MAX($I$4,$L$5) * AC34 + MAX($J$4,$L$5) * AH34 + MAX($K$4,$L$5) * AM34 + MAX($L$4,$L$5) * AR34 + MAX($I$5,$L$5) * BB34 + MAX($H$5,$L$5) * AW34 + MAX($J$5,$L$5) * BG34 + MAX($K$5,$L$5) * BL34 -> 3795936.201 | S34: 2710459.919 | X34: 935164.2523 | AC34: 1497092 | AH34: 434947.9127 | AM34: 435303.1722 | AR34: 235774.309 | AW34: 61674.34485 | BB34: 43472.78285 | BG34: 151092.83 | BL34: 1414.59725
A35: 34 | B35: 400_11a | C35: 409a | F35: =VLOOKUP( $A35 & F$1, TextDF, Sprachwahlcode + 1, FALSE ) -> Frais occasionnés par le traitement des prest. / Total des prestations | J35: =MAX($H$4,$L$5) * X35 + MAX($I$4,$L$5) * AC35 + MAX($J$4,$L$5) * AH35 + MAX($K$4,$L$5) * AM35 + MAX($L$4,$L$5) * AR35 + MAX($I$5,$L$5) * BB35 + MAX($H$5,$L$5) * AW35 + MAX($J$5,$L$5) * BG35 + MAX($K$5,$L$5) * BL35 -> 111716.3093 | K35: =MAX($H$4,$L$5) * Y35 + MAX($I$4,$L$5) * AD35 + MAX($J$4,$L$5) * AI35 + MAX($K$4,$L$5) * AN35 + MAX($L$4,$L$5) * AS35 + MAX($I$5,$L$5) * BC35 + MAX($H$5,$L$5) * AX35 + MAX($J$5,$L$5) * BH35 + MAX($K$5,$L$5) * BM35 -> 20824723.78 | S35: 107605.5102 | T35: 19279833.03 | X35: 35102.09087 | Y35: 6648904.549 | AC35: 29643 | AD35: 7258751 | AH35: 14173.60462 | AI35: 2165452.902 | AM35: 7227.64516 | AN35: 1971304.736 | AR35: 8875.05 | AS35: 1301659.706 | AW35: 1670 | AX35: 375779.3948 | BB35: 9214.56879 | BC35: 729808.633 | BG35: 5522.875 | BH35: 346197.9831 | BL35: 287.47489 | BM35: 26864.87577
A36: 35 | C36: 410z | E36: =VLOOKUP( $A36 & E$1, TextDF, Sprachwahlcode + 1, FALSE ) -> Variation des provisions techniques brutes
A37: 36 | B37: 401_07a | C37: 410 | F37: =VLOOKUP( $A37 & F$1, TextDF, Sprachwahlcode + 1, FALSE ) -> Avoirs de vieillesse | J37: =MAX($H$4,$L$5) * X37 + MAX($I$4,$L$5) * AC37 + MAX($J$4,$L$5) * AH37 + MAX($K$4,$L$5) * AM37 + MAX($L$4,$L$5) * AR37 + MAX($I$5,$L$5) * BB37 + MAX($H$5,$L$5) * AW37 + MAX($J$5,$L$5) * BG37 + MAX($K$5,$L$5) * BL37 -> 1954377.062 | S37: 4382659.12 | X37: 1231662.331 | AC37: 14770 | AH37: 103056.5377 | AM37: 394556.82 | AR37: 65876.295 | AW37: 111754.2875 | BB37: 33337.43456 | BG37: 0 | BL37: -636.6436
A38: 37 | B38: 401_07b_12a | C38: 411a | F38: Provision math. des rentes de vieillesse et de survivants en cours | J38: 2203503.804 | S38: 2633752.447 | X38: 840711.8771 | AC38: 689292 | AH38: 238685.4241 | AM38: 259114.455 | AR38: 94992.848 | AW38: 49712.19804 | BB38: -19160.46892 | BG38: 52076.64917 | BL38: -1921.178561
A39: 38 | B39: 401_07b_12b | C39: 411b | F39: Provision mathématique des rentes d'invalidité en cours | J39: -49541.49835 | S39: -111954.7778 | X39: 2740.54285 | AC39: -104133 | AH39: -16964.80549 | AM39: -5103.035 | AR39: 16501.572 | AW39: 13184.585 | BB39: 32022.30076 | BG39: 14123.26638 | BL39: -1912.924845
A40: 39 | B40: 401_07c | C40: 412 | F40: Provision mathématique des polices de libre passage | J40: -360953.7836 | S40: 458618.2748 | X40: 163712.3812 | AC40: -487820 | AH40: 5249.14355 | AM40: 40394.333 | AR40: -51791.687 | AW40: -1357 | BB40: -14109.39347 | BG40: -205.335 | BL40: -15026.22585
A41: 40 | B41: 401_07d_12a | C41: 413a | F41: Provision pour sinistres survenus mais non encore liquidés | J41: -20078.22577 | S41: 8602.670639 | X41: -9592.6516 | AC41: 7815 | AH41: -60900 | AM41: 11028.7005 | AR41: -7600.892 | AW41: -281.1012 | BB41: 39969.87863 | BG41: -532.1091 | BL41: 14.949
A42: 41 | B42: 401_07d_12b | C42: 413 | F42: Autres provisions techniques / Total intermédiaire | J42: 1718245 | K42: =MAX($H$4,$L$5) * Y42 + MAX($I$4,$L$5) * AD42 + MAX($J$4,$L$5) * AI42 + MAX($K$4,$L$5) * AN42 + MAX($L$4,$L$5) * AS42 + MAX($I$5,$L$5) * BC42 + MAX($H$5,$L$5) * AX42 + MAX($J$5,$L$5) * BH42 + MAX($K$5,$L$5) * BM42 -> 5445552.358 | S42: 1381797.908 | T42: 8753475.643 | X42: 480148.0609 | Y42: 2709382.541 | AC42: 572453 | AD42: 692377 | AH42: 270061.5133 | AI42: 539187.8132 | AM42: 151899.7676 | AN42: 851891.0411 | AR42: 141802.974 | AS42: 259781.11 | AW42: 7293.12657 | AX42: 180306.0959 | BB42: 78952.76579 | BC42: 151012.5173 | BG42: 13950.55288 | BH42: 79413.02432 | BL42: 1683.2386 | BM42: -17798.78526
A43: 42 | B43: 402_11a | C43: 414 | E43: =VLOOKUP( $A43 & E$1, TextDF, Sprachwahlcode + 1, FALSE ) -> Frais d'acquisition et de gestion bruts | K43: 770816.8849 | T43: 806394.7749 | Y43: 201740.8414 | AD43: 187511 | AI43: 77696.0011 | AN43: 90505.94501 | AS43: 58061.214 | AX43: 22272.381 | BC43: 94575.92406 | BH43: 37744.815 | BM43: 708.76333
A44: 43 | B44: 407_07b | C44: 415 | E44: =VLOOKUP( $A44 & E$1, TextDF, Sprachwahlcode + 1, FALSE ) -> Autres charges (regroupées) | K44: 44303.06413 | T44: 46609.44754 | Y44: 20319.68518 | AD44: 10956 | AI44: 5109.84979 | AN44: 3024.46419 | AS44: 755.71 | AX44: 1300.068 | BC44: 2446.06597 | BH44: 391.221 | BM44: 0
A45: 44 | B45: 409 | C45: 417 | E45: =VLOOKUP( $A45 & E$1, TextDF, Sprachwahlcode + 1, FALSE ) -> Participation aux excédents attribuée au fonds d'excédents | K45: 375172.5874 | T45: 509217.4654 | Y45: 130521.0835 | AD45: 78764 | AI45: 43000 | AN45: 72530.47854 | AS45: 11536.07 | AX45: 1000 | BC45: 15877.4934 | BH45: 21843.462 | BM45: 100
A46: 45 | B46: 410 | C46: 418 | E46: =VLOOKUP( $A46 & E$1, TextDF, Sprachwahlcode + 1, FALSE ) -> Résultat de l'exercice | K46: 601718.8826 | T46: 638158.8004 | Y46: 161266.8391 | AD46: 215193 | AI46: 42616.95512 | AN46: 70894.85285 | AS46: 38444.438 | AX46: 2790.174769 | BC46: 52662.14262 | BH46: 17391.64863 | BM46: 458.8315079
A47: 46 | B47: 410_07b | C47: 419 | E47: =VLOOKUP( $A47 & E$1, TextDF, Sprachwahlcode + 1, FALSE ) -> Charges totales | K47: 28062287.56 | T47: 30033689.16 | Y47: 9872135.539 | AD47: 8443552 | AI47: 2873063.522 | AN47: 3060151.518 | AS47: 1670238.248 | AX47: 583448.1145 | BC47: 1046382.776 | BH47: 502982.154 | BM47: 10333.68535
A49: 48 | C49: 420x | D49: =VLOOKUP( $A49 & D$1, TextDF, Sprachwahlcode + 1, FALSE ) -> II. Bilan
A50: 49 | C50: 420y | D50: =VLOOKUP( $A50 & D$1, TextDF, Sprachwahlcode + 1, FALSE ) -> Actifs
A51: 50 | C51: 420z | E51: =VLOOKUP( $A51 & E$1, TextDF, Sprachwahlcode + 1, FALSE ) -> Placements de capitaux
A52: 51 | B52: 421 | C52: 420 | F52: =VLOOKUP( $A52 & F$1, TextDF, Sprachwahlcode + 1, FALSE ) -> Liquidités et dépôts à terme | J52: =MAX($H$4,$L$5) * X52 + MAX($I$4,$L$5) * AC52 + MAX($J$4,$L$5) * AH52 + MAX($K$4,$L$5) * AM52 + MAX($L$4,$L$5) * AR52 + MAX($I$5,$L$5) * BB52 + MAX($H$5,$L$5) * AW52 + MAX($J$5,$L$5) * BG52 + MAX($K$5,$L$5) * BL52 -> 3371652.147 | K52: =VLOOKUP( $A52 & K$1, TextDF, Sprachwahlcode + 1, FALSE ) -> en %: | L52: =IF(K$62>0,J52/K$62,0) -> 0.01790105263 | S52: 2628045.671 | T52: =$K52 -> en %: | U52: 0.01453525251 | X52: 1841978.295 | Y52: =$K52 -> en %: | Z52: 0.02715321074 | AC52: 510422 | AD52: =$K52 -> en %: | AE52: 0.008830689434 | AH52: 399456 | AI52: =$K52 -> en %: | AJ52: 0.02182192679 | AM52: 205701.1306 | AN52: =$K52 -> en %: | AO52: 0.01147055391 | AR52: 75803.387 | AS52: =$K52 -> en %: | AT52: 0.006963944881 | AW52: 115554.1036 | AX52: =$K52 -> en %: | AY52: 0.03320075364 | BB52: 164792.8218 | BC52: =$K52 -> en %: | BD52: 0.01931531948 | BG52: 47166.138 | BH52: =$K52 -> en %: | BI52: 0.01387204675 | BL52: 10778.27142 | BM52: =$K52 -> en %: | BN52: 0.06111717635
A53: 52 | B53: 422_12a | C53: 421 | F53: Titres à taux d'intérêt fixe en francs suisses | J53: 64741766.27 | K53: en %: | L53: 0.3437323053 | S53: 66823945.71 | T53: en %: | U53: 0.3695913412 | X53: 24319764.31 | Y53: en %: | Z53: 0.3585056822 | AC53: 11662434 | AD53: en %: | AE53: 0.2017689925 | AH53: 7545591 | AI53: en %: | AJ53: 0.4122089402 | AM53: 7141639.962 | AN53: en %: | AO53: 0.3982407191 | AR53: 5609403.094 | AS53: en %: | AT53: 0.5153275534 | AW53: 1970092.485 | AX53: en %: | AY53: 0.5660426865 | BB53: 4415971.99 | BC53: en %: | BD53: 0.5175948133 | BG53: 1965083.074 | BH53: en %: | BI53: 0.5779511622 | BL53: 111786.3595 | BM53: en %: | BN53: 0.6338740582
A54: 53 | B54: 422_12b | C54: 421a | F54: Titres à taux d'intérêt fixe en monnaies étrangères | J54: 53062078.42 | K54: en %: | L54: 0.2817215469 | S54: 49546452.77 | T54: en %: | U54: 0.2740326052 | X54: 19893523.72 | Y54: en %: | Z54: 0.2932570071 | AC54: 21556186 | AD54: en %: | AE54: 0.3729384391 | AH54: 3363155 | AI54: en %: | AJ54: 0.1837261731 | AM54: 3847485.244 | AN54: en %: | AO54: 0.2145481008 | AR54: 1615017.605 | AS54: en %: | AT54: 0.1483692752 | AW54: 656816.1149 | AX54: en %: | AY54: 0.1887149771 | BB54: 1887653.939 | BC54: en %: | BD54: 0.2212513781 | BG54: 242240.797 | BH54: en %: | BI54: 0.07124551222 | BL54: 0 | BM54: en %: | BN54: 0
A55: 54 | B55: 423 | C55: 422 | F55: Hypothèques et autres créances nominales | J55: 23716279.01 | K55: en %: | L55: 0.1259164173 | S55: 22644853.41 | T55: en %: | U55: 0.1252446508 | X55: 5032452.036 | Y55: en %: | Z55: 0.07418503846 | AC55: 8543654 | AD55: en %: | AE55: 0.1478117227 | AH55: 3057817 | AI55: en %: | AJ55: 0.1670458291 | AM55: 3494519.759 | AN55: en %: | AO55: 0.1948656148 | AR55: 1720958.71 | AS55: en %: | AT55: 0.1581019275 | AW55: 240939.2282 | AX55: en %: | AY55: 0.06922613484 | BB55: 1174419.947 | BC55: en %: | BD55: 0.137653426 | BG55: 451518.329 | BH55: en %: | BI55: 0.1327961889 | BL55: 0 | BM55: en %: | BN55: 0
A56: 55 | B56: 424_12a | C56: 423 | F56: Actions suisses et étrangères | J56: 5995851.183 | K56: en %: | L56: 0.03183366578 | S56: 5239055.243 | T56: en %: | U56: 0.02897628138 | X56: 3212089.411 | Y56: en %: | Z56: 0.04735047146 | AC56: 1178327 | AD56: en %: | AE56: 0.02038595474 | AH56: 526093 | AI56: en %: | AJ56: 0.02873999372 | AM56: 370244.9757 | AN56: en %: | AO56: 0.02064604575 | AR56: 522339.428 | AS56: en %: | AT56: 0.04798654954 | AW56: 35109.28589 | AX56: en %: | AY56: 0.01008752363 | BB56: 6236.01141 | BC56: en %: | BD56: 0.000730921113 | BG56: 145412.071 | BH56: en %: | BI56: 0.04276718707 | BL56: 0 | BM56: en %: | BN56: 0
A57: 56 | B57: 424_12b | C57: 423a | F57: Parts de fonds de placement | J57: 3567939.771 | K57: en %: | L57: 0.01894319901 | S57: 3970652.245 | T57: en %: | U57: 0.02196097033 | X57: 2278558.907 | Y57: en %: | Z57: 0.03358898981 | AC57: 105551 | AD57: en %: | AE57: 0.001826112708 | AH57: 321614 | AI57: en %: | AJ57: 0.01756948741 | AM57: 405540.5283 | AN57: en %: | AO57: 0.02261423881 | AR57: 72754.85 | AS57: en %: | AT57: 0.006683880303 | AW57: 0 | AX57: en %: | AY57: 0 | BB57: 118266.9616 | BC57: en %: | BD57: 0.01386203673 | BG57: 228028.944 | BH57: en %: | BI57: 0.06706565995 | BL57: 37624.5802 | BM57: en %: | BN57: 0.2133466503
A58: 57 | B58: 425 | C58: 424 | F58: Private Equity et Hedge Funds | J58: 4370424.757 | K58: en %: | L58: 0.02320381824 | S58: 3691832.186 | T58: en %: | U58: 0.02041886624 | X58: 35266.49051 | Y58: en %: | Z58: 0.0005198749906 | AC58: 3704894 | AD58: en %: | AE58: 0.06409748855 | AH58: 504658 | AI58: en %: | AJ58: 0.02756901869 | AM58: 62.00609 | AN58: en %: | AO58: 3.457658186e-06 | AR58: 0 | AS58: en %: | AT58: 0 | AW58: 0 | AX58: en %: | AY58: 0 | BB58: 55912.8724 | BC58: en %: | BD58: 0.006553531775 | BG58: 69631.388 | BH58: en %: | BI58: 0.02047930805 | BL58: 0 | BM58: en %: | BN58: 0
A59: 58 | B59: 425_12a | C59: 424a | F59: Avoirs découlant d'instruments financiers dérivés | J59: 2663682.746 | K59: en %: | L59: 0.01414224331 | S59: 1754462.956 | T59: en %: | U59: 0.00970362211 | X59: 816717.4356 | Y59: en %: | Z59: 0.01203950161 | AC59: 1719905 | AD59: en %: | AE59: 0.0297556667 | AH59: 28269 | AI59: en %: | AJ59: 0.001544310383 | AM59: 25468.95126 | AN59: en %: | AO59: 0.0014202303 | AR59: 59370.343 | AS59: en %: | AT59: 0.00545426547 | AW59: 5100.96392 | AX59: en %: | AY59: 0.001465597855 | BB59: 8068.89919 | BC59: en %: | BD59: 0.0009457533652 | BG59: 782.153 | BH59: en %: | BI59: 0.0002300392494 | BL59: 0 | BM59: en %: | BN59: 0
A60: 59 | B60: 426 | C60: 425 | F60: Placements dans des participations et des entreprises liées | J60: 207538.4513 | K60: en %: | L60: 0.001101880199 | S60: 294051.9514 | T60: en %: | U60: 0.001626348967 | X60: 130066.4613 | Y60: en %: | Z60: 0.001917352687 | AC60: 0 | AD60: en %: | AE60: 0 | AH60: 0 | AI60: en %: | AJ60: 0 | AM60: 112.237 | AN60: en %: | AO60: 6.258694618e-06 | AR60: 0 | AS60: en %: | AT60: 0 | AW60: 0 | AX60: en %: | AY60: 0 | BB60: 77359.75299 | BC60: en %: | BD60: 0.009067314512 | BG60: 0 | BH60: en %: | BI60: 0 | BL60: 0 | BM60: en %: | BN60: 0
A61: 60 | B61: 427 | C61: 426 | F61: Immeubles | J61: 26525977.31 | K61: en %: | L61: 0.1408338984 | S61: 24170911.56 | T61: en %: | U61: 0.1336850066 | X61: 10276065.07 | Y61: en %: | Z61: 0.1514828709 | AC61: 8819550 | AD61: en %: | AE61: 0.1525849336 | AH61: 2432416 | AI61: en %: | AJ61: 0.1328807275 | AM61: 2442197.951 | AN61: en %: | AO61: 0.1361847802 | AR61: 1209474.205 | AS61: en %: | AT61: 0.1111126037 | AW61: 456854.1014 | AX61: en %: | AY61: 0.1312623264 | BB61: 623032.881 | BC61: en %: | BD61: 0.07302550571 | BG61: 250222.1 | BH61: en %: | BI61: 0.0735928956 | BL61: 16165 | BM61: en %: | BN61: 0.09166211513
A62: 61 | B62: 428 | C62: 427 | F62: Autres placements de capitaux / Total | J62: 126189 | K62: =MAX($H$4,$L$5) * Y62 + MAX($I$4,$L$5) * AD62 + MAX($J$4,$L$5) * AI62 + MAX($K$4,$L$5) * AN62 + MAX($L$4,$L$5) * AS62 + MAX($I$5,$L$5) * BC62 + MAX($H$5,$L$5) * AX62 + MAX($J$5,$L$5) * BH62 + MAX($K$5,$L$5) * BM62 -> 188349379.1 | L62: 0.0006699730078 | S62: 40691 | T62: 180804954.7 | U62: 0.0002250546732 | X62: 0 | Y62: 67836482.13 | Z62: 0 | AC62: 0 | AD62: 57800923 | AE62: 0 | AH62: 126189 | AI62: 18305258 | AJ62: 0.006893593087 | AM62: 0 | AN62: 17932972.74 | AO62: 0 | AR62: 0 | AS62: 10885121.62 | AT62: 0 | AW62: 0 | AX62: 3480466.283 | AY62: 0 | BB62: 0 | BC62: 8531716.076 | BD62: 0 | BG62: 0 | BH62: 3400084.994 | BI62: 0 | BL62: 0 | BM62: 176354.2111 | BN62: 0
A63: 61a | B63: 428_15a | C63: 427a | E63: =VLOOKUP( $A63 & E$1, TextDF, Sprachwahlcode + 1, FALSE ) -> Autres actifs | K63: =MAX($H$4,$L$5) * Y63 + MAX($I$4,$L$5) * AD63 + MAX($J$4,$L$5) * AI63 + MAX($K$4,$L$5) * AN63 + MAX($L$4,$L$5) * AS63 + MAX($I$5,$L$5) * BC63 + MAX($H$5,$L$5) * AX63 + MAX($J$5,$L$5) * BH63 + MAX($K$5,$L$5) * BM63 -> 4735892.885 | T63: 5603435.466 | Y63: 1364097.628 | AD63: 1720964 | AI63: 285013.5971 | AN63: 566018.9666 | AS63: 222240.106 | AX63: 46529.32708 | BC63: 478343.3698 | BH63: 49803.617 | BM63: 2882.27313
A64: 61b | B64: 428_15b | C64: 427b | E64: =VLOOKUP( $A64 & E$1, TextDF, Sprachwahlcode + 1, FALSE ) -> Somme du bilan | K64: =MAX($H$4,$L$5) * Y64 + MAX($I$4,$L$5) * AD64 + MAX($J$4,$L$5) * AI64 + MAX($K$4,$L$5) * AN64 + MAX($L$4,$L$5) * AS64 + MAX($I$5,$L$5) * BC64 + MAX($H$5,$L$5) * AX64 + MAX($J$5,$L$5) * BH64 + MAX($K$5,$L$5) * BM64 -> 193085271.9 | T64: 186408390.2 | Y64: 69200579.76 | AD64: 59521887 | AI64: 18590271.6 | AN64: 18498991.71 | AS64: 11107361.73 | AX64: 3526995.611 | BC64: 9010059.446 | BH64: 3449888.611 | BM64: 179236.4842
A66: 63 | C66: 428y | D66: =VLOOKUP( $A66 & D$1, TextDF, Sprachwahlcode + 1, FALSE ) -> Passifs
A67: 64 | C67: 428z | E67: =VLOOKUP( $A67 & E$1, TextDF, Sprachwahlcode + 1, FALSE ) -> Provisions techniques brutes | K67: =VLOOKUP( $A67 & K$1, TextDF, Sprachwahlcode + 1, FALSE ) -> Obligatoire | L67: =VLOOKUP( $A67 & L$1, TextDF, Sprachwahlcode + 1, FALSE ) -> Surobligatoire | T67: =$K67 -> Obligatoire | U67: Überobligatorium | Y67: =$K67 -> Obligatoire | Z67: =$L67 -> Surobligatoire | AD67: =$K67 -> Obligatoire | AE67: =$L67 -> Surobligatoire | AI67: =$K67 -> Obligatoire | AJ67: =$L67 -> Surobligatoire | AN67: =$K67 -> Obligatoire | AO67: =$L67 -> Surobligatoire | AS67: =$K67 -> Obligatoire | AT67: =$L67 -> Surobligatoire | AX67: =$K67 -> Obligatoire | AY67: =$L67 -> Surobligatoire | BC67: =$K67 -> Obligatoire | BD67: =$L67 -> Surobligatoire | BH67: =$K67 -> Obligatoire | BI67: =$L67 -> Surobligatoire | BM67: =$K67 -> Obligatoire | BN67: =$L67 -> Surobligatoire
A68: 65 | B68: 429_07a | C68: 428 | F68: =VLOOKUP( $A68 & F$1, TextDF, Sprachwahlcode + 1, FALSE ) -> Avoirs de vieillesse / Ventilés en Obligatoire et Surobligatoire | J68: =MAX($H$4,$L$5) * X68 + MAX($I$4,$L$5) * AC68 + MAX($J$4,$L$5) * AH68 + MAX($K$4,$L$5) * AM68 + MAX($L$4,$L$5) * AR68 + MAX($I$5,$L$5) * BB68 + MAX($H$5,$L$5) * AW68 + MAX($J$5,$L$5) * BG68 + MAX($K$5,$L$5) * BL68 -> 100259659.5 | K68: =J68-L68 -> 52151188.33 | L68: =MAX($H$4,$L$5) * Z68 + MAX($I$4,$L$5) * AE68 + MAX($J$4,$L$5) * AJ68 + MAX($K$4,$L$5) * AO68 + MAX($L$4,$L$5) * AT68 + MAX($I$5,$L$5) * BD68 + MAX($H$5,$L$5) * AY68 + MAX($J$5,$L$5) * BI68 + MAX($K$5,$L$5) * BN68 -> 48108471.17 | M68: =VLOOKUP( $A68 & M$1, TextDF, Sprachwahlcode + 1, FALSE ) -> Part de l'obligatoire: | N68: =IF(J68>0,K68/J68,0) -> 0.5201612352 | S68: 98305370.45 | T68: 51550827.02 | U68: 46754543.42 | X68: 36409790.51 | Y68: 18580828.36 | Z68: 17828962.14 | AC68: 31320134 | AD68: 15980896 | AE68: 15339238 | AH68: 11289428.84 | AI68: 6128019.43 | AJ68: 5161409.406 | AM68: 11003752.85 | AN68: 5937284.437 | AO68: 5066468.411 | AR68: 6356580.518 | AS68: 3626710.119 | AT68: 2729870.399 | AW68: 2112709 | AX68: 1387813.488 | AY68: 724895.5122 | BB68: 1764569.524 | BC68: 509415.2231 | BD68: 1255154.301 | BG68: 0 | BH68: 0 | BI68: 0 | BL68: 2694.2726 | BM68: 221.2726 | BN68: 2473
A69: 65a | B69: 429_07a_13 | C69: 428a | F69: Provision complémentaire pour transformations en rente futures | J69: 3887481.272 | K69: =J69-L69 -> 3057792.239 | L69: =MAX($H$4,$L$5) * Z69 + MAX($I$4,$L$5) * AE69 + MAX($J$4,$L$5) * AJ69 + MAX($K$4,$L$5) * AO69 + MAX($L$4,$L$5) * AT69 + MAX($I$5,$L$5) * BD69 + MAX($H$5,$L$5) * AY69 + MAX($J$5,$L$5) * BI69 + MAX($K$5,$L$5) * BN69 -> 829689.0332 | M69: =VLOOKUP( $A69 & M$1, TextDF, Sprachwahlcode + 1, FALSE ) -> Part de l'obligatoire: | N69: =IF(J69>0,K69/J69,0) -> 0.7865741401 | S69: 3427842.135 | T69: 2659960.23 | U69: 767881.9054 | X69: 1979200 | Y69: 1369210.014 | Z69: 609989.9862 | AC69: 710000 | AD69: 710000 | AE69: 0 | AH69: 435500 | AI69: 389174.179 | AJ69: 46325.82102 | AM69: 413200 | AN69: 339900 | AO69: 73300 | AR69: 232300 | AS69: 167300 | AT69: 65000 | AW69: 88000 | AX69: 72200 | AY69: 15800 | BB69: 29271.10213 | BC69: 10007.87617 | BD69: 19263.22596 | BG69: 0 | BH69: 0 | BI69: 0 | BL69: 10.17 | BM69: 0.17 | BN69: 10
A70: 66 | B70: 429_07b_10a | C70: 429 | F70: Provisions math. des rentes de vieillesse et de survivants en cours | J70: 35838810.95 | K70: =J70-L70 -> 18458119.9 | L70: =MAX($H$4,$L$5) * Z70 + MAX($I$4,$L$5) * AE70 + MAX($J$4,$L$5) * AJ70 + MAX($K$4,$L$5) * AO70 + MAX($L$4,$L$5) * AT70 + MAX($I$5,$L$5) * BD70 + MAX($H$5,$L$5) * AY70 + MAX($J$5,$L$5) * BI70 + MAX($K$5,$L$5) * BN70 -> 17380691.05 | M70: =VLOOKUP( $A70 & M$1, TextDF, Sprachwahlcode + 1, FALSE ) -> Part de l'obligatoire: | N70: =IF(J70>0,K70/J70,0) -> 0.5150315931 | S70: 33635440.15 | T70: 17428640.41 | U70: 16206799.74 | X70: 11867839.92 | Y70: 5408838.571 | Z70: 6459001.351 | AC70: 12717479 | AD70: 6875365 | AE70: 5842114 | AH70: 2469598.526 | AI70: 1165023.692 | AJ70: 1304574.834 | AM70: 2599151.717 | AN70: 1375319.664 | AO70: 1223832.053 | AR70: 1424096.238 | AS70: 856357.805 | AT70: 567738.433 | AW70: 623716.8419 | AX70: 382804.5731 | AY70: 240912.2688 | BB70: 3046278.687 | BC70: 1584327.575 | BD70: 1461951.112 | BG70: 1076447.194 | BH70: 807447.1941 | BI70: 269000 | BL70: 14202.82605 | BM70: 2635.826049 | BN70: 11567
A71: 67 | B71: 429_07b_10b | C71: 430 | F71: Provisions mathématiques des rentes d'invalidité en cours | J71: 8685699.676 | K71: =J71-L71 -> 5160999.558 | L71: =MAX($H$4,$L$5) * Z71 + MAX($I$4,$L$5) * AE71 + MAX($J$4,$L$5) * AJ71 + MAX($K$4,$L$5) * AO71 + MAX($L$4,$L$5) * AT71 + MAX($I$5,$L$5) * BD71 + MAX($H$5,$L$5) * AY71 + MAX($J$5,$L$5) * BI71 + MAX($K$5,$L$5) * BN71 -> 3524700.119 | M71: =VLOOKUP( $A71 & M$1, TextDF, Sprachwahlcode + 1, FALSE ) -> Part de l'obligatoire: | N71: =IF(J71>0,K71/J71,0) -> 0.5941950274 | S71: 8735194.138 | T71: 5189840.879 | U71: 3545353.259 | X71: 2087832.021 | Y71: 1240474.625 | Z71: 847357.3958 | AC71: 1757911 | AD71: 1041069 | AE71: 716842 | AH71: 725365.3646 | AI71: 434546.3784 | AJ71: 290818.9862 | AM71: 1189634.556 | AN71: 724723.156 | AO71: 464911.4 | AR71: 629194.107 | AS71: 397916.596 | AT71: 231277.511 | AW71: 167948.0931 | AX71: 105466.871 | AY71: 62481.22207 | BB71: 876303.7384 | BC71: 279799.1348 | BD71: 596504.6037 | BG71: 1242025.765 | BH71: 931025.7654 | BI71: 311000 | BL71: 9485.031313 | BM71: 5978.031313 | BN71: 3507
A72: 68 | B72: 429_07b_12a | C72: 430a | F72: Renforcement de la provision mathématique des rentes en cours | J72: 8558769.408 | K72: =J72-L72 -> 4788695.141 | L72: =MAX($H$4,$L$5) * Z72 + MAX($I$4,$L$5) * AE72 + MAX($J$4,$L$5) * AJ72 + MAX($K$4,$L$5) * AO72 + MAX($L$4,$L$5) * AT72 + MAX($I$5,$L$5) * BD72 + MAX($H$5,$L$5) * AY72 + MAX($J$5,$L$5) * BI72 + MAX($K$5,$L$5) * BN72 -> 3770074.267 | M72: =VLOOKUP( $A72 & M$1, TextDF, Sprachwahlcode + 1, FALSE ) -> Part de l'obligatoire: | N72: =IF(J72>0,K72/J72,0) -> 0.5595074377 | S72: 7540317.667 | T72: 4174066.578 | U72: 3366251.089 | X72: 2886100 | Y72: 1332785.834 | Z72: 1553314.166 | AC72: 3164151 | AD72: 1617027 | AE72: 1547124 | AH72: 622500 | AI72: 556282.265 | AJ72: 66217.73498 | AM72: 778966.153 | AN72: 591575.3227 | AO72: 187390.8303 | AR72: 334000 | AS72: 199000 | AT72: 135000 | AW72: 162050 | AX72: 80680 | AY72: 81370 | BB72: 324916.4923 | BC72: 197706.9566 | BD72: 127209.5356 | BG72: 276110.023 | BH72: 208110.023 | BI72: 68000 | BL72: 9975.739879 | BM72: 5527.739879 | BN72: 4448
A73: 69 | B73: 429_07c | C73: 431 | F73: Provision mathématique des polices de libre passage | J73: 7366503.704 | S73: 7723657.007 | X73: 3743282.118 | AC73: 2008167 | AH73: 362121.0841 | AM73: 393841.644 | AR73: 549584.115 | AW73: 11406 | BB73: 169902.0236 | BG73: 4887.162 | BL73: 123312.5574
A74: 70 | B74: 429_07d_10a | C74: 432 | F74: Provision pour sinistres survenus mais non encore liquidés | J74: 2710292.33 | S74: 2730383.19 | X74: 804936.2755 | AC74: 396417 | AH74: 477300 | AM74: 230640.9495 | AR74: 106664.209 | AW74: 39985.67925 | BB74: 415869.7313 | BG74: 233257.578 | BL74: 5220.908
A75: 71 | B75: 429_07d_10b | C75: 433 | F75: Fonds de renchérissement | J75: 3011010.325 | S75: 2970253.824 | X75: 879299.8995 | AC75: 649996 | AH75: 253475.965 | AM75: 315024.3181 | AR75: 190695.574 | AW75: 80258.395 | BB75: 404155.1923 | BG75: 235546.2321 | BL75: 2558.748862
A76: 72 | B76: 429_10e | C76: 434 | F76: Parts d'excédents créditées aux assurés | J76: 204585.1855 | S76: 376006.4044 | X76: 138088.3728 | AC76: 0 | AH76: 22785.61174 | AM76: 27910.04956 | AR76: 1160.15 | AW76: 5190.93563 | BB76: 9450.06576 | BG76: 0 | BL76: 0
A77: 73 | B77: 429_07d | C77: 435 | F77: Autres provisions techniques / Total | J77: 5604563.048 | K77: =MAX($H$4,$L$5) * Y77 + MAX($I$4,$L$5) * AD77 + MAX($J$4,$L$5) * AI77 + MAX($K$4,$L$5) * AN77 + MAX($L$4,$L$5) * AS77 + MAX($I$5,$L$5) * BC77 + MAX($H$5,$L$5) * AX77 + MAX($J$5,$L$5) * BH77 + MAX($K$5,$L$5) * BM77 -> 176127375.4 | S77: 5418800.838 | T77: 170863265.8 | X77: 3310850.778 | Y77: 64107219.89 | AC77: 273735 | AD77: 52997990 | AH77: 655557.1558 | AI77: 17313632.54 | AM77: 25905.893 | AN77: 16978028.13 | AR77: 342763.529 | AS77: 10167038.44 | AW77: 135485.0406 | AX77: 3426749.985 | BB77: 781734.0879 | BC77: 7822450.645 | BG77: 78531.56374 | BH77: 3146805.518 | BL77: 0 | BM77: 167460.2541
A78: 73a | B78: 429_15a | C78: 435a | E78: =VLOOKUP( $A78 & E$1, TextDF, Sprachwahlcode + 1, FALSE ) -> Fonds d'excédents | K78: =MAX($H$4,$L$5) * Y78 + MAX($I$4,$L$5) * AD78 + MAX($J$4,$L$5) * AI78 + MAX($K$4,$L$5) * AN78 + MAX($L$4,$L$5) * AS78 + MAX($I$5,$L$5) * BC78 + MAX($H$5,$L$5) * AX78 + MAX($J$5,$L$5) * BH78 + MAX($K$5,$L$5) * BM78 -> 1063840.536 | T78: 1361690.49 | Y78: 368700 | AD78: 237477.6 | AI78: 105034.9615 | AN78: 156642.6296 | AS78: 60942.68574 | AX78: 15286.75259 | BC78: 58683.07448 | BH78: 60281.94235 | BM78: 790.8895531
A79: 73b | B79: 429_15b | C79: 435b | E79: =VLOOKUP( $A79 & E$1, TextDF, Sprachwahlcode + 1, FALSE ) -> Autres dettes (y comprises celles envers les preneurs d'assurance) | K79: =MAX($H$4,$L$5) * Y79 + MAX($I$4,$L$5) * AD79 + MAX($J$4,$L$5) * AI79 + MAX($K$4,$L$5) * AN79 + MAX($L$4,$L$5) * AS79 + MAX($I$5,$L$5) * BC79 + MAX($H$5,$L$5) * AX79 + MAX($J$5,$L$5) * BH79 + MAX($K$5,$L$5) * BM79 -> 7163400.614 | T79: 6657812.798 | Y79: 1693150.35 | AD79: 3518669 | AI79: 592220.716 | AN79: 613001.7471 | AS79: 470081.008 | AX79: 22.1784 | BC79: 175680.375 | BH79: 98211.215 | BM79: 2364.02426
A80: 73c | B80: 429_15c | C80: 435c | E80: =VLOOKUP( $A80 & E$1, TextDF, Sprachwahlcode + 1, FALSE ) -> Autres passifs | K80: =MAX($H$4,$L$5) * Y80 + MAX($I$4,$L$5) * AD80 + MAX($J$4,$L$5) * AI80 + MAX($K$4,$L$5) * AN80 + MAX($L$4,$L$5) * AS80 + MAX($I$5,$L$5) * BC80 + MAX($H$5,$L$5) * AX80 + MAX($J$5,$L$5) * BH80 + MAX($K$5,$L$5) * BM80 -> 8730655.388 | T80: 7525621.087 | Y80: 3031509.514 | AD80: 2767750.4 | AI80: 579383.3762 | AN80: 751319.2061 | AS80: 409299.5943 | AX80: 84936.69405 | BC80: 953245.3517 | BH80: 144589.9354 | BM80: 8621.316323
A81: 73d | B81: 429_15d | C81: 435d | E81: =VLOOKUP( $A81 & E$1, TextDF, Sprachwahlcode + 1, FALSE ) -> Somme du bilan | K81: =MAX($H$4,$L$5) * Y81 + MAX($I$4,$L$5) * AD81 + MAX($J$4,$L$5) * AI81 + MAX($K$4,$L$5) * AN81 + MAX($L$4,$L$5) * AS81 + MAX($I$5,$L$5) * BC81 + MAX($H$5,$L$5) * AX81 + MAX($J$5,$L$5) * BH81 + MAX($K$5,$L$5) * BM81 -> 193085271.9 | T81: 186408390.2 | Y81: 69200579.76 | AD81: 59521887 | AI81: 18590271.6 | AN81: 18498991.71 | AS81: 11107361.73 | AX81: 3526995.611 | BC81: 9010059.446 | BH81: 3449888.611 | BM81: 179236.4842
A83: 75 | C83: 436z | D83: =VLOOKUP( $A83 & D$1, TextDF, Sprachwahlcode + 1, FALSE ) -> III. Fonds d'excédents
A84: 76 | B84: 411 | C84: 436 | F84: =VLOOKUP( $A84 & F$1, TextDF, Sprachwahlcode + 1, FALSE ) -> Etat à la fin de l'exercice précédent | K84: =MAX($H$4,$L$5) * Y84 + MAX($I$4,$L$5) * AD84 + MAX($J$4,$L$5) * AI84 + MAX($K$4,$L$5) * AN84 + MAX($L$4,$L$5) * AS84 + MAX($I$5,$L$5) * BC84 + MAX($H$5,$L$5) * AX84 + MAX($J$5,$L$5) * BH84 + MAX($K$5,$L$5) * BM84 -> 1361690.49 | T84: 1704894.873 | Y84: 464800 | AD84: 363528.69 | AI84: 95742.55949 | AN84: 160063.5572 | AS84: 72449.18471 | AX84: 18652.95551 | BC84: 83996.08701 | BH84: 101766.5135 | BM84: 690.9425568
A85: 77 | B85: 412 | C85: 437 | F85: Attribution du compte d'exploitation au fonds d'excédents | K85: =MAX($H$4,$L$5) * Y85 + MAX($I$4,$L$5) * AD85 + MAX($J$4,$L$5) * AI85 + MAX($K$4,$L$5) * AN85 + MAX($L$4,$L$5) * AS85 + MAX($I$5,$L$5) * BC85 + MAX($H$5,$L$5) * AX85 + MAX($J$5,$L$5) * BH85 + MAX($K$5,$L$5) * BM85 -> 375172.9962 | T85: 509217.4917 | Y85: 130521.0835 | AD85: 78763.91 | AI85: 43000 | AN85: 72530.47854 | AS85: 11536.07003 | AX85: 1000.135411 | BC85: 15877.48887 | BH85: 21843.88285 | BM85: 99.94699633
A86: 78 | B86: 412_07a | C86: 438 | F86: Gains ou pertes de changes sur les monnaies étrangères | K86: =MAX($H$4,$L$5) * Y86 + MAX($I$4,$L$5) * AD86 + MAX($J$4,$L$5) * AI86 + MAX($K$4,$L$5) * AN86 + MAX($L$4,$L$5) * AS86 + MAX($I$5,$L$5) * BC86 + MAX($H$5,$L$5) * AX86 + MAX($J$5,$L$5) * BH86 + MAX($K$5,$L$5) * BM86 -> 0 | T86: 0 | Y86: 0 | AD86: 0 | AI86: 0 | AN86: 0 | AS86: 0 | AX86: 0 | BC86: 0 | BH86: 0 | BM86: 0
A87: 79 | B87: 413 | C87: 439 | F87: Prélevé du fonds d'exc. pour couvrir un déficit du compte d'exploit. | J87: =MAX($H$4,$L$5) * X87 + MAX($I$4,$L$5) * AC87 + MAX($J$4,$L$5) * AH87 + MAX($K$4,$L$5) * AM87 + MAX($L$4,$L$5) * AR87 + MAX($I$5,$L$5) * BB87 + MAX($H$5,$L$5) * AW87 + MAX($J$5,$L$5) * BG87 + MAX($K$5,$L$5) * BL87 -> 0 | S87: 0 | X87: 0 | AC87: 0 | AH87: 0 | AM87: 0 | AR87: 0 | AW87: 0 | BB87: 0 | BG87: 0 | BL87: 0
A88: 80 | B88: 414 | C88: 440 | F88: Distribué aux institutions de prévoyance / Total intermédiaire | J88: =MAX($H$4,$L$5) * X88 + MAX($I$4,$L$5) * AC88 + MAX($J$4,$L$5) * AH88 + MAX($K$4,$L$5) * AM88 + MAX($L$4,$L$5) * AR88 + MAX($I$5,$L$5) * BB88 + MAX($H$5,$L$5) * AW88 + MAX($J$5,$L$5) * BG88 + MAX($K$5,$L$5) * BL88 -> 673022.9503 | K88: =MAX($H$4,$L$5) * Y88 + MAX($I$4,$L$5) * AD88 + MAX($J$4,$L$5) * AI88 + MAX($K$4,$L$5) * AN88 + MAX($L$4,$L$5) * AS88 + MAX($I$5,$L$5) * BC88 + MAX($H$5,$L$5) * AX88 + MAX($J$5,$L$5) * BH88 + MAX($K$5,$L$5) * BM88 -> 673022.9503 | S88: 852421.8746 | T88: 852421.8746 | X88: 226621.0835 | Y88: 226621.0835 | AC88: 204815 | AD88: 204815 | AH88: 33707.59795 | AI88: 33707.59795 | AM88: 75951.40617 | AN88: 75951.40617 | AR88: 23042.569 | AS88: 23042.569 | AW88: 4366.33833 | AX88: 4366.33833 | BB88: 41190.5014 | BC88: 41190.5014 | BG88: 63328.454 | BH88: 63328.454 | BL88: 0 | BM88: 0
A89: 81 | B89: 415 | C89: 441 | F89: Etat à la fin de l'exercice en cours | K89: =MAX($H$4,$L$5) * Y89 + MAX($I$4,$L$5) * AD89 + MAX($J$4,$L$5) * AI89 + MAX($K$4,$L$5) * AN89 + MAX($L$4,$L$5) * AS89 + MAX($I$5,$L$5) * BC89 + MAX($H$5,$L$5) * AX89 + MAX($J$5,$L$5) * BH89 + MAX($K$5,$L$5) * BM89 -> 1063840.536 | T89: 1361690.49 | Y89: 368700 | Z89: 0 | AD89: 237477.6 | AE89: 0 | AI89: 105034.9615 | AJ89: 0 | AN89: 156642.6296 | AO89: 0 | AS89: 60942.68574 | AT89: 0 | AX89: 15286.75259 | AY89: 0 | BC89: 58683.07448 | BD89: 0 | BH89: 60281.94235 | BI89: 0 | BM89: 790.8895531 | BN89: 0
C90: 441a
A91: 83 | C91: 442z | D91: =VLOOKUP( $A91 & D$1, TextDF, Sprachwahlcode + 1, FALSE ) -> IV. Fonds de renchérissement
A92: 84 | B92: 415_06a | C92: 442 | F92: =VLOOKUP( $A92 & F$1, TextDF, Sprachwahlcode + 1, FALSE ) -> Etat à la fin de l'exercice précédent | K92: =MAX($H$4,$L$5) * Y92 + MAX($I$4,$L$5) * AD92 + MAX($J$4,$L$5) * AI92 + MAX($K$4,$L$5) * AN92 + MAX($L$4,$L$5) * AS92 + MAX($I$5,$L$5) * BC92 + MAX($H$5,$L$5) * AX92 + MAX($J$5,$L$5) * BH92 + MAX($K$5,$L$5) * BM92 -> 2970253.824 | T92: 2923344.409 | Y92: 869220.6071 | AD92: 638670 | AI92: 249577.893 | AN92: 310145.987 | AS92: 188551.157 | AX92: 79312.455 | BC92: 400228.9968 | BH92: 231987.979 | BM92: 2558.748862
A93: 85 | B93: 415_06b_15b | C93: 443 | F93: Primes de renchérissement encaissées brutes | J93: =MAX($H$4,$L$5) * X93 + MAX($I$4,$L$5) * AC93 + MAX($J$4,$L$5) * AH93 + MAX($K$4,$L$5) * AM93 + MAX($L$4,$L$5) * AR93 + MAX($I$5,$L$5) * BB93 + MAX($H$5,$L$5) * AW93 + MAX($J$5,$L$5) * BG93 + MAX($K$5,$L$5) * BL93 -> 52592.55721 | S93: 51705.76605 | X93: 13047.16225 | AC93: 14347 | AH93: 5191.658 | AM93: 6389.55315 | AR93: 2921.493 | AW93: 1060.95 | BB93: 5147.1044 | BG93: 4487.63641 | BL93: 0
A94: 86 | B94: 415_06c | C94: 444 | F94: Intérêt tarifaire / Total intermédiaire | J94: =MAX($H$4,$L$5) * X94 + MAX($I$4,$L$5) * AC94 + MAX($J$4,$L$5) * AH94 + MAX($K$4,$L$5) * AM94 + MAX($L$4,$L$5) * AR94 + MAX($I$5,$L$5) * BB94 + MAX($H$5,$L$5) * AW94 + MAX($J$5,$L$5) * BG94 + MAX($K$5,$L$5) * BL94 -> 117.802 | K94: =MAX($H$4,$L$5) * Y94 + MAX($I$4,$L$5) * AD94 + MAX($J$4,$L$5) * AI94 + MAX($K$4,$L$5) * AN94 + MAX($L$4,$L$5) * AS94 + MAX($I$5,$L$5) * BC94 + MAX($H$5,$L$5) * AX94 + MAX($J$5,$L$5) * BH94 + MAX($K$5,$L$5) * BM94 -> 52710.35921 | S94: 7196.757666 | T94: 58902.52372 | X94: 0 | Y94: 13047.16225 | AC94: 0 | AD94: 14347 | AH94: 0 | AI94: 5191.658 | AM94: 0 | AN94: 6389.55315 | AR94: 0 | AS94: 2921.493 | AW94: 117.802 | AX94: 1178.752 | BB94: 0 | BC94: 5147.1044 | BG94: 0 | BH94: 4487.63641 | BL94: 0 | BM94: 0
A95: 87 | B95: 415_06d | C95: 445 | F95: Charges pour augmentations liées au rench. des rentes de risque | J95: =MAX($H$4,$L$5) * X95 + MAX($I$4,$L$5) * AC95 + MAX($J$4,$L$5) * AH95 + MAX($K$4,$L$5) * AM95 + MAX($L$4,$L$5) * AR95 + MAX($I$5,$L$5) * BB95 + MAX($H$5,$L$5) * AW95 + MAX($J$5,$L$5) * BG95 + MAX($K$5,$L$5) * BL95 -> 1435.7898 | S95: 1651.4044 | X95: 358.4374 | AC95: 152 | AH95: 255.254 | AM95: 233.3544 | AR95: 192.778 | AW95: 20.622 | BB95: 191.488 | BG95: 31.856 | BL95: 0
A96: 88 | B96: 415_06e_15e | C96: 446 | F96: Prélèvement pour autres charges administratives / Total intermédiaire | J96: =MAX($H$4,$L$5) * X96 + MAX($I$4,$L$5) * AC96 + MAX($J$4,$L$5) * AH96 + MAX($K$4,$L$5) * AM96 + MAX($L$4,$L$5) * AR96 + MAX($I$5,$L$5) * BB96 + MAX($H$5,$L$5) * AW96 + MAX($J$5,$L$5) * BG96 + MAX($K$5,$L$5) * BL96 -> 10518.06824 | K96: =MAX($H$4,$L$5) * Y96 + MAX($I$4,$L$5) * AD96 + MAX($J$4,$L$5) * AI96 + MAX($K$4,$L$5) * AN96 + MAX($L$4,$L$5) * AS96 + MAX($I$5,$L$5) * BC96 + MAX($H$5,$L$5) * AX96 + MAX($J$5,$L$5) * BH96 + MAX($K$5,$L$5) * BM96 -> 11953.85804 | S96: 10341.70462 | T96: 11993.10902 | X96: 2609.43245 | Y96: 2967.86985 | AC96: 2869 | AD96: 3021 | AH96: 1038.332 | AI96: 1293.586 | AM96: 1277.86763 | AN96: 1511.22203 | AR96: 584.298 | AS96: 777.076 | AW96: 212.19 | AX96: 232.812 | BB96: 1029.42088 | BC96: 1220.90888 | BG96: 897.527282 | BH96: 929.383282 | BL96: 0 | BM96: 0
A97: 89 | B97: 415_06f | C97: 447 | F97: Etat à la fin de l'exercice en cours | K97: =MAX($H$4,$L$5) * Y97 + MAX($I$4,$L$5) * AD97 + MAX($J$4,$L$5) * AI97 + MAX($K$4,$L$5) * AN97 + MAX($L$4,$L$5) * AS97 + MAX($I$5,$L$5) * BC97 + MAX($H$5,$L$5) * AX97 + MAX($J$5,$L$5) * BH97 + MAX($K$5,$L$5) * BM97 -> 3011010.325 | T97: 2970253.824 | Y97: 879299.8995 | Z97: 0 | AD97: 649996 | AE97: 0 | AI97: 253475.965 | AJ97: 0 | AN97: 315024.3181 | AO97: 0 | AS97: 190695.574 | AT97: 0 | AX97: 80258.395 | AY97: 0 | BC97: 404155.1923 | BD97: 0 | BH97: 235546.2321 | BI97: 0 | BM97: 2558.748862 | BN97: 0
C98: 447a
A99: 91 | C99: 448z | D99: =VLOOKUP( $A99 & D$1, TextDF, Sprachwahlcode + 1, FALSE ) -> V. Autres chiffres indicatifs
A100: 92 | B100: 416 | C100: 448 | E100: 1 | F100: =VLOOKUP( $A100 & F$1, TextDF, Sprachwahlcode + 1, FALSE ) -> Produit des placements de capitaux brut / net | J100: =MAX($H$4,$L$5) * X100 + MAX($I$4,$L$5) * AC100 + MAX($J$4,$L$5) * AH100 + MAX($K$4,$L$5) * AM100 + MAX($L$4,$L$5) * AR100 + MAX($I$5,$L$5) * BB100 + MAX($H$5,$L$5) * AW100 + MAX($J$5,$L$5) * BG100 + MAX($K$5,$L$5) * BL100 -> 5262043.445 | K100: =MAX($H$4,$L$5) * Y100 + MAX($I$4,$L$5) * AD100 + MAX($J$4,$L$5) * AI100 + MAX($K$4,$L$5) * AN100 + MAX($L$4,$L$5) * AS100 + MAX($I$5,$L$5) * BC100 + MAX($H$5,$L$5) * AX100 + MAX($J$5,$L$5) * BH100 + MAX($K$5,$L$5) * BM100 -> 4767209.599 | S100: 5595278.616 | T100: 5186282.982 | X100: 1849506.508 | Y100: 1689826.33 | AC100: 1779317 | AD100: 1582745 | AH100: 468885.4365 | AI100: 405544.3764 | AM100: 418980.3895 | AN100: 388436.67 | AR100: 313334.205 | AS100: 292632.139 | AW100: 68048.2294 | AX100: 65068.89155 | BB100: 287114.3519 | BC100: 271246.7572 | BG100: 70980.305 | BH100: 66190.126 | BL100: 5877.02031 | BM100: 5519.30882
A102: 94 | C102: 449z | E102: 2 | F102: =VLOOKUP( $A102 & F$1, TextDF, Sprachwahlcode + 1, FALSE ) -> Placements de capitaux | J102: =VLOOKUP( $A102 & J$1, TextDF, Sprachwahlcode + 1, FALSE ) -> Valeur comptable | K102: =VLOOKUP( $A102 & K$1, TextDF, Sprachwahlcode + 1, FALSE ) -> Valeur de marché | S102: =$J102 -> Valeur comptable | T102: =$K102 -> Valeur de marché | X102: =$J102 -> Valeur comptable | Y102: =$K102 -> Valeur de marché | AC102: =$J102 -> Valeur comptable | AD102: =$K102 -> Valeur de marché | AH102: =$J102 -> Valeur comptable | AI102: =$K102 -> Valeur de marché | AM102: =$J102 -> Valeur comptable | AN102: =$K102 -> Valeur de marché | AR102: =$J102 -> Valeur comptable | AS102: =$K102 -> Valeur de marché | AW102: =$J102 -> Valeur comptable | AX102: =$K102 -> Valeur de marché | BB102: =$J102 -> Valeur comptable | BC102: =$K102 -> Valeur de marché | BG102: =$J102 -> Valeur comptable | BH102: =$K102 -> Valeur de marché | BL102: =$J102 -> Valeur comptable | BM102: =$K102 -> Valeur de marché
A103: 95 | B103: 417 | C103: 449 | F103: Placements de capitaux au début de l'exercice | J103: =MAX($H$4,$L$5) * X103 + MAX($I$4,$L$5) * AC103 + MAX($J$4,$L$5) * AH103 + MAX($K$4,$L$5) * AM103 + MAX($L$4,$L$5) * AR103 + MAX($I$5,$L$5) * BB103 + MAX($H$5,$L$5) * AW103 + MAX($J$5,$L$5) * BG103 + MAX($K$5,$L$5) * BL103 -> 178521578.2 | K103: =MAX($H$4,$L$5) * Y103 + MAX($I$4,$L$5) * AD103 + MAX($J$4,$L$5) * AI103 + MAX($K$4,$L$5) * AN103 + MAX($L$4,$L$5) * AS103 + MAX($I$5,$L$5) * BC103 + MAX($H$5,$L$5) * AX103 + MAX($J$5,$L$5) * BH103 + MAX($K$5,$L$5) * BM103 -> 197116212.1 | S103: 172227727 | T103: 192298777.9 | X103: 63315614.68 | Y103: 70810089.18 | AC103: 54366441 | AD103: 59371379 | AH103: 18200068 | AI103: 20027988 | AM103: 16774523.17 | AN103: 18328636.14 | AR103: 10508152.47 | AS103: 11728710.92 | AW103: 3316991.203 | AX103: 3568336.667 | BB103: 8505084.509 | BC103: 9432383.467 | BG103: 3338967.481 | BH103: 3635713.978 | BL103: 195735.6895 | BM103: 212974.7875
A104: 96 | B104: 418 | C104: 450 | F104: Placements de capitaux à la fin de l'exercice a) | J104: =MAX($H$4,$L$5) * X104 + MAX($I$4,$L$5) * AC104 + MAX($J$4,$L$5) * AH104 + MAX($K$4,$L$5) * AM104 + MAX($L$4,$L$5) * AR104 + MAX($I$5,$L$5) * BB104 + MAX($H$5,$L$5) * AW104 + MAX($J$5,$L$5) * BG104 + MAX($K$5,$L$5) * BL104 -> 185674018.1 | K104: =MAX($H$4,$L$5) * Y104 + MAX($I$4,$L$5) * AD104 + MAX($J$4,$L$5) * AI104 + MAX($K$4,$L$5) * AN104 + MAX($L$4,$L$5) * AS104 + MAX($I$5,$L$5) * BC104 + MAX($H$5,$L$5) * AX104 + MAX($J$5,$L$5) * BH104 + MAX($K$5,$L$5) * BM104 -> 206137991.9 | S104: 178521578.2 | T104: 197116212.1 | X104: 66904726.69 | Y104: 75860940.27 | AC104: 56305616 | AD104: 61470421 | AH104: 18238198 | AI104: 20172392 | AM104: 17824812.56 | AN104: 19422629.86 | AR104: 10841162.85 | AS104: 12172267.49 | AW104: 3468781.012 | AX104: 3718904.666 | BB104: 8521678.269 | BC104: 9437964.62 | BG104: 3392688.52 | BH104: 3688322.042 | BL104: 176354.2111 | BM104: 194150
A105: 97 | C105: 450a | F105: a) Total des placements de capitaux moins engagements découlant d'instruments financiers dérivés
A106: 98 | C106: 451z | E106: 3 | F106: Réserves d'évaluation
A107: 99 | B107: 417_07a | C107: 451 | F107: Réserves d'évaluation au début de l'exercice | K107: =MAX($H$4,$L$5) * Y107 + MAX($I$4,$L$5) * AD107 + MAX($J$4,$L$5) * AI107 + MAX($K$4,$L$5) * AN107 + MAX($L$4,$L$5) * AS107 + MAX($I$5,$L$5) * BC107 + MAX($H$5,$L$5) * AX107 + MAX($J$5,$L$5) * BH107 + MAX($K$5,$L$5) * BM107 -> 18594633.94 | T107: 20071050.88 | Y107: 7494474.495 | AD107: 5004938 | AI107: 1827920 | AN107: 1554112.975 | AS107: 1220558.458 | AX107: 251345.4649 | BC107: 927298.9572 | BH107: 296746.497 | BM107: 17239.09799
A108: 100 | B108: 418_07a | C108: 452 | F108: Réserves d'évaluation à la fin de l'exercice | K108: =MAX($H$4,$L$5) * Y108 + MAX($I$4,$L$5) * AD108 + MAX($J$4,$L$5) * AI108 + MAX($K$4,$L$5) * AN108 + MAX($L$4,$L$5) * AS108 + MAX($I$5,$L$5) * BC108 + MAX($H$5,$L$5) * AX108 + MAX($J$5,$L$5) * BH108 + MAX($K$5,$L$5) * BM108 -> 20463973.83 | T108: 18594633.94 | Y108: 8956213.574 | AD108: 5164805 | AI108: 1934194 | AN108: 1597817.303 | AS108: 1331104.642 | AX108: 250123.6543 | BC108: 916286.351 | BH108: 295633.522 | BM108: 17795.78891
A109: 101 | B109: 418_07b | C109: 453 | F109: Variation des réserves d'évaluation | K109: =MAX($H$4,$L$5) * Y109 + MAX($I$4,$L$5) * AD109 + MAX($J$4,$L$5) * AI109 + MAX($K$4,$L$5) * AN109 + MAX($L$4,$L$5) * AS109 + MAX($I$5,$L$5) * BC109 + MAX($H$5,$L$5) * AX109 + MAX($J$5,$L$5) * BH109 + MAX($K$5,$L$5) * BM109 -> 1869339.89 | T109: -1476416.936 | Y109: 1461739.079 | AD109: 159867 | AI109: 106274 | AN109: 43704.32812 | AS109: 110546.1835 | AX109: -1221.8107 | BC109: -11012.60619 | BH109: -1112.975 | BM109: 556.69092
C110: 454o
A111: 103 | B111: 419 | C111: 454 | E111: 4 | F111: =VLOOKUP( $A111 & F$1, TextDF, Sprachwahlcode + 1, FALSE ) -> Rendement sur valeurs comptables brut / net | J111: =IF( J$103 + J$104 > 0, J$100 / ( ( J$103 + J$104 ) / 2 ), 0 ) -> 0.02889679886 | K111: =IF( J$103 + J$104 > 0, K$100 / ( ( J$103 + J$104 ) / 2 ), 0 ) -> 0.02617939177 | S111: 0.03190471675 | T111: 0.02957259162 | X111: 0.02840580033 | Y111: 0.02595333897 | AC111: 0.03215476514 | AD111: 0.02860243214 | AH111: 0.02573588087 | AI111: 0.0222592577 | AM111: 0.02421898459 | AN111: 0.02245341778 | AR111: 0.02935309169 | AS111: 0.02741372589 | AW111: 0.02005614903 | AX111: 0.01917803589 | BB111: 0.03372506632 | BC111: 0.03186122467 | BG111: 0.02108851224 | BH111: 0.01966533227 | BL111: 0.03158924927 | BM111: 0.02966653387
A112: 104 | B112: 420 | C112: 455 | E112: 5 | F112: =VLOOKUP( $A112 & F$1, TextDF, Sprachwahlcode + 1, FALSE ) -> Rendement sur valeurs de marché brut / net | J112: =IF( K$103 + K$104 > 0, ( J$100 + ( K$108 - K$107 ) ) / ( ( K$103+K$104 ) / 2 ), 0 ) -> 0.03536917043 | K112: =IF( K$103 + K$104 > 0, ( K$100 + ( K$108 - K$107 ) ) / ( ( K$103 + K$104 ) / 2 ), 0 ) -> 0.03291496739 | S112: 0.02115409928 | T112: 0.01905353487 | X112: 0.04515200581 | Y112: 0.04297461361 | AC112: 0.03209458979 | AD112: 0.02884121223 | AH112: 0.02861462685 | AI112: 0.02546336012 | AM112: 0.02451227556 | AN112: 0.02289411953 | AR112: 0.03546971016 | AS112: 0.03373739062 | AW112: 0.01834066299 | AX112: 0.01752297692 | BB112: 0.02926302626 | BC112: 0.02758127723 | BG112: 0.01907891491 | BH112: 0.01777084406 | BL112: 0.03160559822 | BM112: 0.02984834098
A113: 105 | C113: 455o
A114: 105a | B114: 420_16a | C114: 455a | E114: 5a. | F114: =VLOOKUP( $A114 & F$1, TextDF, Sprachwahlcode + 1, FALSE ) -> Intérêt technique pour l'évaluation des engagements de rente, exercice en cours / précédent | J114: =IF(AND($L$5=1, (MAX($H$4,$L$5)*(X$70*X$71)+MAX($I$4,$L$5)*(AC$70*AC$71)+MAX($J$4,$L$5)*(AH$70*AH$71)+MAX($K$4,$L$5)*(AM$70*AM$71)+MAX($L$4,$L$5)*(AR$70*AR$71)+MAX($I$5,$L$5)*(BB$70*BB$71)+MAX($H$5,$L$5)*(AW$70*AW$71)+MAX($J$5,$L$5)*(BG$70*BG$71)+MAX($K$5,$L$5)*(BL$70*BL$71))>0), (MAX($H$4,$L$5)*(X$70*X$71)*X114+MAX($I$4,$L$5)*(AC$70*AC$71)*AC114+MAX($J$4,$L$5)*(AH$70*AH$71)*AH114+MAX($K$4,$L$5)*(AM$70*AM$71)*AM114+MAX($L$4,$L$5)*(AR$70*AR$71)*AR114+MAX($I$5,$L$5)*(BB$70*BB$71)*BB114+MAX($H$5,$L$5)*(AW$70*AW$71)*AW114+MAX($J$5,$L$5)*(BG$70*BG$71)*BG114+MAX($K$5,$L$5)*(BL$70*BL$71)*BL114) / (MAX($H$4,$L$5)*(X$70*X$71)+MAX($I$4,$L$5)*(AC$70*AC$71)+MAX($J$4,$L$5)*(AH$70*AH$71)+MAX($K$4,$L$5)*(AM$70*AM$71)+MAX($L$4,$L$5)*(AR$70*AR$71)+MAX($I$5,$L$5)*(BB$70*BB$71)+MAX($H$5,$L$5)*(AW$70*AW$71)+MAX($J$5,$L$5)*(BG$70*BG$71)+MAX($K$5,$L$5)*(BL$70*BL$71)), (MAX($H$4,$L$5)*X114+MAX($I$4,$L$5)*AC114+MAX($J$4,$L$5)*AH114+MAX($K$4,$L$5)*AM114+MAX($L$4,$L$5)*AR114+MAX($I$5,$L$5)*BB114+MAX($H$5,$L$5)*AW114+MAX($J$5,$L$5)*BG114+MAX($K$5,$L$5)*BL114)) -> 0.01428940089 | K114: =IF(AND($L$5=1, (MAX($H$4,$L$5)*(X$70*X$71)+MAX($I$4,$L$5)*(AC$70*AC$71)+MAX($J$4,$L$5)*(AH$70*AH$71)+MAX($K$4,$L$5)*(AM$70*AM$71)+MAX($L$4,$L$5)*(AR$70*AR$71)+MAX($I$5,$L$5)*(BB$70*BB$71)+MAX($H$5,$L$5)*(AW$70*AW$71)+MAX($J$5,$L$5)*(BG$70*BG$71)+MAX($K$5,$L$5)*(BL$70*BL$71))>0), (MAX($H$4,$L$5)*(X$70*X$71)*Y114+MAX($I$4,$L$5)*(AC$70*AC$71)*AD114+MAX($J$4,$L$5)*(AH$70*AH$71)*AI114+MAX($K$4,$L$5)*(AM$70*AM$71)*AN114+MAX($L$4,$L$5)*(AR$70*AR$71)*AS114+MAX($I$5,$L$5)*(BB$70*BB$71)*BC114+MAX($H$5,$L$5)*(AW$70*AW$71)*AX114+MAX($J$5,$L$5)*(BG$70*BG$71)*BH114+MAX($K$5,$L$5)*(BL$70*BL$71)*BM114) / (MAX($H$4,$L$5)*(X$70*X$71)+MAX($I$4,$L$5)*(AC$70*AC$71)+MAX($J$4,$L$5)*(AH$70*AH$71)+MAX($K$4,$L$5)*(AM$70*AM$71)+MAX($L$4,$L$5)*(AR$70*AR$71)+MAX($I$5,$L$5)*(BB$70*BB$71)+MAX($H$5,$L$5)*(AW$70*AW$71)+MAX($J$5,$L$5)*(BG$70*BG$71)+MAX($K$5,$L$5)*(BL$70*BL$71)), (MAX($H$4,$L$5)*Y114+MAX($I$4,$L$5)*AD114+MAX($J$4,$L$5)*AI114+MAX($K$4,$L$5)*AN114+MAX($L$4,$L$5)*AS114+MAX($I$5,$L$5)*BC114+MAX($H$5,$L$5)*AX114+MAX($J$5,$L$5)*BH114+MAX($K$5,$L$5)*BM114)) -> 0.0160752985 | X114: 0.0144 | Y114: 0.0163 | AC114: 0.015 | AD114: 0.01625 | AH114: 0.0142 | AI114: 0.0166 | AM114: 0.0135 | AN114: 0.0155 | AR114: 0.01156615837 | AS114: 0.0143878853 | AW114: 0.013 | AX114: 0.0135 | BB114: 0.012 | BC114: 0.016 | BG114: 0.0088 | BH114: 0.0111 | BL114: 0.0153 | BM114: 0.0175
A116: 105b | B116: 420_16ba | C116: 455ba | E116: 5b. | F116: =VLOOKUP( $A116 & F$1, TextDF, Sprachwahlcode + 1, FALSE ) -> Prestations en cas de vieillesse, de décès ou d'invalidité (selon compte de résultat) | J116: =MAX($H$4,$L$5) * X116 + MAX($I$4,$L$5) * AC116 + MAX($J$4,$L$5) * AH116 + MAX($K$4,$L$5) * AM116 + MAX($L$4,$L$5) * AR116 + MAX($I$5,$L$5) * BB116 + MAX($H$5,$L$5) * AW116 + MAX($J$5,$L$5) * BG116 + MAX($K$5,$L$5) * BL116 -> 6589103.003 | X116: 2260367.037 | AC116: 1988810 | AH116: 608394.8688 | AM116: 542272.3982 | AR116: 340456.26 | AW116: 114140.4983 | BB116: 539581.2286 | BG116: 189582.2781 | BL116: 5498.43393
A117: 105c | B117: 420_16bb | C117: 455bb | F117: =VLOOKUP( $A117 & F$1, TextDF, Sprachwahlcode + 1, FALSE ) -> Ventilation selon vieillesse / décès / invalidité en pour-cent | J117: =IF( $L$5 = 1, 69.4676984042265, ( MAX($H$4,$L$5) * X117 + MAX($I$4,$L$5) * AC117 + MAX($J$4,$L$5) * AH117 + MAX($K$4,$L$5) * AM117 + MAX($L$4,$L$5) * AR117 + MAX($I$5,$L$5) * BB117 + MAX($H$5,$L$5) * AW117 + MAX($J$5,$L$5) * BG117 + MAX($K$5,$L$5) * BL117 ) ) -> 69.4676984 | K117: =IF( $L$5 = 1, 13.6325988151278, ( MAX($H$4,$L$5) * Y117 + MAX($I$4,$L$5) * AD117 + MAX($J$4,$L$5) * AI117 + MAX($K$4,$L$5) * AN117 + MAX($L$4,$L$5) * AS117 + MAX($I$5,$L$5) * BC117 + MAX($H$5,$L$5) * AX117 + MAX($J$5,$L$5) * BH117 + MAX($K$5,$L$5) * BM117 ) ) -> 13.63259882 | L117: =IF(AND(J117>0,K117>0),100-ROUND(J117,0)-ROUND(K117,0),0) -> 17 | X117: 72.37554431 | Y117: 14.19735778 | Z117: 14 | AC117: 72.31409737 | AD117: 13.14635385 | AE117: 15 | AH117: 70.33334287 | AI117: 13.08880204 | AJ117: 17 | AM117: 64.34883519 | AN117: 13.58962903 | AO117: 22 | AR117: 73.66048197 | AS117: 10.1743945 | AT117: 16 | AW117: 76.08868131 | AX117: 5.602050495 | AY117: 18 | BB117: 62.36966762 | BC117: 14.64984195 | BD117: 23 | BG117: 25.379418 | BH117: 22.34379325 | BI117: 53 | BL117: 73.20656502 | BM117: 2.479257762 | BN117: 25
A119: 106 | B119: 431_07a_12a | C119: 463 | E119: 6 | F119: =VLOOKUP( $A119 & F$1, TextDF, Sprachwahlcode + 1, FALSE ) -> Frais de gestion de la fortune sans frais d'entretien des immeubles / en % des placem. à la val. de marché | K119: =MAX($H$4,$L$5) * Y119 + MAX($I$4,$L$5) * AD119 + MAX($J$4,$L$5) * AI119 + MAX($K$4,$L$5) * AN119 + MAX($L$4,$L$5) * AS119 + MAX($I$5,$L$5) * BC119 + MAX($H$5,$L$5) * AX119 + MAX($J$5,$L$5) * BH119 + MAX($K$5,$L$5) * BM119 -> 494833.8462 | L119: =IF($K119>0,$K119/(($K$103+$K$104)/2),0) -> 0.002454203037 | T119: 408995.634 | U119: 0.002100564408 | Y119: 159680.1776 | Z119: 0.002177392198 | AD119: 196572 | AE119: 0.003253377556 | AI119: 63341.06004 | AJ119: 0.003151266731 | AN119: 30543.71946 | AO119: 0.001618156035 | AS119: 20702.066 | AT119: 0.001732319543 | AX119: 2979.33785 | AY119: 0.0008176860662 | BC119: 15867.5948 | BD119: 0.00168174903 | BH119: 4790.179 | BI119: 0.001308070847 | BM119: 357.71149 | BN119: 0.001757257239
A120: 106a | B120: 431_07a_15aa | C120: 463aa | F120: =VLOOKUP( $A120 & F$1, TextDF, Sprachwahlcode + 1, FALSE ) -> Frais d'entretien et de maintien des immeubles / en % des placements à la valeur de marché | K120: =MAX($H$4,$L$5) * Y120 + MAX($I$4,$L$5) * AD120 + MAX($J$4,$L$5) * AI120 + MAX($K$4,$L$5) * AN120 + MAX($L$4,$L$5) * AS120 + MAX($I$5,$L$5) * BC120 + MAX($H$5,$L$5) * AX120 + MAX($J$5,$L$5) * BH120 + MAX($K$5,$L$5) * BM120 -> 267307.592 | L120: =IF($K120>0,$K120/(($K$103+$K$104)/2),0) -> 0.001325752288 | T120: 247632.9964 | U120: 0.001271820565 | Y120: 104704.6926 | Z120: 0.001427748793 | AD120: 82685 | AE120: 0.001368483422 | AI120: 28341.0333 | AJ120: 0.001409988328 | AN120: 24124.1647 | AO120: 0.00127805858 | AS120: 17386.82893 | AT120: 0.001454905203 | AX120: 3085.66215 | AY120: 0.0008468670128 | BC120: 4929.61232 | BD120: 0.0005224717951 | BH120: 1926.821 | BI120: 0.0005261637149 | BM120: 123.77695 | BN120: 0.0006080541092
A121: 106b | B121: 431_07a_15ab | C121: 463ab | F121: =VLOOKUP( $A121 & F$1, TextDF, Sprachwahlcode + 1, FALSE ) -> Frais de gestion de la fortune avec frais d'entretien des immeubles / en % des placem. à la val. de marché | K121: =MAX($H$4,$L$5) * Y121 + MAX($I$4,$L$5) * AD121 + MAX($J$4,$L$5) * AI121 + MAX($K$4,$L$5) * AN121 + MAX($L$4,$L$5) * AS121 + MAX($I$5,$L$5) * BC121 + MAX($H$5,$L$5) * AX121 + MAX($J$5,$L$5) * BH121 + MAX($K$5,$L$5) * BM121 -> 762141.4382 | L121: =IF($K121>0,$K121/(($K$103+$K$104)/2),0) -> 0.003779955326 | T121: 656628.6304 | U121: 0.003372384974 | Y121: 264384.8702 | Z121: 0.003605140991 | AD121: 279257 | AE121: 0.004621860979 | AI121: 91682.09334 | AJ121: 0.00456125506 | AN121: 54667.88416 | AO121: 0.002896214615 | AS121: 38088.89493 | AT121: 0.003187224746 | AX121: 6065 | AY121: 0.001664553079 | BC121: 20797.20712 | BD121: 0.002204220825 | BH121: 6717 | BI121: 0.001834234562 | BM121: 481.48844 | BN121: 0.002365311348
A122: 106c | C122: 463aq | F122: =VLOOKUP( $A122 & F$1, TextDF, Sprachwahlcode + 1, FALSE ) -> Dans le compte de résultat, les frais d'entretien et de maintien des immeubles sont directement déduits du produit des immeubles (présentation nette).
A124: 107 | B124: 431_07a_14a | C124: 463a | F124: =VLOOKUP( $A124 & F$1, TextDF, Sprachwahlcode + 1, FALSE ) -> Part des placements collectifs / Part des placements non-transparents | K124: =IF( AND( $L$5 = 1, ( MAX($H$4,$L$5) * Y$104 + MAX($I$4,$L$5) * AD$104 + MAX($J$4,$L$5) * AI$104 + MAX($K$4,$L$5) * AN$104 + MAX($L$4,$L$5) * AS$104 + MAX($I$5,$L$5) * BC$104 + MAX($H$5,$L$5) * AX$104 + MAX($J$5,$L$5) * BH$104 + MAX($K$5,$L$5) * BM$104 ) > 0 ), ( MAX($H$4,$L$5) * Y$104 * Y124 + MAX($I$4,$L$5) * AD$104 * AD124 + MAX($J$4,$L$5) * AI$104 * AI124 + MAX($K$4,$L$5) * AN$104 * AN124 + MAX($L$4,$L$5) * AS$104 * AS124 + MAX($I$5,$L$5) * BC$104 * BC124 + MAX($H$5,$L$5) * AX$104 * AX124 + MAX($J$5,$L$5) * BH$104 * BH124 + MAX($K$5,$L$5) * BM$104 * BM124 ) / ( MAX($H$4,$L$5) * Y$104 + MAX($I$4,$L$5) * AD$104 + MAX($J$4,$L$5) * AI$104 + MAX($K$4,$L$5) * AN$104 + MAX($L$4,$L$5) * AS$104 + MAX($I$5,$L$5) * BC$104 + MAX($H$5,$L$5) * AX$104 + MAX($J$5,$L$5) * BH$104 + MAX($K$5,$L$5) * BM$104 ), ( MAX($H$4,$L$5) * Y124 + MAX($I$4,$L$5) * AD124 + MAX($J$4,$L$5) * AI124 + MAX($K$4,$L$5) * AN124 + MAX($L$4,$L$5) * AS124 + MAX($I$5,$L$5) * BC124 + MAX($H$5,$L$5) * AX124 + MAX($J$5,$L$5) * BH124 + MAX($K$5,$L$5) * BM124 ) ) -> 0.03157573675 | L124: =IF( AND( $L$5 = 1, ( MAX($H$4,$L$5) * Y$104 + MAX($I$4,$L$5) * AD$104 + MAX($J$4,$L$5) * AI$104 + MAX($K$4,$L$5) * AN$104 + MAX($L$4,$L$5) * AS$104 + MAX($I$5,$L$5) * BC$104 + MAX($H$5,$L$5) * AX$104 + MAX($J$5,$L$5) * BH$104 + MAX($K$5,$L$5) * BM$104 ) > 0 ), ( MAX($H$4,$L$5) * Y$104 * Z124 + MAX($I$4,$L$5) * AD$104 * AE124 + MAX($J$4,$L$5) * AI$104 * AJ124 + MAX($K$4,$L$5) * AN$104 * AO124 + MAX($L$4,$L$5) * AS$104 * AT124 + MAX($I$5,$L$5) * BC$104 * BD124 + MAX($H$5,$L$5) * AX$104 * AY124 + MAX($J$5,$L$5) * BH$104 * BI124 + MAX($K$5,$L$5) * BM$104 * BN124 ) / ( MAX($H$4,$L$5) * Y$104 + MAX($I$4,$L$5) * AD$104 + MAX($J$4,$L$5) * AI$104 + MAX($K$4,$L$5) * AN$104 + MAX($L$4,$L$5) * AS$104 + MAX($I$5,$L$5) * BC$104 + MAX($H$5,$L$5) * AX$104 + MAX($J$5,$L$5) * BH$104 + MAX($K$5,$L$5) * BM$104 ), ( MAX($H$4,$L$5) * Z124 + MAX($I$4,$L$5) * AE124 + MAX($J$4,$L$5) * AJ124 + MAX($K$4,$L$5) * AO124 + MAX($L$4,$L$5) * AT124 + MAX($I$5,$L$5) * BD124 + MAX($H$5,$L$5) * AY124 + MAX($J$5,$L$5) * BI124 + MAX($K$5,$L$5) * BN124 ) ) -> 0.0118083526 | T124: 0.02674166076 | U124: 0.01637860014 | Y124: 0.02916039064 | Z124: 0.002592484329 | AD124: 0.0381150635 | AE124: 0.03186220247 | AI124: 0.05340678623 | AJ124: 0 | AN124: 0.01586888228 | AO124: 0.01078276978 | AS124: 0.007843482987 | AT124: 0 | AX124: 0 | AY124: 0 | BC124: 0.01841088586 | BD124: 3.030818418e-05 | BH124: 0.07088806157 | BI124: 0.01875731002 | BM124: 0.1937934587 | BN124: 0
A125: 107a | C125: 463az | F125: =VLOOKUP( $A125 & F$1, TextDF, Sprachwahlcode + 1, FALSE ) -> Mesurée sur la base de la valeur de marché des placements de capitaux selon ch. 2
A127: 107e | C127: 463ba | F127: =VLOOKUP( $A127 & F$1, TextDF, Sprachwahlcode + 1, FALSE ) -> Décomposition des charges de gestion patrimoniale | I127: =VLOOKUP( $A127 & I$1, TextDF, Sprachwahlcode + 1, FALSE ) -> Frais occasionnés | R127: =$I127 -> Frais occasionnés | W127: =$I127 -> Frais occasionnés | AB127: =$I127 -> Frais occasionnés | AG127: =$I127 -> Frais occasionnés | AL127: =$I127 -> Frais occasionnés | AQ127: =$I127 -> Frais occasionnés | AV127: =$I127 -> Frais occasionnés | BA127: =$I127 -> Frais occasionnés | BF127: =$I127 -> Frais occasionnés | BK127: =$I127 -> Frais occasionnés
A128: 107f | C128: 463bb | H128: =VLOOKUP( $A128 & H$1, TextDF, Sprachwahlcode + 1, FALSE ) -> Valeur de marché | I128: =VLOOKUP( $A128 & I$1, TextDF, Sprachwahlcode + 1, FALSE ) -> Frais TER | J128: =VLOOKUP( $A128 & J$1, TextDF, Sprachwahlcode + 1, FALSE ) -> Frais TTC | K128: =VLOOKUP( $A128 & K$1, TextDF, Sprachwahlcode + 1, FALSE ) -> Frais SC | L128: =VLOOKUP( $A128 & L$1, TextDF, Sprachwahlcode + 1, FALSE ) -> Total | Q128: =$H128 -> Valeur de marché | R128: =$I128 -> Frais TER | S128: =$J128 -> Frais TTC | T128: =$K128 -> Frais SC | U128: =$L128 -> Total | V128: =$H128 -> Valeur de marché | W128: =$I128 -> Frais TER | X128: =$J128 -> Frais TTC | Y128: =$K128 -> Frais SC | Z128: =$L128 -> Total | AA128: =$H128 -> Valeur de marché | AB128: =$I128 -> Frais TER | AC128: =$J128 -> Frais TTC | AD128: =$K128 -> Frais SC | AE128: =$L128 -> Total | AF128: =$H128 -> Valeur de marché | AG128: =$I128 -> Frais TER | AH128: =$J128 -> Frais TTC | AI128: =$K128 -> Frais SC | AJ128: =$L128 -> Total | AK128: =$H128 -> Valeur de marché | AL128: =$I128 -> Frais TER | AM128: =$J128 -> Frais TTC | AN128: =$K128 -> Frais SC | AO128: =$L128 -> Total | AP128: =$H128 -> Valeur de marché | AQ128: =$I128 -> Frais TER | AR128: =$J128 -> Frais TTC | AS128: =$K128 -> Frais SC | AT128: =$L128 -> Total | AU128: =$H128 -> Valeur de marché | AV128: =$I128 -> Frais TER | AW128: =$J128 -> Frais TTC | AX128: =$K128 -> Frais SC | AY128: =$L128 -> Total | AZ128: =$H128 -> Valeur de marché | BA128: =$I128 -> Frais TER | BB128: =$J128 -> Frais TTC | BC128: =$K128 -> Frais SC | BD128: =$L128 -> Total | BE128: =$H128 -> Valeur de marché | BF128: =$I128 -> Frais TER | BG128: =$J128 -> Frais TTC | BH128: =$K128 -> Frais SC | BI128: =$L128 -> Total | BJ128: =$H128 -> Valeur de marché | BK128: =$I128 -> Frais TER | BL128: =$J128 -> Frais TTC | BM128: =$K128 -> Frais SC | BN128: =$L128 -> Total
A129: 107g | B129: 431_07a_15b | C129: 463b | F129: =VLOOKUP( $A129 & F$1, TextDF, Sprachwahlcode + 1, FALSE ) -> Placements de capitaux directs | H129: =MAX($H$4,$L$5) * V129 + MAX($I$4,$L$5) * AA129 + MAX($J$4,$L$5) * AF129 + MAX($K$4,$L$5) * AK129 + MAX($L$4,$L$5) * AP129 + MAX($I$5,$L$5) * AZ129 + MAX($H$5,$L$5) * AU129 + MAX($J$5,$L$5) * BE129 + MAX($K$5,$L$5) * BJ129 -> 197194882.2 | I129: =MAX($H$4,$L$5) * W129 + MAX($I$4,$L$5) * AB129 + MAX($J$4,$L$5) * AG129 + MAX($K$4,$L$5) * AL129 + MAX($L$4,$L$5) * AQ129 + MAX($I$5,$L$5) * BA129 + MAX($H$5,$L$5) * AV129 + MAX($J$5,$L$5) * BF129 + MAX($K$5,$L$5) * BK129 -> 600618.5446 | J129: =MAX($H$4,$L$5) * X129 + MAX($I$4,$L$5) * AC129 + MAX($J$4,$L$5) * AH129 + MAX($K$4,$L$5) * AM129 + MAX($L$4,$L$5) * AR129 + MAX($I$5,$L$5) * BB129 + MAX($H$5,$L$5) * AW129 + MAX($J$5,$L$5) * BG129 + MAX($K$5,$L$5) * BL129 -> 56034.10218 | L129: =MAX($H$4,$L$5) * Z129 + MAX($I$4,$L$5) * AE129 + MAX($J$4,$L$5) * AJ129 + MAX($K$4,$L$5) * AO129 + MAX($L$4,$L$5) * AT129 + MAX($I$5,$L$5) * BD129 + MAX($H$5,$L$5) * AY129 + MAX($J$5,$L$5) * BI129 + MAX($K$5,$L$5) * BN129 -> 656652.6467 | Q129: 188616509.2 | R129: 545196.2989 | S129: 74662.39233 | U129: 619858.6912 | V129: 73452137.32 | W129: 239749.1543 | X129: 35156.62095 | Z129: 274905.7752 | AA129: 57168888 | AB129: 186392 | AC129: 8117 | AE129: 194509 | AF129: 19095049 | AG129: 63088.95622 | AH129: 779.15295 | AJ129: 63868.10917 | AK129: 18904984.69 | AL129: 48448.28335 | AM129: 4910.65366 | AO129: 53358.93701 | AP129: 12076794.52 | AQ129: 40034.47337 | AR129: 1112.37433 | AT129: 41146.8477 | AU129: 3718904.666 | AV129: 6021 | AW129: 44 | AY129: 6065 | AZ129: 9263918 | BA129: 13367.17736 | BB129: 3235.30029 | BD129: 16602.47765 | BE129: 3357681 | BF129: 3517.5 | BG129: 2679 | BI129: 6196.5 | BJ129: 156525 | BK129: 0 | BL129: 0 | BN129: 0
A130: 107h | B130: 431_07a_15c | C130: 463c | F130: Placements collectifs à un niveau | H130: =MAX($H$4,$L$5) * V130 + MAX($I$4,$L$5) * AA130 + MAX($J$4,$L$5) * AF130 + MAX($K$4,$L$5) * AK130 + MAX($L$4,$L$5) * AP130 + MAX($I$5,$L$5) * AZ130 + MAX($H$5,$L$5) * AU130 + MAX($J$5,$L$5) * BE130 + MAX($K$5,$L$5) * BJ130 -> 5370539.186 | I130: =MAX($H$4,$L$5) * W130 + MAX($I$4,$L$5) * AB130 + MAX($J$4,$L$5) * AG130 + MAX($K$4,$L$5) * AL130 + MAX($L$4,$L$5) * AQ130 + MAX($I$5,$L$5) * BA130 + MAX($H$5,$L$5) * AV130 + MAX($J$5,$L$5) * BF130 + MAX($K$5,$L$5) * BK130 -> 65746.5173 | L130: =MAX($H$4,$L$5) * Z130 + MAX($I$4,$L$5) * AE130 + MAX($J$4,$L$5) * AJ130 + MAX($K$4,$L$5) * AO130 + MAX($L$4,$L$5) * AT130 + MAX($I$5,$L$5) * BD130 + MAX($H$5,$L$5) * AY130 + MAX($J$5,$L$5) * BI130 + MAX($K$5,$L$5) * BN130 -> 65746.5173 | Q130: 4476751.222 | R130: 36273.70619 | U130: 36273.70619 | V130: 1833102.78 | W130: 10814.2564 | Z130: 10814.2564 | AA130: 2103247 | AB130: 46929 | AE130: 46929 | AF130: 557656.7165 | AG130: 3026.67397 | AJ130: 3026.67397 | AK130: 308215.4269 | AL130: 537.7385191 | AO130: 537.7385191 | AP130: 95472.97298 | AQ130: 356.7633202 | AT130: 356.7633202 | AU130: 0 | AV130: 0 | AY130: 0 | AZ130: 173761.2894 | BA130: 1742.236587 | BD130: 1742.236587 | BE130: 261458 | BF130: 2156 | BI130: 2156 | BJ130: 37625 | BK130: 183.8485063 | BN130: 183.8485063
A131: 107i | B131: 431_07a_15d | C131: 463d | F131: Placements collectifs à plusieurs niveaux | H131: =MAX($H$4,$L$5) * V131 + MAX($I$4,$L$5) * AA131 + MAX($J$4,$L$5) * AF131 + MAX($K$4,$L$5) * AK131 + MAX($L$4,$L$5) * AP131 + MAX($I$5,$L$5) * AZ131 + MAX($H$5,$L$5) * AU131 + MAX($J$5,$L$5) * BE131 + MAX($K$5,$L$5) * BJ131 -> 1138419.783 | I131: =MAX($H$4,$L$5) * W131 + MAX($I$4,$L$5) * AB131 + MAX($J$4,$L$5) * AG131 + MAX($K$4,$L$5) * AL131 + MAX($L$4,$L$5) * AQ131 + MAX($I$5,$L$5) * BA131 + MAX($H$5,$L$5) * AV131 + MAX($J$5,$L$5) * BF131 + MAX($K$5,$L$5) * BK131 -> 49214.06033 | L131: =MAX($H$4,$L$5) * Z131 + MAX($I$4,$L$5) * AE131 + MAX($J$4,$L$5) * AJ131 + MAX($K$4,$L$5) * AO131 + MAX($L$4,$L$5) * AT131 + MAX($I$5,$L$5) * BD131 + MAX($H$5,$L$5) * AY131 + MAX($J$5,$L$5) * BI131 + MAX($K$5,$L$5) * BN131 -> 49214.06033 | Q131: 794463.653 | R131: 30168.20059 | U131: 30168.20059 | V131: 379031.8718 | W131: 6372.94737 | Z131: 6372.94737 | AA131: 239702 | AB131: 19241 | AE131: 19241 | AF131: 519685.9108 | AG131: 23600.11296 | AJ131: 23600.11296 | AK131: 0 | AL131: 0 | AO131: 0 | AP131: 0 | AQ131: 0 | AT131: 0 | AU131: 0 | AV131: 0 | AY131: 0 | AZ131: 0 | BA131: 0 | BD131: 0 | BE131: 0 | BF131: 0 | BI131: 0 | BJ131: 0 | BK131: 0 | BN131: 0
A132: 107j | B132: 431_07a_15e | C132: 463e | F132: Placements collectifs non-transparents | H132: =MAX($H$4,$L$5) * V132 + MAX($I$4,$L$5) * AA132 + MAX($J$4,$L$5) * AF132 + MAX($K$4,$L$5) * AK132 + MAX($L$4,$L$5) * AP132 + MAX($I$5,$L$5) * AZ132 + MAX($H$5,$L$5) * AU132 + MAX($J$5,$L$5) * BE132 + MAX($K$5,$L$5) * BJ132 -> 2434150.093 | Q132: 3228487.62 | V132: 196668.2988 | AA132: 1958583 | AF132: 0 | AK132: 209429.7463 | AP132: 0 | AU132: 0 | AZ132: 286.04757 | BE132: 69183 | BJ132: 0
A133: 107k | B133: 431_07a_15f | C133: 463f | F133: Total valeur de marché / Total avant activation | H133: =MAX($H$4,$L$5) * V133 + MAX($I$4,$L$5) * AA133 + MAX($J$4,$L$5) * AF133 + MAX($K$4,$L$5) * AK133 + MAX($L$4,$L$5) * AP133 + MAX($I$5,$L$5) * AZ133 + MAX($H$5,$L$5) * AU133 + MAX($J$5,$L$5) * BE133 + MAX($K$5,$L$5) * BJ133 -> 206137991.2 | I133: =MAX($H$4,$L$5) * W133 + MAX($I$4,$L$5) * AB133 + MAX($J$4,$L$5) * AG133 + MAX($K$4,$L$5) * AL133 + MAX($L$4,$L$5) * AQ133 + MAX($I$5,$L$5) * BA133 + MAX($H$5,$L$5) * AV133 + MAX($J$5,$L$5) * BF133 + MAX($K$5,$L$5) * BK133 -> 715579.1222 | J133: 56034.10218 | K133: 44705.15769 | L133: 816318.3821 | Q133: 197116211.7 | R133: 611638.2057 | S133: 74662.39233 | T133: 41880.43867 | U133: 728181.0367 | V133: 75860940.27 | W133: 256936.358 | X133: 35156.62095 | Y133: 7833.971 | Z133: 299926.95 | AA133: 61470420 | AB133: 252562 | AC133: 8117 | AD133: 21341 | AE133: 282020 | AF133: 20172391.63 | AG133: 89715.74315 | AH133: 779.15295 | AI133: 1322.05611 | AJ133: 91816.95221 | AK133: 19422629.86 | AL133: 48986.02187 | AM133: 4910.65366 | AN133: 771.20863 | AO133: 54667.88416 | AP133: 12172267.49 | AQ133: 40391.23669 | AR133: 1112.37433 | AS133: 8267.045658 | AT133: 49770.65668 | AU133: 3718904.666 | AV133: 6021 | AW133: 44 | AX133: 0 | AY133: 6065 | AZ133: 9437965.337 | BA133: 15109.41395 | BB133: 3235.30029 | BC133: 4872.23636 | BD133: 23216.9506 | BE133: 3688322 | BF133: 5673.5 | BG133: 2679 | BH133: 0 | BI133: 8352.5 | BJ133: 194150 | BK133: 183.8485063 | BL133: 0 | BM133: 297.6399337 | BN133: 481.48844
A134: 107l | B134: 431_07a_15g | C134: 463g | F134: Charges activées | I134: 13124.51824 | J134: 33218.45465 | K134: 7833.971 | L134: 54176.94389 | R134: 9123.8055 | S134: 56113.72675 | T134: 6314.874 | U134: 71552.40625 | W134: 0 | X134: 27708.10879 | Y134: 7833.971 | Z134: 35542.07979 | AB134: 0 | AC134: 2763 | AD134: 0 | AE134: 2763 | AG134: 0 | AH134: 134.85887 | AI134: 0 | AJ134: 134.85887 | AL134: 0 | AM134: 0 | AN134: 0 | AO134: 0 | AQ134: 10704.77476 | AR134: 976.98699 | AS134: 0 | AT134: 11681.76175 | AV134: 0 | AW134: 0 | AX134: 0 | AY134: 0 | BA134: 2419.74348 | BB134: 0 | BC134: 0 | BD134: 2419.74348 | BF134: 0 | BG134: 1635.5 | BH134: 0 | BI134: 1635.5 | BK134: 0 | BL134: 0 | BM134: 0 | BN134: 0
A135: 107m | B135: 431_07a_15h | C135: 463h | F135: Total avec effet sur le résultat | I135: 702454.604 | J135: 22815.64753 | K135: 36871.18669 | L135: 762141.4382 | R135: 602514.4002 | S135: 18548.66558 | T135: 35565.56467 | U135: 656628.6304 | W135: 256936.358 | X135: 7448.51216 | Y135: 0 | Z135: 264384.8702 | AB135: 252562 | AC135: 5354 | AD135: 21341 | AE135: 279257 | AG135: 89715.74315 | AH135: 644.29408 | AI135: 1322.05611 | AJ135: 91682.09334 | AL135: 48986.02187 | AM135: 4910.65366 | AN135: 771.20863 | AO135: 54667.88416 | AQ135: 29686.46193 | AR135: 135.38734 | AS135: 8267.045658 | AT135: 38088.89493 | AV135: 6021 | AW135: 44 | AX135: 0 | AY135: 6065 | BA135: 12689.67047 | BB135: 3235.30029 | BC135: 4872.23636 | BD135: 20797.20712 | BF135: 5673.5 | BG135: 1043.5 | BH135: 0 | BI135: 6717 | BK135: 183.8485063 | BL135: 0 | BM135: 297.6399337 | BN135: 481.48844
A136: 107n | C136: 463ma | I136: =VLOOKUP( $A136 & I$1, TextDF, Sprachwahlcode + 1, FALSE ) -> Frais TER: Frais liées à la gestion des placements (internes et externes) | R136: =$I136 -> Frais TER: Frais liées à la gestion des placements (internes et externes) | W136: =$I136 -> Frais TER: Frais liées à la gestion des placements (internes et externes) | AB136: =$I136 -> Frais TER: Frais liées à la gestion des placements (internes et externes) | AG136: =$I136 -> Frais TER: Frais liées à la gestion des placements (internes et externes) | AL136: =$I136 -> Frais TER: Frais liées à la gestion des placements (internes et externes) | AQ136: =$I136 -> Frais TER: Frais liées à la gestion des placements (internes et externes) | AV136: =$I136 -> Frais TER: Frais liées à la gestion des placements (internes et externes) | BA136: =$I136 -> Frais TER: Frais liées à la gestion des placements (internes et externes) | BF136: =$I136 -> Frais TER: Frais liées à la gestion des placements (internes et externes) | BK136: =$I136 -> Frais TER: Frais liées à la gestion des placements (internes et externes)
A137: 107o | C137: 463mb | I137: =VLOOKUP( $A137 & I$1, TextDF, Sprachwahlcode + 1, FALSE ) -> Frais TTC: Frais de transaction | R137: =$I137 -> Frais TTC: Frais de transaction | W137: =$I137 -> Frais TTC: Frais de transaction | AB137: =$I137 -> Frais TTC: Frais de transaction | AG137: =$I137 -> Frais TTC: Frais de transaction | AL137: =$I137 -> Frais TTC: Frais de transaction | AQ137: =$I137 -> Frais TTC: Frais de transaction | AV137: =$I137 -> Frais TTC: Frais de transaction | BA137: =$I137 -> Frais TTC: Frais de transaction | BF137: =$I137 -> Frais TTC: Frais de transaction | BK137: =$I137 -> Frais TTC: Frais de transaction
A138: 107p | C138: 463mc | I138: =VLOOKUP( $A138 & I$1, TextDF, Sprachwahlcode + 1, FALSE ) -> Frais SC: Frais qui ne sont pas assignés à un placement donné | R138: =$I138 -> Frais SC: Frais qui ne sont pas assignés à un placement donné | W138: =$I138 -> Frais SC: Frais qui ne sont pas assignés à un placement donné | AB138: =$I138 -> Frais SC: Frais qui ne sont pas assignés à un placement donné | AG138: =$I138 -> Frais SC: Frais qui ne sont pas assignés à un placement donné | AL138: =$I138 -> Frais SC: Frais qui ne sont pas assignés à un placement donné | AQ138: =$I138 -> Frais SC: Frais qui ne sont pas assignés à un placement donné | AV138: =$I138 -> Frais SC: Frais qui ne sont pas assignés à un placement donné | BA138: =$I138 -> Frais SC: Frais qui ne sont pas assignés à un placement donné | BF138: =$I138 -> Frais SC: Frais qui ne sont pas assignés à un placement donné | BK138: =$I138 -> Frais SC: Frais qui ne sont pas assignés à un placement donné
A140: 108 | C140: 456z | E140: 7 | F140: =VLOOKUP( $A140 & F$1, TextDF, Sprachwahlcode + 1, FALSE ) -> Paramètres utilisés dans la partie sur-obligatoire | I140: =VLOOKUP( $A140 & I$1, TextDF, Sprachwahlcode + 1, FALSE ) -> Données aggrégées pondérées selon les avoirs de vieillesse
A141: 109 | B141: 430_10g | C141: 456 | F141: =VLOOKUP( $A141 & F$1, TextDF, Sprachwahlcode + 1, FALSE ) -> Taux d'intérêt valable pour la rémunération des avoirs de vieillesse | K141: =IF( AND( $L$5 = 1, ( MAX($H$4,$L$5) * Z$68 + MAX($I$4,$L$5) * AE$68 + MAX($J$4,$L$5) * AJ$68 + MAX($K$4,$L$5) * AO$68 + MAX($L$4,$L$5) * AT$68 + MAX($I$5,$L$5) * BD$68 + MAX($H$5,$L$5) * AY$68 + MAX($J$5,$L$5) * BI$68 + MAX($K$5,$L$5) * BN$68 ) > 0 ), ( MAX($H$4,$L$5) * Z$68 * Y141 + MAX($I$4,$L$5) * AE$68 * AD141 + MAX($J$4,$L$5) * AJ$68 * AI141 + MAX($K$4,$L$5) * AO$68 * AN141 + MAX($L$4,$L$5) * AT$68 * AS141 + MAX($I$5,$L$5) * BD$68 * BC141 + MAX($H$5,$L$5) * AY$68 * AX141 + MAX($J$5,$L$5) * BI$68 * BH141 + MAX($K$5,$L$5) * BN$68 * BM141 ) / ( MAX($H$4,$L$5) * Z$68 + MAX($I$4,$L$5) * AE$68 + MAX($J$4,$L$5) * AJ$68 + MAX($K$4,$L$5) * AO$68 + MAX($L$4,$L$5) * AT$68 + MAX($I$5,$L$5) * BD$68 + MAX($H$5,$L$5) * AY$68 + MAX($J$5,$L$5) * BI$68 + MAX($K$5,$L$5) * BN$68 ), ( MAX($H$4,$L$5) * Y141 + MAX($I$4,$L$5) * AD141 + MAX($J$4,$L$5) * AI141 + MAX($K$4,$L$5) * AN141 + MAX($L$4,$L$5) * AS141 + MAX($I$5,$L$5) * BC141 + MAX($H$5,$L$5) * AX141 + MAX($J$5,$L$5) * BH141 + MAX($K$5,$L$5) * BM141 ) ) -> 0.653134147 | T141: 1.027453348 | Y141: 0.75 | AD141: 0.5 | AI141: 0.75 | AN141: 0.5 | AS141: 0.5 | AX141: 1 | BC141: 1.5 | BH141: 0 | BM141: 1.25
A142: 110 | B142: 430_07e | C142: 457 | F142: =VLOOKUP( $A142 & F$1, TextDF, Sprachwahlcode + 1, FALSE ) -> Taux de conversion en rente pour hommes à l'âge de retraite 65 | K142: =IF( AND( $L$5 = 1, ( MAX($H$4,$L$5) * Z$68 + MAX($I$4,$L$5) * AE$68 + MAX($J$4,$L$5) * AJ$68 + MAX($K$4,$L$5) * AO$68 + MAX($L$4,$L$5) * AT$68 + MAX($I$5,$L$5) * BD$68 + MAX($H$5,$L$5) * AY$68 + MAX($J$5,$L$5) * BI$68 + MAX($K$5,$L$5) * BN$68 ) > 0 ), ( MAX($H$4,$L$5) * Z$68 * Y142 + MAX($I$4,$L$5) * AE$68 * AD142 + MAX($J$4,$L$5) * AJ$68 * AI142 + MAX($K$4,$L$5) * AO$68 * AN142 + MAX($L$4,$L$5) * AT$68 * AS142 + MAX($I$5,$L$5) * BD$68 * BC142 + MAX($H$5,$L$5) * AY$68 * AX142 + MAX($J$5,$L$5) * BI$68 * BH142 + MAX($K$5,$L$5) * BN$68 * BM142 ) / ( MAX($H$4,$L$5) * Z$68 + MAX($I$4,$L$5) * AE$68 + MAX($J$4,$L$5) * AJ$68 + MAX($K$4,$L$5) * AO$68 + MAX($L$4,$L$5) * AT$68 + MAX($I$5,$L$5) * BD$68 + MAX($H$5,$L$5) * AY$68 + MAX($J$5,$L$5) * BI$68 + MAX($K$5,$L$5) * BN$68 ), ( MAX($H$4,$L$5) * Y142 + MAX($I$4,$L$5) * AD142 + MAX($J$4,$L$5) * AI142 + MAX($K$4,$L$5) * AN142 + MAX($L$4,$L$5) * AS142 + MAX($I$5,$L$5) * BC142 + MAX($H$5,$L$5) * AX142 + MAX($J$5,$L$5) * BH142 + MAX($K$5,$L$5) * BM142 ) ) -> 5.622021314 | T142: 5.760948772 | Y142: 5.835 | AD142: 5.385 | AI142: 5.602 | AN142: 5.60064 | AS142: 5.564 | AX142: 5.84 | BC142: 5.66 | BH142: 5.17 | BM142: 6.8
A143: 111 | B143: 430_07f | C143: 458 | F143: =VLOOKUP( $A143 & F$1, TextDF, Sprachwahlcode + 1, FALSE ) -> Taux de conversion en rente pour femmes à l'âge de retraite 64 | K143: =IF( AND( $L$5 = 1, ( MAX($H$4,$L$5) * Z$68 + MAX($I$4,$L$5) * AE$68 + MAX($J$4,$L$5) * AJ$68 + MAX($K$4,$L$5) * AO$68 + MAX($L$4,$L$5) * AT$68 + MAX($I$5,$L$5) * BD$68 + MAX($H$5,$L$5) * AY$68 + MAX($J$5,$L$5) * BI$68 + MAX($K$5,$L$5) * BN$68 ) > 0 ), ( MAX($H$4,$L$5) * Z$68 * Y143 + MAX($I$4,$L$5) * AE$68 * AD143 + MAX($J$4,$L$5) * AJ$68 * AI143 + MAX($K$4,$L$5) * AO$68 * AN143 + MAX($L$4,$L$5) * AT$68 * AS143 + MAX($I$5,$L$5) * BD$68 * BC143 + MAX($H$5,$L$5) * AY$68 * AX143 + MAX($J$5,$L$5) * BI$68 * BH143 + MAX($K$5,$L$5) * BN$68 * BM143 ) / ( MAX($H$4,$L$5) * Z$68 + MAX($I$4,$L$5) * AE$68 + MAX($J$4,$L$5) * AJ$68 + MAX($K$4,$L$5) * AO$68 + MAX($L$4,$L$5) * AT$68 + MAX($I$5,$L$5) * BD$68 + MAX($H$5,$L$5) * AY$68 + MAX($J$5,$L$5) * BI$68 + MAX($K$5,$L$5) * BN$68 ), ( MAX($H$4,$L$5) * Y143 + MAX($I$4,$L$5) * AD143 + MAX($J$4,$L$5) * AI143 + MAX($K$4,$L$5) * AN143 + MAX($L$4,$L$5) * AS143 + MAX($I$5,$L$5) * BC143 + MAX($H$5,$L$5) * AX143 + MAX($J$5,$L$5) * BH143 + MAX($K$5,$L$5) * BM143 ) ) -> 5.489792745 | T143: 5.596788503 | Y143: 5.7186 | AD143: 5.262 | AI143: 5.428 | AN143: 5.48055 | AS143: 5.306 | AX143: 5.58 | BC143: 5.66 | BH143: 4.91 | BM143: 6.8
A145: 113 | C145: 459z | E145: 8 | F145: =VLOOKUP( $A145 & F$1, TextDF, Sprachwahlcode + 1, FALSE ) -> Nombre d'assurés à la fin de l'exercice en cours
A146: 114 | B146: 430_07a | C146: 459 | F146: =VLOOKUP( $A146 & F$1, TextDF, Sprachwahlcode + 1, FALSE ) -> Nombre d'assurés actifs | K146: =MAX($H$4,$L$5) * Y146 + MAX($I$4,$L$5) * AD146 + MAX($J$4,$L$5) * AI146 + MAX($K$4,$L$5) * AN146 + MAX($L$4,$L$5) * AS146 + MAX($I$5,$L$5) * BC146 + MAX($H$5,$L$5) * AX146 + MAX($J$5,$L$5) * BH146 + MAX($K$5,$L$5) * BM146 -> 1836759.45 | T146: 1780837.45 | Y146: 478103 | AD146: 406183 | AI146: 154438 | AN146: 187792.45 | AS146: 82568 | AX146: 32208 | BC146: 248682 | BH146: 246785 | BM146: 0
A147: 115 | B147: 430_07b | C147: 460 | F147: =VLOOKUP( $A147 & F$1, TextDF, Sprachwahlcode + 1, FALSE ) -> Nombre de bénéficiaires de rentes | K147: =MAX($H$4,$L$5) * Y147 + MAX($I$4,$L$5) * AD147 + MAX($J$4,$L$5) * AI147 + MAX($K$4,$L$5) * AN147 + MAX($L$4,$L$5) * AS147 + MAX($I$5,$L$5) * BC147 + MAX($H$5,$L$5) * AX147 + MAX($J$5,$L$5) * BH147 + MAX($K$5,$L$5) * BM147 -> 251297.56 | T147: 246948.26 | Y147: 79495 | AD147: 69740 | AI147: 20892 | AN147: 24448.56 | AS147: 12303 | AX147: 4362 | BC147: 29785 | BH147: 10083 | BM147: 189
A148: 116 | B148: 430_07c | C148: 461 | F148: =VLOOKUP( $A148 & F$1, TextDF, Sprachwahlcode + 1, FALSE ) -> Polices de libre passage | K148: =MAX($H$4,$L$5) * Y148 + MAX($I$4,$L$5) * AD148 + MAX($J$4,$L$5) * AI148 + MAX($K$4,$L$5) * AN148 + MAX($L$4,$L$5) * AS148 + MAX($I$5,$L$5) * BC148 + MAX($H$5,$L$5) * AX148 + MAX($J$5,$L$5) * BH148 + MAX($K$5,$L$5) * BM148 -> 323799 | T148: 339649 | Y148: 94980 | AD148: 125036 | AI148: 23482 | AN148: 10135 | AS148: 51335 | AX148: 1113 | BC148: 14331 | BH148: 339 | BM148: 3048
A149: 117 | B149: 430_07d | C149: 462 | F149: =VLOOKUP( $A149 & F$1, TextDF, Sprachwahlcode + 1, FALSE ) -> Nombre d'assurés total | K149: =MAX($H$4,$L$5) * Y149 + MAX($I$4,$L$5) * AD149 + MAX($J$4,$L$5) * AI149 + MAX($K$4,$L$5) * AN149 + MAX($L$4,$L$5) * AS149 + MAX($I$5,$L$5) * BC149 + MAX($H$5,$L$5) * AX149 + MAX($J$5,$L$5) * BH149 + MAX($K$5,$L$5) * BM149 -> 2411856.01 | T149: 2367434.71 | Y149: 652578 | AD149: 600959 | AI149: 198812 | AN149: 222376.01 | AS149: 146206 | AX149: 37683 | BC149: 292798 | BH149: 257207 | BM149: 3237
A151: 119 | C151: 464z | E151: 9 | F151: =VLOOKUP( $A151 & F$1, TextDF, Sprachwahlcode + 1, FALSE ) -> Ventilation des primes de frais selon répondants de frais
A152: 120 | B152: 431_12a | C152: 464a | F152: =VLOOKUP( $A152 & F$1, TextDF, Sprachwahlcode + 1, FALSE ) -> Primes de frais des assurés actifs, valeur absolue / par personne en CHF | J152: =MAX($H$4,$L$5) * X152 + MAX($I$4,$L$5) * AC152 + MAX($J$4,$L$5) * AH152 + MAX($K$4,$L$5) * AM152 + MAX($L$4,$L$5) * AR152 + MAX($I$5,$L$5) * BB152 + MAX($H$5,$L$5) * AW152 + MAX($J$5,$L$5) * BG152 + MAX($K$5,$L$5) * BL152 -> 741490.6028 | L152: =IF($K$146>0,$J152*1000/$K$146,0) -> 403.6949982 | S152: 743853.9702 | U152: 417.6989709 | X152: 209912.5514 | Z152: 439.0529895 | AC152: 191683 | AE152: 471.9129063 | AH152: 65274.958 | AJ152: 422.6612492 | AM152: 86855.71217 | AO152: 462.5090741 | AR152: 49202.225 | AT152: 595.8994405 | AW152: 18065.75993 | AY152: 560.9090887 | BB152: 94149.94706 | BD152: 378.595745 | BG152: 26346.4492 | BI152: 106.7587139 | BL152: 0 | BN152: 0
A153: 121 | B153: 431_12b | C153: 464b | F153: =VLOOKUP( $A153 & F$1, TextDF, Sprachwahlcode + 1, FALSE ) -> Primes de frais des polices de libre passage, val. abs. / par pers. en CHF | J153: =MAX($H$4,$L$5) * X153 + MAX($I$4,$L$5) * AC153 + MAX($J$4,$L$5) * AH153 + MAX($K$4,$L$5) * AM153 + MAX($L$4,$L$5) * AR153 + MAX($I$5,$L$5) * BB153 + MAX($H$5,$L$5) * AW153 + MAX($J$5,$L$5) * BG153 + MAX($K$5,$L$5) * BL153 -> 8089.186203 | L153: =IF($K$148>0,$J153*1000/$K$148,0) -> 24.98212225 | S153: 9102.079861 | U153: 26.79848862 | X153: 3886.100728 | Z153: 40.91493713 | AC153: 0 | AE153: 0 | AH153: 1149.86295 | AJ153: 48.96784558 | AM153: 1147.084484 | AO153: 113.1805115 | AR153: 1884.223 | AT153: 36.70445115 | AW153: 21.91504 | AY153: 19.69006289 | BB153: 0 | BD153: 0 | BG153: 0 | BI153: 0 | BL153: 0 | BN153: 0
A154: 122 | B154: 431_12c | C154: 464c | F154: =VLOOKUP( $A154 & F$1, TextDF, Sprachwahlcode + 1, FALSE ) -> Autres primes de frais / Total des primes de frais | J154: =MAX($H$4,$L$5) * X154 + MAX($I$4,$L$5) * AC154 + MAX($J$4,$L$5) * AH154 + MAX($K$4,$L$5) * AM154 + MAX($L$4,$L$5) * AR154 + MAX($I$5,$L$5) * BB154 + MAX($H$5,$L$5) * AW154 + MAX($J$5,$L$5) * BG154 + MAX($K$5,$L$5) * BL154 -> 4168.731509 | K154: =MAX($H$4,$L$5) * Y154 + MAX($I$4,$L$5) * AD154 + MAX($J$4,$L$5) * AI154 + MAX($K$4,$L$5) * AN154 + MAX($L$4,$L$5) * AS154 + MAX($I$5,$L$5) * BC154 + MAX($H$5,$L$5) * AX154 + MAX($J$5,$L$5) * BH154 + MAX($K$5,$L$5) * BM154 -> 753748.5205 | S154: 3979.377766 | T154: 756935.4279 | X154: 2609.43245 | Y154: 216408.0846 | AC154: 0 | AD154: 191683 | AH154: 1531.39025 | AI154: 67956.2112 | AM154: 7.730704965e-12 | AN154: 88002.79665 | AR154: -1.818989404e-12 | AS154: 51086.448 | AW154: -1.421085472e-13 | AX154: 18087.67497 | BB154: 0 | BC154: 94149.94706 | BG154: 0 | BH154: 26346.4492 | BL154: 27.90880908 | BM154: 27.90880908
A156: 124 | C156: 465z | E156: 10 | F156: =VLOOKUP( $A156 & F$1, TextDF, Sprachwahlcode + 1, FALSE ) -> Ventilations des charges d'exploitation selon sections de frais | K156: =VLOOKUP( $A156 & K$1, TextDF, Sprachwahlcode + 1, FALSE ) -> Aux courtiers et agents | L156: =VLOOKUP( $A156 & L$1, TextDF, Sprachwahlcode + 1, FALSE ) -> Au propre service extérieur | T156: =$K156 -> Aux courtiers et agents | U156: =$L156 -> Au propre service extérieur | Y156: =$K156 -> Aux courtiers et agents | Z156: =$L156 -> Au propre service extérieur | AD156: =$K156 -> Aux courtiers et agents | AE156: =$L156 -> Au propre service extérieur | AI156: =$K156 -> Aux courtiers et agents | AJ156: =$L156 -> Au propre service extérieur | AN156: =$K156 -> Aux courtiers et agents | AO156: =$L156 -> Au propre service extérieur | AS156: =$K156 -> Aux courtiers et agents | AT156: =$L156 -> Au propre service extérieur | AX156: =$K156 -> Aux courtiers et agents | AY156: =$L156 -> Au propre service extérieur | BC156: =$K156 -> Aux courtiers et agents | BD156: =$L156 -> Au propre service extérieur | BH156: =$K156 -> Aux courtiers et agents | BI156: =$L156 -> Au propre service extérieur | BM156: =$K156 -> Aux courtiers et agents | BN156: =$L156 -> Au propre service extérieur
A157: 125 | B157: 432_10a | C157: 465 | F157: Frais d'acquisition, dont: commissions aux courtiers, agents, service ext. | J157: =MAX($H$4,$L$5) * X157 + MAX($I$4,$L$5) * AC157 + MAX($J$4,$L$5) * AH157 + MAX($K$4,$L$5) * AM157 + MAX($L$4,$L$5) * AR157 + MAX($I$5,$L$5) * BB157 + MAX($H$5,$L$5) * AW157 + MAX($J$5,$L$5) * BG157 + MAX($K$5,$L$5) * BL157 -> 231910.967 | K157: =MAX($H$4,$L$5) * Y157 + MAX($I$4,$L$5) * AD157 + MAX($J$4,$L$5) * AI157 + MAX($K$4,$L$5) * AN157 + MAX($L$4,$L$5) * AS157 + MAX($I$5,$L$5) * BC157 + MAX($H$5,$L$5) * AX157 + MAX($J$5,$L$5) * BH157 + MAX($K$5,$L$5) * BM157 -> 105713.3132 | L157: =MAX($H$4,$L$5) * Z157 + MAX($I$4,$L$5) * AE157 + MAX($J$4,$L$5) * AJ157 + MAX($K$4,$L$5) * AO157 + MAX($L$4,$L$5) * AT157 + MAX($I$5,$L$5) * BD157 + MAX($H$5,$L$5) * AY157 + MAX($J$5,$L$5) * BI157 + MAX($K$5,$L$5) * BN157 -> 79947.89913 | S157: 246924.6111 | T157: 107301.2 | U157: 100286.9336 | X157: 55306.73725 | Y157: 34802.80055 | Z157: 20503.9367 | AC157: 77152 | AD157: 30390 | AE157: 35015 | AH157: 17327.9161 | AI157: 13936.03627 | AJ157: 3340.34502 | AM157: 20434.45268 | AN157: 6412.105605 | AO157: 3369.363466 | AR157: 31587.589 | AS157: 5511.779 | AT157: 5948.436 | AW157: 5654.26 | AX157: 3566.304 | AY157: 0 | BB157: 24013.27732 | BC157: 10949.81621 | BD157: 11687.76284 | BG157: 207.208 | BH157: 0 | BI157: 0 | BL157: 227.52665 | BM157: 144.47155 | BN157: 83.0551
A158: 126 | B158: 432_12a | C158: 465a | F158: Frais occasionnés par le traitement des prestations | J158: =MAX($H$4,$L$5) * X158 + MAX($I$4,$L$5) * AC158 + MAX($J$4,$L$5) * AH158 + MAX($K$4,$L$5) * AM158 + MAX($L$4,$L$5) * AR158 + MAX($I$5,$L$5) * BB158 + MAX($H$5,$L$5) * AW158 + MAX($J$5,$L$5) * BG158 + MAX($K$5,$L$5) * BL158 -> 111716.3093 | S158: 107605.5102 | X158: 35102.09087 | AC158: 29643 | AH158: 14173.60462 | AM158: 7227.64516 | AR158: 8875.05 | AW158: 1670 | BB158: 9214.56879 | BG158: 5522.875 | BL158: 287.47489
A159: 127 | B159: 432_10c_11a | C159: 466a | F159: Charges pour la mercatique et la publicité | J159: =MAX($H$4,$L$5) * X159 + MAX($I$4,$L$5) * AC159 + MAX($J$4,$L$5) * AH159 + MAX($K$4,$L$5) * AM159 + MAX($L$4,$L$5) * AR159 + MAX($I$5,$L$5) * BB159 + MAX($H$5,$L$5) * AW159 + MAX($J$5,$L$5) * BG159 + MAX($K$5,$L$5) * BL159 -> 22662.93142 | S159: 25863.83882 | X159: 4534.01208 | AC159: 2737 | AH159: 3607.62 | AM159: 3008.67599 | AR159: 5458.978 | AW159: 1379.769 | BB159: 1134.43535 | BG159: 802.441 | BL159: 0
A160: 128 | B160: 432_10c | C160: 467 | F160: Autres charges pour l'administration générale | J160: =MAX($H$4,$L$5) * X160 + MAX($I$4,$L$5) * AC160 + MAX($J$4,$L$5) * AH160 + MAX($K$4,$L$5) * AM160 + MAX($L$4,$L$5) * AR160 + MAX($I$5,$L$5) * BB160 + MAX($H$5,$L$5) * AW160 + MAX($J$5,$L$5) * BG160 + MAX($K$5,$L$5) * BL160 -> 516242.9865 | S160: 533606.325 | X160: 141900.0921 | AC160: 107622 | AH160: 56760.465 | AM160: 67062.81634 | AR160: 21014.647 | AW160: 15238.352 | BB160: 69428.21139 | BG160: 36735.166 | BL160: 481.23668
A161: 129 | B161: 432_07a | C161: 468 | F161: Part des réassureurs aux charges d'expl. / Total charges d'exploitation | J161: =MAX($H$4,$L$5) * X161 + MAX($I$4,$L$5) * AC161 + MAX($J$4,$L$5) * AH161 + MAX($K$4,$L$5) * AM161 + MAX($L$4,$L$5) * AR161 + MAX($I$5,$L$5) * BB161 + MAX($H$5,$L$5) * AW161 + MAX($J$5,$L$5) * BG161 + MAX($K$5,$L$5) * BL161 -> 16026.13984 | K161: =MAX($H$4,$L$5) * Y161 + MAX($I$4,$L$5) * AD161 + MAX($J$4,$L$5) * AI161 + MAX($K$4,$L$5) * AN161 + MAX($L$4,$L$5) * AS161 + MAX($I$5,$L$5) * BC161 + MAX($H$5,$L$5) * AX161 + MAX($J$5,$L$5) * BH161 + MAX($K$5,$L$5) * BM161 -> 866507.0544 | S161: 10980.75164 | T161: 903019.5335 | X161: 84.252 | Y161: 236758.6803 | AC161: 0 | AD161: 217154 | AH161: 4228.553 | AI161: 87641.05272 | AM161: 8993.42175 | AN161: 88740.16842 | AR161: -57.981 | AS161: 66994.245 | AW161: 0 | AX161: 23942.381 | BB161: 2777.89409 | BC161: 101012.5988 | BG161: 0 | BH161: 43267.69 | BL161: 0 | BM161: 996.23822
A163: 131 | C163: 469z | E163: 11 | F163: =VLOOKUP( $A163 & F$1, TextDF, Sprachwahlcode + 1, FALSE ) -> Ventilation des charges d'exploitations selon répondants de frais
A164: 132 | B164: 433_12a | C164: 469a | F164: =VLOOKUP( $A164 & F$1, TextDF, Sprachwahlcode + 1, FALSE ) -> Charges d'expl. des assurés actifs, valeur absolue / par personne en CHF | J164: =MAX($H$4,$L$5) * X164 + MAX($I$4,$L$5) * AC164 + MAX($J$4,$L$5) * AH164 + MAX($K$4,$L$5) * AM164 + MAX($L$4,$L$5) * AR164 + MAX($I$5,$L$5) * BB164 + MAX($H$5,$L$5) * AW164 + MAX($J$5,$L$5) * BG164 + MAX($K$5,$L$5) * BL164 -> 733858.1213 | L164: =IF($K$146>0,$J164*1000/$K$146,0) -> 399.539592 | S164: 774125.3972 | U164: 434.6973932 | X164: 194163.6281 | Z164: 406.1125492 | AC164: 181821 | AE164: 447.6332097 | AH164: 76041.052 | AJ164: 492.3726803 | AM164: 80463.69367 | AO164: 428.4713984 | AR164: 51194.906 | AT164: 620.0332574 | AW164: 21630 | AY164: 671.5722802 | BB164: 90811.98684 | BD164: 365.1731401 | BG164: 37731.85466 | BI164: 152.8936307 | BL164: 0 | BN164: 0
A165: 133 | B165: 433_12b | C165: 469b | F165: =VLOOKUP( $A165 & F$1, TextDF, Sprachwahlcode + 1, FALSE ) -> Charges d'expl. des rentiers, valeur absolue / par personne en CHF | J165: =MAX($H$4,$L$5) * X165 + MAX($I$4,$L$5) * AC165 + MAX($J$4,$L$5) * AH165 + MAX($K$4,$L$5) * AM165 + MAX($L$4,$L$5) * AR165 + MAX($I$5,$L$5) * BB165 + MAX($H$5,$L$5) * AW165 + MAX($J$5,$L$5) * BG165 + MAX($K$5,$L$5) * BL165 -> 106910.6728 | L165: =IF($K$147>0,$J165*1000/$K$147,0) -> 425.4345835 | S165: 101012.1003 | U165: 409.0415551 | X165: 35102.09087 | Z165: 441.5635055 | AC165: 29643 | AE165: 425.0501864 | AH165: 9350 | AJ165: 447.5397281 | AM165: 7227.64516 | AO165: 295.6266201 | AR165: 8804.141 | AT165: 715.6092823 | AW165: 1670 | AY165: 382.8519028 | BB165: 9214.56879 | BD165: 309.3694407 | BG165: 5522 | BI165: 547.6544679 | BL165: 377.226942 | BN165: 1995.909746
A166: 134 | B166: 433_12c | C166: 469c | F166: =VLOOKUP( $A166 & F$1, TextDF, Sprachwahlcode + 1, FALSE ) -> Charges d'expl. des pol. de libre passage, valeur abs. / par pers. en CHF | J166: =MAX($H$4,$L$5) * X166 + MAX($I$4,$L$5) * AC166 + MAX($J$4,$L$5) * AH166 + MAX($K$4,$L$5) * AM166 + MAX($L$4,$L$5) * AR166 + MAX($I$5,$L$5) * BB166 + MAX($H$5,$L$5) * AW166 + MAX($J$5,$L$5) * BG166 + MAX($K$5,$L$5) * BL166 -> 22585.87684 | L166: =IF($K$148>0,$J166*1000/$K$148,0) -> 69.75276897 | S166: 24940.00597 | U166: 73.42876312 | X166: 4482.834835 | Z166: 47.19767146 | AC166: 5690 | AE166: 45.50689401 | AH166: 2250 | AJ166: 95.81807342 | AM166: 1048.829593 | AO166: 103.4858996 | AR166: 6995.198 | AT166: 136.2656667 | AW166: 641 | AY166: 575.9209344 | BB166: 986.0431327 | BD166: 68.80490773 | BG166: 12.96 | BI166: 38.2300885 | BL166: 479.011278 | BN166: 157.1559311
A167: 135 | B167: 433_12d | C167: 469d | F167: =VLOOKUP( $A167 & F$1, TextDF, Sprachwahlcode + 1, FALSE ) -> Ch. d'expl. pour d'autres rép. de frais / Total des charges d'expl. nettes | J167: =MAX($H$4,$L$5) * X167 + MAX($I$4,$L$5) * AC167 + MAX($J$4,$L$5) * AH167 + MAX($K$4,$L$5) * AM167 + MAX($L$4,$L$5) * AR167 + MAX($I$5,$L$5) * BB167 + MAX($H$5,$L$5) * AW167 + MAX($J$5,$L$5) * BG167 + MAX($K$5,$L$5) * BL167 -> 3152.383535 | K167: =MAX($H$4,$L$5) * Y167 + MAX($I$4,$L$5) * AD167 + MAX($J$4,$L$5) * AI167 + MAX($K$4,$L$5) * AN167 + MAX($L$4,$L$5) * AS167 + MAX($I$5,$L$5) * BC167 + MAX($H$5,$L$5) * AX167 + MAX($J$5,$L$5) * BH167 + MAX($K$5,$L$5) * BM167 -> 866507.0544 | S167: 2942.030006 | T167: 903019.5335 | X167: 3010.126475 | Y167: 236758.6803 | AC167: 0 | AD167: 217154 | AH167: 0.0007199999091 | AI167: 87641.05272 | AM167: 0 | AN167: 88740.16842 | AR167: 0 | AS167: 66994.245 | AW167: 1.381 | AX167: 23942.381 | BB167: 0 | BC167: 101012.5988 | BG167: 0.87534 | BH167: 43267.69 | BL167: 140 | BM167: 996.23822
A169: 137 | C169: 471y | D169: =VLOOKUP( $A169 & D$1, TextDF, Sprachwahlcode + 1, FALSE ) -> VI. Preuves du respect de la quote-part minimum (QM)
A170: 138 | C170: 471z | E170: =VLOOKUP( $A170 & E$1, TextDF, Sprachwahlcode + 1, FALSE ) -> Somme des composantes des produits | I170: =VLOOKUP( $A170 & I$1, TextDF, Sprachwahlcode + 1, FALSE ) -> Soumise à la qm | K170: =VLOOKUP( $A170 & K$1, TextDF, Sprachwahlcode + 1, FALSE ) -> Non soumise à la qm | N170: =VLOOKUP( $A170 & N$1, TextDF, Sprachwahlcode + 1, FALSE ) -> Cumul | R170: =$I170 -> Soumise à la qm | T170: =$K170 -> Non soumise à la qm | W170: =$I170 -> Soumise à la qm | Y170: =$K170 -> Non soumise à la qm | AB170: =$I170 -> Soumise à la qm | AD170: =$K170 -> Non soumise à la qm | AG170: =$I170 -> Soumise à la qm | AI170: =$K170 -> Non soumise à la qm | AL170: =$I170 -> Soumise à la qm | AN170: =$K170 -> Non soumise à la qm | AQ170: =$I170 -> Soumise à la qm | AS170: =$K170 -> Non soumise à la qm | AV170: =$I170 -> Soumise à la qm | AX170: =$K170 -> Non soumise à la qm | BA170: =$I170 -> Soumise à la qm | BC170: =$K170 -> Non soumise à la qm | BF170: =$I170 -> Soumise à la qm | BH170: =$K170 -> Non soumise à la qm | BK170: =$I170 -> Soumise à la qm | BM170: =$K170 -> Non soumise à la qm
A171: 139 | B171: 434_06a | C171: 471 | F171: =VLOOKUP( $A171 & F$1, TextDF, Sprachwahlcode + 1, FALSE ) -> Processus d'épargne (Produits des placements de capitaux) | I171: =MAX($H$4,$L$5) * W171 + MAX($I$4,$L$5) * AB171 + MAX($J$4,$L$5) * AG171 + MAX($K$4,$L$5) * AL171 + MAX($L$4,$L$5) * AQ171 + MAX($I$5,$L$5) * BA171 + MAX($H$5,$L$5) * AV171 + MAX($J$5,$L$5) * BF171 + MAX($K$5,$L$5) * BK171 -> 4356838.072 | K171: =MAX($H$4,$L$5) * Y171 + MAX($I$4,$L$5) * AD171 + MAX($J$4,$L$5) * AI171 + MAX($K$4,$L$5) * AN171 + MAX($L$4,$L$5) * AS171 + MAX($I$5,$L$5) * BC171 + MAX($H$5,$L$5) * AX171 + MAX($J$5,$L$5) * BH171 + MAX($K$5,$L$5) * BM171 -> 410371.5281 | M171: =VLOOKUP( $A171 & M$1, TextDF, Sprachwahlcode + 1, FALSE ) -> Proc. d'épargne | N171: =I171+K171 -> 4767209.6 | R171: 4719049.87 | T171: 467233.1101 | W171: 1425189.54 | Y171: 264636.79 | AB171: 1582745 | AD171: 0 | AG171: 339917.9307 | AI171: 65626.44573 | AL171: 370490.9504 | AN171: 17945.71964 | AQ171: 287623.599 | AS171: 5008.541 | AV171: 65068.89155 | AX171: 0 | BA171: 222525.3769 | BC171: 48721.38023 | BF171: 57757.47442 | BH171: 8432.651578 | BK171: 5519.30882 | BM171: 0
A172: 140 | B172: 434_06b | C172: 472 | F172: =VLOOKUP( $A172 & F$1, TextDF, Sprachwahlcode + 1, FALSE ) -> Processus de risque (Primes de risque) | I172: =MAX($H$4,$L$5) * W172 + MAX($I$4,$L$5) * AB172 + MAX($J$4,$L$5) * AG172 + MAX($K$4,$L$5) * AL172 + MAX($L$4,$L$5) * AQ172 + MAX($I$5,$L$5) * BA172 + MAX($H$5,$L$5) * AV172 + MAX($J$5,$L$5) * BF172 + MAX($K$5,$L$5) * BK172 -> 2027499.252 | K172: =MAX($H$4,$L$5) * Y172 + MAX($I$4,$L$5) * AD172 + MAX($J$4,$L$5) * AI172 + MAX($K$4,$L$5) * AN172 + MAX($L$4,$L$5) * AS172 + MAX($I$5,$L$5) * BC172 + MAX($H$5,$L$5) * AX172 + MAX($J$5,$L$5) * BH172 + MAX($K$5,$L$5) * BM172 -> 500965.6358 | M172: =VLOOKUP( $A172 & M$1, TextDF, Sprachwahlcode + 1, FALSE ) -> Proc. de risque | N172: =I172+K172 -> 2528464.887 | R172: 2065896.316 | T172: 528373.9952 | W172: 562227.1541 | Y172: 132683.8035 | AB172: 532847 | AD172: 73190 | AG172: 172041.0608 | AI172: 56563.30669 | AL172: 219049.9693 | AN172: 88827.17853 | AQ172: 114797.65 | AS172: 627.593 | AV172: 41756.0571 | AX172: 0 | BA172: 167582.0667 | BC172: 97163.09956 | BF172: 217166.6118 | BH172: 51910.65449 | BK172: 31.68168563 | BM172: 0
A173: 141 | B173: 434_06c | C173: 473 | F173: =VLOOKUP( $A173 & F$1, TextDF, Sprachwahlcode + 1, FALSE ) -> Processus de frais (Primes de frais) | I173: =MAX($H$4,$L$5) * W173 + MAX($I$4,$L$5) * AB173 + MAX($J$4,$L$5) * AG173 + MAX($K$4,$L$5) * AL173 + MAX($L$4,$L$5) * AQ173 + MAX($I$5,$L$5) * BA173 + MAX($H$5,$L$5) * AV173 + MAX($J$5,$L$5) * BF173 + MAX($K$5,$L$5) * BK173 -> 673089.5449 | J173: =MAX($H$4,$L$5) * X173 + MAX($I$4,$L$5) * AC173 + MAX($J$4,$L$5) * AH173 + MAX($K$4,$L$5) * AM173 + MAX($L$4,$L$5) * AR173 + MAX($I$5,$L$5) * BB173 + MAX($H$5,$L$5) * AW173 + MAX($J$5,$L$5) * BG173 + MAX($K$5,$L$5) * BL173 -> 7057426.868 | K173: =MAX($H$4,$L$5) * Y173 + MAX($I$4,$L$5) * AD173 + MAX($J$4,$L$5) * AI173 + MAX($K$4,$L$5) * AN173 + MAX($L$4,$L$5) * AS173 + MAX($I$5,$L$5) * BC173 + MAX($H$5,$L$5) * AX173 + MAX($J$5,$L$5) * BH173 + MAX($K$5,$L$5) * BM173 -> 80658.97565 | L173: =MAX($H$4,$L$5) * Z173 + MAX($I$4,$L$5) * AE173 + MAX($J$4,$L$5) * AJ173 + MAX($K$4,$L$5) * AO173 + MAX($L$4,$L$5) * AT173 + MAX($I$5,$L$5) * BD173 + MAX($H$5,$L$5) * AY173 + MAX($J$5,$L$5) * BI173 + MAX($K$5,$L$5) * BN173 -> 991996.1395 | M173: =VLOOKUP( $A173 & M$1, TextDF, Sprachwahlcode + 1, FALSE ) -> Proc. de frais | N173: =I173+K173 -> 753748.5205 | R173: 675560.3438 | S173: 7460506.53 | T173: 81375.0841 | U173: 1076982.189 | W173: 201069.4129 | X173: 2188486.107 | Y173: 15338.67167 | Z173: 412659.2651 | AB173: 178009 | AC173: 2293601 | AD173: 13674 | AE173: 86864 | AG173: 60933.4325 | AH173: 572892.4241 | AI173: 7022.7787 | AJ173: 129212.5311 | AL173: 62684.8211 | AM173: 652225.7408 | AN173: 25317.97555 | AO173: 132090.8737 | AQ173: 50955.08 | AR173: 453376.329 | AS173: 131.368 | AT173: 5767.502 | AV173: 18087.67497 | AW173: 124912.6236 | AX173: 0 | AY173: 0 | BA173: 79012.06279 | BB173: 469119.5064 | BC173: 15137.88427 | BD173: 161022.3641 | BF173: 22310.15174 | BG173: 297234.238 | BH173: 4036.297458 | BI173: 64379.60353 | BK173: 27.90880908 | BL173: 5578.899315 | BM173: 0 | BN173: 0
A174: 142 | C174: 474z | E174: =VLOOKUP( $A174 & E$1, TextDF, Sprachwahlcode + 1, FALSE ) -> Somme des charges
A175: 143 | B175: 435_06a | C175: 474 | F175: =VLOOKUP( $A175 & F$1, TextDF, Sprachwahlcode + 1, FALSE ) -> Processus d'épargne (principalement Intérêts techniques) | I175: =MAX($H$4,$L$5) * W175 + MAX($I$4,$L$5) * AB175 + MAX($J$4,$L$5) * AG175 + MAX($K$4,$L$5) * AL175 + MAX($L$4,$L$5) * AQ175 + MAX($I$5,$L$5) * BA175 + MAX($H$5,$L$5) * AV175 + MAX($J$5,$L$5) * BF175 + MAX($K$5,$L$5) * BK175 -> 3027384.131 | K175: =MAX($H$4,$L$5) * Y175 + MAX($I$4,$L$5) * AD175 + MAX($J$4,$L$5) * AI175 + MAX($K$4,$L$5) * AN175 + MAX($L$4,$L$5) * AS175 + MAX($I$5,$L$5) * BC175 + MAX($H$5,$L$5) * AX175 + MAX($J$5,$L$5) * BH175 + MAX($K$5,$L$5) * BM175 -> 244092.4461 | M175: =VLOOKUP( $A175 & M$1, TextDF, Sprachwahlcode + 1, FALSE ) -> Proc. d'épargne | N175: =I175+K175 -> 3271476.577 | R175: 3094288.579 | T175: 234650.0972 | W175: 1112676.592 | Y175: 156258.7732 | AB175: 998768 | AD175: 0 | AG175: 222167.0875 | AI175: 39384.00433 | AL175: 235958.8613 | AN175: 13986.35506 | AQ175: 161081.292 | AS175: 5251.979 | AV175: 65909.70283 | AX175: 0 | BA175: 165619.8043 | BC175: 23885.28246 | BF175: 63128.65335 | BH175: 5326.05203 | BK175: 2074.136963 | BM175: 0
A176: 144 | B176: 435_06b | C176: 475 | F176: =VLOOKUP( $A176 & F$1, TextDF, Sprachwahlcode + 1, FALSE ) -> Processus de risque (princ. prest. en cas de décès et d'invalidité) | I176: =MAX($H$4,$L$5) * W176 + MAX($I$4,$L$5) * AB176 + MAX($J$4,$L$5) * AG176 + MAX($K$4,$L$5) * AL176 + MAX($L$4,$L$5) * AQ176 + MAX($I$5,$L$5) * BA176 + MAX($H$5,$L$5) * AV176 + MAX($J$5,$L$5) * BF176 + MAX($K$5,$L$5) * BK176 -> 1192390.459 | K176: =MAX($H$4,$L$5) * Y176 + MAX($I$4,$L$5) * AD176 + MAX($J$4,$L$5) * AI176 + MAX($K$4,$L$5) * AN176 + MAX($L$4,$L$5) * AS176 + MAX($I$5,$L$5) * BC176 + MAX($H$5,$L$5) * AX176 + MAX($J$5,$L$5) * BH176 + MAX($K$5,$L$5) * BM176 -> 259926.6819 | M176: =VLOOKUP( $A176 & M$1, TextDF, Sprachwahlcode + 1, FALSE ) -> Proc. de risque | N176: =I176+K176 -> 1452317.14 | R176: 1155387.414 | T176: 262544.4498 | W176: 330193.2136 | Y176: 65704.87608 | AB176: 302212 | AD176: 27513 | AG176: 70369.75543 | AI176: 30177.31301 | AL176: 140020.8 | AN176: 41062.83639 | AQ176: 64706.205 | AS176: -4796.846 | AV176: 27233.69619 | AX176: 0 | BA176: 79762.49467 | BC176: 72344.86429 | BF176: 177474.1769 | BH176: 27920.63809 | BK176: 418.116802 | BM176: 0
A177: 145 | B177: 435_06c | C177: 476 | F177: =VLOOKUP( $A177 & F$1, TextDF, Sprachwahlcode + 1, FALSE ) -> Processus de frais (princ. frais de gestion) | I177: =MAX($H$4,$L$5) * W177 + MAX($I$4,$L$5) * AB177 + MAX($J$4,$L$5) * AG177 + MAX($K$4,$L$5) * AL177 + MAX($L$4,$L$5) * AQ177 + MAX($I$5,$L$5) * BA177 + MAX($H$5,$L$5) * AV177 + MAX($J$5,$L$5) * BF177 + MAX($K$5,$L$5) * BK177 -> 691507.5596 | J177: =MAX($H$4,$L$5) * X177 + MAX($I$4,$L$5) * AC177 + MAX($J$4,$L$5) * AH177 + MAX($K$4,$L$5) * AM177 + MAX($L$4,$L$5) * AR177 + MAX($I$5,$L$5) * BB177 + MAX($H$5,$L$5) * AW177 + MAX($J$5,$L$5) * BG177 + MAX($K$5,$L$5) * BL177 -> 4911282.149 | K177: =MAX($H$4,$L$5) * Y177 + MAX($I$4,$L$5) * AD177 + MAX($J$4,$L$5) * AI177 + MAX($K$4,$L$5) * AN177 + MAX($L$4,$L$5) * AS177 + MAX($I$5,$L$5) * BC177 + MAX($H$5,$L$5) * AX177 + MAX($J$5,$L$5) * BH177 + MAX($K$5,$L$5) * BM177 -> 65221.26072 | L177: =MAX($H$4,$L$5) * Z177 + MAX($I$4,$L$5) * AE177 + MAX($J$4,$L$5) * AJ177 + MAX($K$4,$L$5) * AO177 + MAX($L$4,$L$5) * AT177 + MAX($I$5,$L$5) * BD177 + MAX($H$5,$L$5) * AY177 + MAX($J$5,$L$5) * BI177 + MAX($K$5,$L$5) * BN177 -> 569240.3887 | M177: =VLOOKUP( $A177 & M$1, TextDF, Sprachwahlcode + 1, FALSE ) -> Proc. de frais | N177: =I177+K177 -> 756728.8203 | R177: 727697.512 | S177: 4977373.506 | T177: 69000.51352 | U177: 566195.0605 | W177: 199330.7202 | X177: 1642200.526 | Y177: 15206.0347 | Z177: 237169.684 | AB177: 179700 | AC177: 1480680 | AD177: 8359 | AE177: 35872 | AG177: 62250.78441 | AH177: 354787.6274 | AI177: 12739.05538 | AJ177: 82300.37272 | AL177: 45780.40534 | AM177: 421760.0666 | AN177: 17059.05565 | AO177: 72108.2471 | AQ177: 58838.549 | AR177: 284626.046 | AS177: 987.144 | AT177: 1442.277 | AV177: 23123 | AW177: 116266.399 | AX177: 0 | AY177: 0 | BA177: 89571.38572 | BB177: 334953.6847 | BC177: 4938.886818 | BD177: 101169.0336 | BF177: 32203.9516 | BG177: 272806.7819 | BH177: 5932.084171 | BI177: 39178.77429 | BK177: 708.76333 | BL177: 3201.017095 | BM177: 0 | BN177: 0
A178: 146 | B178: 435_06d | C178: 477 | E178: =VLOOKUP( $A178 & E$1, TextDF, Sprachwahlcode + 1, FALSE ) -> Résultat brut d'exploitation b) | J178: =MAX($H$4,$L$5) * X178 + MAX($I$4,$L$5) * AC178 + MAX($J$4,$L$5) * AH178 + MAX($K$4,$L$5) * AM178 + MAX($L$4,$L$5) * AR178 + MAX($I$5,$L$5) * BB178 + MAX($H$5,$L$5) * AW178 + MAX($J$5,$L$5) * BG178 + MAX($K$5,$L$5) * BL178 -> 2146144.72 | L178: =MAX($H$4,$L$5) * Z178 + MAX($I$4,$L$5) * AE178 + MAX($J$4,$L$5) * AJ178 + MAX($K$4,$L$5) * AO178 + MAX($L$4,$L$5) * AT178 + MAX($I$5,$L$5) * BD178 + MAX($H$5,$L$5) * AY178 + MAX($J$5,$L$5) * BI178 + MAX($K$5,$L$5) * BN178 -> 422755.7509 | S178: 2483133.025 | U178: 510787.1289 | X178: 546285.5813 | Z178: 175489.5811 | AC178: 812921 | AE178: 50992 | AH178: 218104.7967 | AJ178: 46912.1584 | AM178: 230465.6742 | AO178: 59982.62662 | AR178: 168750.283 | AT178: 4325.225 | AW178: 8646.224598 | AY178: 0 | BB178: 134165.8217 | BD178: 59853.3305 | BG178: 24427.45612 | BI178: 25200.82924 | BL178: 2377.88222 | BN178: 0
A179: 147 | C179: 478y | E179: =VLOOKUP( $A179 & E$1, TextDF, Sprachwahlcode + 1, FALSE ) -> Variation des provisions techniques (augmentation = +)
A180: 148 | C180: 478z | E180: =VLOOKUP( $A180 & E$1, TextDF, Sprachwahlcode + 1, FALSE ) -> au processus d'épargne | N180: =VLOOKUP( $A180 & N$1, TextDF, Sprachwahlcode + 1, FALSE ) -> Cumul
A181: 149 | B181: 435_06e_07a | C181: 478 | F181: =VLOOKUP( $A181 & F$1, TextDF, Sprachwahlcode + 1, FALSE ) -> Longévité | I181: =MAX($H$4,$L$5) * W181 + MAX($I$4,$L$5) * AB181 + MAX($J$4,$L$5) * AG181 + MAX($K$4,$L$5) * AL181 + MAX($L$4,$L$5) * AQ181 + MAX($I$5,$L$5) * BA181 + MAX($H$5,$L$5) * AV181 + MAX($J$5,$L$5) * BF181 + MAX($K$5,$L$5) * BK181 -> 1026727.49 | K181: =MAX($H$4,$L$5) * Y181 + MAX($I$4,$L$5) * AD181 + MAX($J$4,$L$5) * AI181 + MAX($K$4,$L$5) * AN181 + MAX($L$4,$L$5) * AS181 + MAX($I$5,$L$5) * BC181 + MAX($H$5,$L$5) * AX181 + MAX($J$5,$L$5) * BH181 + MAX($K$5,$L$5) * BM181 -> 75737.2114 | M181: =VLOOKUP( $A181 & M$1, TextDF, Sprachwahlcode + 1, FALSE ) -> Proc. d'épargne | N181: =I181+K181 -> 1102464.701 | R181: 1409682.61 | T181: 145143.0316 | W181: 193944.08 | Y181: 28255.92 | AB181: 500000 | AD181: 0 | AG181: 153700 | AI181: 18600 | AL181: 73400 | AN181: -28.615 | AQ181: -500 | AS181: 0 | AV181: 1200 | AX181: 0 | BA181: 103976.5457 | BC181: 28909.9064 | BF181: 156.684678 | BH181: 0 | BK181: 850.1792 | BM181: 0
A182: 150 | B182: 435_06e_07b | C182: 479 | F182: =VLOOKUP( $A182 & F$1, TextDF, Sprachwahlcode + 1, FALSE ) -> Lacunes de couverture en cas de conversion en rentes | I182: =MAX($H$4,$L$5) * W182 + MAX($I$4,$L$5) * AB182 + MAX($J$4,$L$5) * AG182 + MAX($K$4,$L$5) * AL182 + MAX($L$4,$L$5) * AQ182 + MAX($I$5,$L$5) * BA182 + MAX($H$5,$L$5) * AV182 + MAX($J$5,$L$5) * BF182 + MAX($K$5,$L$5) * BK182 -> 416115.1759 | K182: =MAX($H$4,$L$5) * Y182 + MAX($I$4,$L$5) * AD182 + MAX($J$4,$L$5) * AI182 + MAX($K$4,$L$5) * AN182 + MAX($L$4,$L$5) * AS182 + MAX($I$5,$L$5) * BC182 + MAX($H$5,$L$5) * AX182 + MAX($J$5,$L$5) * BH182 + MAX($K$5,$L$5) * BM182 -> 43523.96079 | M182: =VLOOKUP( $A182 & M$1, TextDF, Sprachwahlcode + 1, FALSE ) -> Proc. d'épargne | N182: =I182+K182 -> 459639.1367 | R182: 174214.8416 | T182: 11052.66789 | W182: 207655.3184 | Y182: 30744.68161 | AB182: 70000 | AD182: 0 | AG182: 79400 | AI182: 8700 | AL182: 53000 | AN182: 700 | AQ182: 32000 | AS182: 300 | AV182: 6200 | AX182: 0 | BA182: -32109.31303 | BC182: 3079.279183 | BF182: 0 | BH182: 0 | BK182: -30.8295 | BM182: 0
A183: 151 | B183: 435_06e_07g | C183: 484 | F183: =VLOOKUP( $A183 & F$1, TextDF, Sprachwahlcode + 1, FALSE ) -> Garanties d'intérêt | I183: =MAX($H$4,$L$5) * W183 + MAX($I$4,$L$5) * AB183 + MAX($J$4,$L$5) * AG183 + MAX($K$4,$L$5) * AL183 + MAX($L$4,$L$5) * AQ183 + MAX($I$5,$L$5) * BA183 + MAX($H$5,$L$5) * AV183 + MAX($J$5,$L$5) * BF183 + MAX($K$5,$L$5) * BK183 -> 82442.548 | K183: =MAX($H$4,$L$5) * Y183 + MAX($I$4,$L$5) * AD183 + MAX($J$4,$L$5) * AI183 + MAX($K$4,$L$5) * AN183 + MAX($L$4,$L$5) * AS183 + MAX($I$5,$L$5) * BC183 + MAX($H$5,$L$5) * AX183 + MAX($J$5,$L$5) * BH183 + MAX($K$5,$L$5) * BM183 -> -16962.803 | M183: =VLOOKUP( $A183 & M$1, TextDF, Sprachwahlcode + 1, FALSE ) -> Proc. d'épargne | N183: =I183+K183 -> 65479.745 | R183: 103829.447 | T183: -14080.812 | W183: 0 | Y183: 0 | AB183: 0 | AD183: 0 | AG183: -14000 | AI183: -22000 | AL183: 1000 | AN183: 0 | AQ183: 89000 | AS183: 3500 | AV183: -2350 | AX183: 0 | BA183: 0 | BC183: 0 | BF183: 8792.548 | BH183: 1537.197 | BK183: 0 | BM183: 0
A184: 152 | B184: 435_06e_07f | C184: 483 | F184: =VLOOKUP( $A184 & F$1, TextDF, Sprachwahlcode + 1, FALSE ) -> Fluctuations de la valeur des placements de capitaux | I184: =MAX($H$4,$L$5) * W184 + MAX($I$4,$L$5) * AB184 + MAX($J$4,$L$5) * AG184 + MAX($K$4,$L$5) * AL184 + MAX($L$4,$L$5) * AQ184 + MAX($I$5,$L$5) * BA184 + MAX($H$5,$L$5) * AV184 + MAX($J$5,$L$5) * BF184 + MAX($K$5,$L$5) * BK184 -> 1000 | K184: =MAX($H$4,$L$5) * Y184 + MAX($I$4,$L$5) * AD184 + MAX($J$4,$L$5) * AI184 + MAX($K$4,$L$5) * AN184 + MAX($L$4,$L$5) * AS184 + MAX($I$5,$L$5) * BC184 + MAX($H$5,$L$5) * AX184 + MAX($J$5,$L$5) * BH184 + MAX($K$5,$L$5) * BM184 -> 0 | M184: =VLOOKUP( $A184 & M$1, TextDF, Sprachwahlcode + 1, FALSE ) -> Proc. d'épargne | N184: =I184+K184 -> 1000 | R184: 1900 | T184: 9650 | W184: 0 | Y184: 0 | AB184: 0 | AD184: 0 | AG184: 0 | AI184: 0 | AL184: 0 | AN184: 0 | AQ184: 0 | AS184: 0 | AV184: 0 | AX184: 0 | BA184: 0 | BC184: 0 | BF184: 0 | BH184: 0 | BK184: 1000 | BM184: 0
A185: 153 | C185: 480z | E185: =VLOOKUP( $A185 & E$1, TextDF, Sprachwahlcode + 1, FALSE ) -> au processus de risque
A186: 154 | B186: 435_06e_07c | C186: 480 | F186: =VLOOKUP( $A186 & F$1, TextDF, Sprachwahlcode + 1, FALSE ) -> Sinistres annoncés mais non encore liquidés c) | I186: =MAX($H$4,$L$5) * W186 + MAX($I$4,$L$5) * AB186 + MAX($J$4,$L$5) * AG186 + MAX($K$4,$L$5) * AL186 + MAX($L$4,$L$5) * AQ186 + MAX($I$5,$L$5) * BA186 + MAX($H$5,$L$5) * AV186 + MAX($J$5,$L$5) * BF186 + MAX($K$5,$L$5) * BK186 -> -5772.764795 | K186: =MAX($H$4,$L$5) * Y186 + MAX($I$4,$L$5) * AD186 + MAX($J$4,$L$5) * AI186 + MAX($K$4,$L$5) * AN186 + MAX($L$4,$L$5) * AS186 + MAX($I$5,$L$5) * BC186 + MAX($H$5,$L$5) * AX186 + MAX($J$5,$L$5) * BH186 + MAX($K$5,$L$5) * BM186 -> 10136.90246 | M186: =VLOOKUP( $A186 & M$1, TextDF, Sprachwahlcode + 1, FALSE ) -> Proc. de risque | N186: =I186+K186 -> 4364.137664 | R186: 41796.46163 | T186: 6199.021514 | W186: -28149.975 | Y186: -750.025 | AB186: 1770 | AD186: -1813 | AG186: 0 | AI186: 0 | AL186: 10300 | AN186: 3651.279 | AQ186: 0 | AS186: 0 | AV186: -92.004 | AX186: 0 | BA186: 10399.21421 | BC186: 9048.648459 | BF186: 0 | BH186: 0 | BK186: 0 | BM186: 0
A187: 155 | B187: 435_06e_07d | C187: 481 | F187: =VLOOKUP( $A187 & F$1, TextDF, Sprachwahlcode + 1, FALSE ) -> Sinistres survenus mais non encore annoncés | I187: =MAX($H$4,$L$5) * W187 + MAX($I$4,$L$5) * AB187 + MAX($J$4,$L$5) * AG187 + MAX($K$4,$L$5) * AL187 + MAX($L$4,$L$5) * AQ187 + MAX($I$5,$L$5) * BA187 + MAX($H$5,$L$5) * AV187 + MAX($J$5,$L$5) * BF187 + MAX($K$5,$L$5) * BK187 -> -7623.753663 | K187: =MAX($H$4,$L$5) * Y187 + MAX($I$4,$L$5) * AD187 + MAX($J$4,$L$5) * AI187 + MAX($K$4,$L$5) * AN187 + MAX($L$4,$L$5) * AS187 + MAX($I$5,$L$5) * BC187 + MAX($H$5,$L$5) * AX187 + MAX($J$5,$L$5) * BH187 + MAX($K$5,$L$5) * BM187 -> -1268.301064 | M187: =VLOOKUP( $A187 & M$1, TextDF, Sprachwahlcode + 1, FALSE ) -> Proc. de risque | N187: =I187+K187 -> -8892.054727 | R187: 537.6250677 | T187: -11079.76469 | W187: 1554.32746 | Y187: 332.9122902 | AB187: 0 | AD187: 0 | AG187: -36200 | AI187: -8800 | AL187: 0 | AN187: 0 | AQ187: 0 | AS187: 0 | AV187: -1502.205 | AX187: 0 | BA187: 28524.12388 | BC187: 7198.786646 | BF187: 0 | BH187: 0 | BK187: 0 | BM187: 0
A188: 156 | B188: 435_06e_07e | C188: 482 | F188: =VLOOKUP( $A188 & F$1, TextDF, Sprachwahlcode + 1, FALSE ) -> Fluctuations de sinistres | I188: =MAX($H$4,$L$5) * W188 + MAX($I$4,$L$5) * AB188 + MAX($J$4,$L$5) * AG188 + MAX($K$4,$L$5) * AL188 + MAX($L$4,$L$5) * AQ188 + MAX($I$5,$L$5) * BA188 + MAX($H$5,$L$5) * AV188 + MAX($J$5,$L$5) * BF188 + MAX($K$5,$L$5) * BK188 -> 448.6966555 | K188: =MAX($H$4,$L$5) * Y188 + MAX($I$4,$L$5) * AD188 + MAX($J$4,$L$5) * AI188 + MAX($K$4,$L$5) * AN188 + MAX($L$4,$L$5) * AS188 + MAX($I$5,$L$5) * BC188 + MAX($H$5,$L$5) * AX188 + MAX($J$5,$L$5) * BH188 + MAX($K$5,$L$5) * BM188 -> 2495.706879 | M188: =VLOOKUP( $A188 & M$1, TextDF, Sprachwahlcode + 1, FALSE ) -> Proc. de risque | N188: =I188+K188 -> 2944.403535 | R188: -32325.54 | T188: 22805.84566 | W188: -3451.303344 | Y188: -148.6966555 | AB188: 0 | AD188: 0 | AG188: 0 | AI188: 0 | AL188: 5000 | AN188: 0 | AQ188: -1100 | AS188: -105.001 | AV188: 0 | AX188: 0 | BA188: 0 | BC188: 2843.543335 | BF188: 0 | BH188: -94.1388 | BK188: 0 | BM188: 0
A189: 157 | B189: 435_06e_07h | C189: 485 | F189: =VLOOKUP( $A189 & F$1, TextDF, Sprachwahlcode + 1, FALSE ) -> Adaptations et assainissements de tarifs | I189: =MAX($H$4,$L$5) * W189 + MAX($I$4,$L$5) * AB189 + MAX($J$4,$L$5) * AG189 + MAX($K$4,$L$5) * AL189 + MAX($L$4,$L$5) * AQ189 + MAX($I$5,$L$5) * BA189 + MAX($H$5,$L$5) * AV189 + MAX($J$5,$L$5) * BF189 + MAX($K$5,$L$5) * BK189 -> -33159.46654 | J189: =MAX($H$4,$L$5) * X189 + MAX($I$4,$L$5) * AC189 + MAX($J$4,$L$5) * AH189 + MAX($K$4,$L$5) * AM189 + MAX($L$4,$L$5) * AR189 + MAX($I$5,$L$5) * BB189 + MAX($H$5,$L$5) * AW189 + MAX($J$5,$L$5) * BG189 + MAX($K$5,$L$5) * BL189 -> 1480177.925 | K189: =MAX($H$4,$L$5) * Y189 + MAX($I$4,$L$5) * AD189 + MAX($J$4,$L$5) * AI189 + MAX($K$4,$L$5) * AN189 + MAX($L$4,$L$5) * AS189 + MAX($I$5,$L$5) * BC189 + MAX($H$5,$L$5) * AX189 + MAX($J$5,$L$5) * BH189 + MAX($K$5,$L$5) * BM189 -> -1831.743711 | L189: =MAX($H$4,$L$5) * Z189 + MAX($I$4,$L$5) * AE189 + MAX($J$4,$L$5) * AJ189 + MAX($K$4,$L$5) * AO189 + MAX($L$4,$L$5) * AT189 + MAX($I$5,$L$5) * BD189 + MAX($H$5,$L$5) * AY189 + MAX($J$5,$L$5) * BI189 + MAX($K$5,$L$5) * BN189 -> 111830.9338 | M189: =VLOOKUP( $A189 & M$1, TextDF, Sprachwahlcode + 1, FALSE ) -> Proc. de risque | N189: =I189+K189 -> -34991.21025 | R189: -21567.05211 | S189: 1678068.393 | T189: -1212.792112 | U189: 168477.1979 | W189: 0 | X189: 371552.4475 | Y189: 0 | Z189: 58434.79224 | AB189: 0 | AC189: 571770 | AD189: 0 | AE189: -1813 | AG189: 0 | AH189: 182900 | AI189: 0 | AJ189: -3500 | AL189: 0 | AM189: 142700 | AN189: 0 | AO189: 4322.664 | AQ189: 0 | AR189: 119400 | AS189: 0 | AT189: 3694.999 | AV189: 1400 | AW189: 4855.791 | AX189: 0 | AY189: 0 | BA189: -34559.46654 | BB189: 76231.10424 | BC189: -1831.743711 | BD189: 49248.42031 | BF189: 0 | BG189: 8949.232678 | BH189: 0 | BI189: 1443.0582 | BK189: 0 | BL189: 1819.3497 | BM189: 0 | BN189: 0
A190: 158 | B190: 435_06f | C190: 486 | E190: =VLOOKUP( $A190 & E$1, TextDF, Sprachwahlcode + 1, FALSE ) -> Frais pour capital risque supplémentaire | J190: =MAX($H$4,$L$5) * X190 + MAX($I$4,$L$5) * AC190 + MAX($J$4,$L$5) * AH190 + MAX($K$4,$L$5) * AM190 + MAX($L$4,$L$5) * AR190 + MAX($I$5,$L$5) * BB190 + MAX($H$5,$L$5) * AW190 + MAX($J$5,$L$5) * BG190 + MAX($K$5,$L$5) * BL190 -> 0 | S190: 0 | X190: 0 | AC190: 0 | AH190: 0 | AM190: 0 | AR190: 0 | AW190: 0 | BB190: 0 | BG190: 0 | BL190: 0
A191: 159 | B191: 435_06g | C191: 487 | E191: =VLOOKUP( $A191 & E$1, TextDF, Sprachwahlcode + 1, FALSE ) -> Attribution au fonds d'excédents | J191: =MAX($H$4,$L$5) * X191 + MAX($I$4,$L$5) * AC191 + MAX($J$4,$L$5) * AH191 + MAX($K$4,$L$5) * AM191 + MAX($L$4,$L$5) * AR191 + MAX($I$5,$L$5) * BB191 + MAX($H$5,$L$5) * AW191 + MAX($J$5,$L$5) * BG191 + MAX($K$5,$L$5) * BL191 -> 148299.9011 | L191: =MAX($H$4,$L$5) * Z191 + MAX($I$4,$L$5) * AE191 + MAX($J$4,$L$5) * AJ191 + MAX($K$4,$L$5) * AO191 + MAX($L$4,$L$5) * AT191 + MAX($I$5,$L$5) * BD191 + MAX($H$5,$L$5) * AY191 + MAX($J$5,$L$5) * BI191 + MAX($K$5,$L$5) * BN191 -> 226873.0951 | S191: 255568.3452 | U191: 253649.1465 | X191: 39046.99512 | Z191: 91474.08836 | AC191: 34726.91 | AE191: 44037 | AH191: 18000 | AJ191: 25000 | AM191: 27681.26667 | AO191: 44849.21187 | AR191: 11394.42203 | AT191: 141.648 | AW191: 1000.135411 | AY191: 0 | BB191: 15750.10601 | BD191: 127.38286 | BG191: 600.1188538 | BI191: 21243.764 | BL191: 99.94699633 | BN191: 0
A192: 160 | B192: 435_06h | C192: 488 | E192: =VLOOKUP( $A192 & E$1, TextDF, Sprachwahlcode + 1, FALSE ) -> Résutat d'exploitation de l'exercice | J192: =MAX($H$4,$L$5) * X192 + MAX($I$4,$L$5) * AC192 + MAX($J$4,$L$5) * AH192 + MAX($K$4,$L$5) * AM192 + MAX($L$4,$L$5) * AR192 + MAX($I$5,$L$5) * BB192 + MAX($H$5,$L$5) * AW192 + MAX($J$5,$L$5) * BG192 + MAX($K$5,$L$5) * BL192 -> 517666.8937 | L192: =MAX($H$4,$L$5) * Z192 + MAX($I$4,$L$5) * AE192 + MAX($J$4,$L$5) * AJ192 + MAX($K$4,$L$5) * AO192 + MAX($L$4,$L$5) * AT192 + MAX($I$5,$L$5) * BD192 + MAX($H$5,$L$5) * AY192 + MAX($J$5,$L$5) * BI192 + MAX($K$5,$L$5) * BN192 -> 84051.72201 | S192: 549496.2865 | U192: 88660.78458 | X192: 135686.1387 | Z192: 25580.70048 | AC192: 206424.09 | AE192: 8768 | AH192: 17204.79671 | AJ192: 25412.1584 | AM192: 60084.40755 | AO192: 10810.75076 | AR192: 37955.86097 | AT192: 488.578 | AW192: 2790.298186 | AY192: 0 | BB192: 42184.61148 | BD192: 10477.52733 | BG192: 14878.10458 | BI192: 2514.00704 | BL192: 458.5855237 | BN192: 0
A193: 161 | C193: 488a | E193: =VLOOKUP( $A193 & E$1, TextDF, Sprachwahlcode + 1, FALSE ) -> b) Avant alimentation renforcement de prov. techn. et avant attribution au fonds d'excédents c) Alimentation renf. des prov. techn. des rentes d'invalidité et de survivants y comprise
A194: 162 | B194: 435_06i | C194: 489 | E194: =VLOOKUP( $A194 & E$1, TextDF, Sprachwahlcode + 1, FALSE ) -> Quote-part de distribution | J194: =IF( J$173 > 0, MAX( ( J$177 + J$189 + J$190 + J$191 ) / J$173, 0.9 ), 0 ) -> 0.9266493435 | L194: =IF( L$173 > 0, ( L$177 + L$189 + L$190 + L$191 ) / L$173, 0 ) -> 0.9152701118 | S194: 0.9263459814 | U194: 0.9176766473 | X194: 0.938 | Z194: 0.9380101148 | AC194: 0.91 | AE194: 0.8990606005 | AH194: 0.9699685386 | AJ194: 0.8033305425 | AM194: 0.907877896 | AO194: 0.918156717 | AR194: 0.9162817762 | AT194: 0.9152877624 | AW194: 0.977662 | AY194: 0 | BB194: 0.9100770467 | BD194: 0.934931229 | BG194: 0.9499448493 | BI194: 0.9609502559 | BL194: 0.9178 | BN194: 0
A196: 164 | C196: 490z | E196: =VLOOKUP( $A196 & E$1, TextDF, Sprachwahlcode + 1, FALSE ) -> Récapitulation du résultat de l'exercice | K196: =VLOOKUP( $A196 & K$1, TextDF, Sprachwahlcode + 1, FALSE ) -> Part en % du produit total | T196: =$K196 -> Part en % du produit total | Y196: =$K196 -> Part en % du produit total | AD196: =$K196 -> Part en % du produit total | AI196: =$K196 -> Part en % du produit total | AN196: =$K196 -> Part en % du produit total | AS196: =$K196 -> Part en % du produit total | AX196: =$K196 -> Part en % du produit total | BC196: =$K196 -> Part en % du produit total | BH196: =$K196 -> Part en % du produit total | BM196: =$K196 -> Part en % du produit total
A197: 165 | B197: 436 | C197: 490 | F197: =VLOOKUP( $A197 & F$1, TextDF, Sprachwahlcode + 1, FALSE ) -> Part des affaires soumises à la quote-part minimum (qm) | J197: =MAX($H$4,$L$5) * X197 + MAX($I$4,$L$5) * AC197 + MAX($J$4,$L$5) * AH197 + MAX($K$4,$L$5) * AM197 + MAX($L$4,$L$5) * AR197 + MAX($I$5,$L$5) * BB197 + MAX($H$5,$L$5) * AW197 + MAX($J$5,$L$5) * BG197 + MAX($K$5,$L$5) * BL197 -> 517666.8937 | K197: =IF( $J$173 > 0, $J$197 / $J$173, 0 ) -> 0.07335065645 | S197: 549496.2865 | T197: 0.07365401857 | X197: 135686.1387 | Y197: 0.062 | AC197: 206424.09 | AD197: 0.09 | AH197: 17204.79671 | AI197: 0.03003146138 | AM197: 60084.40755 | AN197: 0.09212210403 | AR197: 37955.86097 | AS197: 0.08371822378 | AW197: 2790.298186 | AX197: 0.022338 | BB197: 42184.61148 | BC197: 0.08992295333 | BG197: 14878.10458 | BH197: 0.05005515073 | BL197: 458.5855237 | BM197: 0.0822
A198: 166 | B198: 437 | C198: 491 | F198: =VLOOKUP( $A198 & F$1, TextDF, Sprachwahlcode + 1, FALSE ) -> Part des affaires non soumises à la quote-part minimum (qm) | J198: =MAX($H$4,$L$5) * X198 + MAX($I$4,$L$5) * AC198 + MAX($J$4,$L$5) * AH198 + MAX($K$4,$L$5) * AM198 + MAX($L$4,$L$5) * AR198 + MAX($I$5,$L$5) * BB198 + MAX($H$5,$L$5) * AW198 + MAX($J$5,$L$5) * BG198 + MAX($K$5,$L$5) * BL198 -> 84051.72201 | K198: =IF( $L$173 > 0, $J$198 / $L$173, 0 ) -> 0.08472988821 | S198: 88660.78458 | T198: 0.08232335265 | X198: 25580.70048 | Y198: 0.06198988523 | AC198: 8768 | AD198: 0.1009393995 | AH198: 25412.1584 | AI198: 0.1966694575 | AM198: 10810.75076 | AN198: 0.08184328299 | AR198: 488.578 | AS198: 0.08471223764 | AW198: 0 | AX198: 0 | BB198: 10477.52733 | BC198: 0.06506877096 | BG198: 2514.00704 | BH198: 0.03904974406 | BL198: 0 | BM198: 0
A199: 167 | B199: 438 | C199: 492 | F199: =VLOOKUP( $A199 & F$1, TextDF, Sprachwahlcode + 1, FALSE ) -> Résultat de l'exercice | J199: =MAX($H$4,$L$5) * X199 + MAX($I$4,$L$5) * AC199 + MAX($J$4,$L$5) * AH199 + MAX($K$4,$L$5) * AM199 + MAX($L$4,$L$5) * AR199 + MAX($I$5,$L$5) * BB199 + MAX($H$5,$L$5) * AW199 + MAX($J$5,$L$5) * BG199 + MAX($K$5,$L$5) * BL199 -> 601718.6157 | K199: =IF( ( $J$173 + $L$173 ) > 0, $J$199 / ( $J$173 + $L$173 ), 0 ) -> 0.07475301212 | S199: 638157.0711 | T199: 0.07474763271 | X199: 161266.8391 | Y199: 0.06199839534 | AC199: 215192.09 | AD199: 0.09039918251 | AH199: 42616.95511 | AI199: 0.06069883825 | AM199: 70895.1583 | AN199: 0.09039099388 | AR199: 38444.43897 | AS199: 0.08373071001 | AW199: 2790.298186 | AX199: 0.022338 | BB199: 52662.13881 | BC199: 0.08357187687 | BG199: 17392.11163 | BH199: 0.0480958128 | BL199: 458.5855237 | BM199: 0.0822
A200: 168 | B200: 439 | C200: 493 | BB200: 0
GT401: 888
B65536: 333

Sheet TextDF (hidden)
A1: Code | B1: D | C1: F
A2: 2b | B2: Betriebsrechnung berufliche Vorsorge 2016 | C2: Comptabilité de la prévoyance professionnelle 2016
A3: 3b | B3: Offenlegung gegenüber den versicherten Vorsorgeeinrichtungen | C3: Schéma de publication aux institutions de prévoyance assurées
A4: 5b | B4: ZUSAMMENZUG pro Lebensversicherer | C4: AGGREGATION par assureur-vie
A5: 6b | B5: mit Kollektivversicherung Berufliche Vorsorge | C5: exerçant l'assurance collective de la prévoyance professionnelle
A6: 8ea | B6: Aggregierung Berichtsjahr | C6: Aggrégation année d'exercice
A7: 8j | B7: Kennzahlen Markt | C7: Chiffres clé marché
A8: 8n | B8: Aggregierung Vorjahr | C8: Aggrégation exercice précédent
A9: 10b | B9: Angaben in 1000 Franken, gemäss statutarischem Rechnungsabschluss | C9: Données en 1000 francs, selon comptabilité statutaire
A10: 10ea | B10: Spalte 0 | C10: Colonne 0
A11: 10f | B11: Spalte 1 | C11: Colonne 1
A12: 10g | B12: Spalte 2 | C12: Colonne 2
A13: 10h | B13: Spalte 3 | C13: Colonne 3
A14: 10i | B14: Spalte 4 | C14: Colonne 4
A15: 10mo | B15: Spalte 0 | C15: Colonne 0
A16: 10n | B16: Spalte 1 | C16: Colonne 1
A17: 10o | B17: Spalte 2 | C17: Colonne 2
A18: 10p | B18: Spalte 3 | C18: Colonne 3
A19: 10q | B19: Spalte 4 | C19: Colonne 4
A20: 12b | B20: I. Erfolgsrechnung | C20: I. Compte de résultat
A21: 12i | B21: Aufgliederung Sparprämie | C21: Ventilation de la
A22: 12q | B22: Aufgl. Sparprämie | C22: Vent. prime d'ép.
A23: 12bf | B23: Die Generali Personenversicherungen AG betreibt seit 2001 kein aktives BVG-Sammelstiftungsgeschäft mehr und befindet sich für diesen Geschäftszweig im Run off. | C23: Generali Assurances Personnes n'exercerce plus d'affaires actives avec des fondations collectives dès 2001 et se trouve pour cette branche au run off.
A24: 13b | B24: Ertrag | C24: Produit
A25: 13e | B25: Spalte 4: Beiträge an Altersguthaben | C25: Col. 4: Contributions aux avoirs de vieillesse
A26: 13j | B26: Beiträge an Altersguthaben | C26: Contributions aux avoirs de vieillesse
A27: 14c | B27: Prämien | C27: Primes
A28: 14e | B28: Spalte 4: Individuell eingebrachte Altersguthaben a) | C28: Col. 4: Avoirs de vieillesse repris individuellement a)
A29: 14j | B29: Individuell eingebrachte Altersguthaben | C29: Avoirs de vieillesse repris individuellement
A30: 15d | B30: Sparprämien | C30: Primes d'épargne
A31: 15e | B31: Spalte 4: Altersguthaben aus Vertragsübernahmen | C31: Col. 4: Avoirs de vieillesse apportés par contrats repris
A32: 15j | B32: Altersguthaben aus Vertragsübernahmen | C32: Avoirs de vieillesse apportés par contrats repris
A33: 16d | B33: Risikoprämien | C33: Primes de risque
A34: 16e | B34: Spalte 4: Einlagen für übernom. Alters- und Hinterbliebenenrenten | C34: Col. 4: Primes uniques pour rentes de vieill. reprises
A35: 16j | B35: Einlagen für übernom. Alters- und Hinterbl.renten | C35: Primes uniques pour rentes de vieill. reprises
A36: 17d | B36: Kostenprämien / Prämientotal | C36: Primes de frais / Total des primes
A37: 17e | B37: Spalte 4: Einlagen für übernom. Invalidenrenten | C37: Col. 4: Primes uniques pour r. d'inv. et de surviv. reprises
A38: 17j | B38: Einlagen für übernommene Invalidenrenten | C38: Primes uniques pour r. d'inv. et de surviv. reprises
A39: 18c | B39: Kapitalanlageerträge | C39: Produits des placements de capitaux
A40: 18e | B40: Spalte 4: Einlagen für Freizügigkeitspolicen | C40: Col. 4: Primes uniques pour polices de libre passage
A41: 18j | B41: Einlagen für Freizügigkeitspolicen | C41: Primes uniques pour polices de libre passage
A42: 19d | B42: Direkte Kapitalanlageerträge | C42: Produit des placements de capitaux
A43: 19j | B43: Risikoprämien | C43: Primes de risque
A44: 20d | B44: Ergebnis aus Veräusserungen | C44: Résultat sur réalisations
A45: 20j | B45: Kostenprämien | C45: Primes de frais
A46: 21d | B46: Währungsergebnis | C46: Résultat monétaire
A47: 22d | B47: Saldo aus Zu- und Abschreibungen | C47: Solde entre plus-values et amortissements
A48: 23d | B48: Zinsaufwand | C48: Charges d'intérêt
A49: 24d | B49: Kosten der Vermögensbewirtschaftung / Nettoerträge | C49: Charges pour la gestion de la fortune / Produit net
A50: 25c | B50: Übriger Ertrag (zusammengefasst) | C50: Autres produits (regroupés)
A51: 26c | B51: Rückversicherungsergebnis (Gewinn positiv dargestellt) | C51: Résultat de la réassurance (gain = +)
A52: 27c | B52: Gesamtertrag | C52: Produit total
A53: 27ac | B53: a) Individuell eingebracht: Freizügigkeitsleistungen bei Diensteintritten, Einkäufe, Einlagen aus extern geführtem Sparprozess bei Todesfällen u. ä. | C53: a) Apportés individuellement: prestations de libre passage lors d'entrée de service, achats, sommes résultant d'un processus d'épargne externe en cas décès etc
A54: 29b | B54: Aufwand | C54: Charges
A55: 30c | B55: Versicherungsleistungen brutto | C55: Prestations d'assurance brutes
A56: 30h | B56: Kapitalleistungen | C56: Prest. en capital
A57: 30i | B57: Rentenleistungen | C57: Prest. de rentes
A58: 31d | B58: Leistungen infolge Alter, Tod und Invalidität | C58: Prestations en cas de vieillesse, de décès ou d'invalidité
A59: 32d | B59: Freizügigkeitsleistungen | C59: Prestations de libre passage
A60: 33d | B60: Rückkaufswerte aus Vertragsauflösungen | C60: Valeurs de rachat résultant de résiliations de contrat
A61: 34d | B61: Leistungsbearbeitungsaufwendungen / Leistungstotal | C61: Frais occasionnés par le traitement des prest. / Total des prestations
A62: 35c | B62: Veränderung versicherungstechnische Rückstellungen brutto | C62: Variation des provisions techniques brutes
A63: 36d | B63: Altersguthaben | C63: Avoirs de vieillesse
A64: 37d | B64: Deckungskapital für laufende Alters- und Hinterbliebenenrenten | C64: Provision math. des rentes de vieillesse et de survivants en cours
A65: 38d | B65: Deckungskapital für laufende Invalidenrenten | C65: Provision mathématique des rentes d'invalidité en cours
A66: 39d | B66: Deckungskapital Freizügigkeitspolicen | C66: Provision mathématique des polices de libre passage
A67: 40d | B67: Rückstellung für eingetretene noch nicht erledigte Versicherungsfälle | C67: Provision pour sinistres survenus mais non encore liquidés
A68: 41d | B68: Übrige techn. Rückstellungen / Zwischentotal | C68: Autres provisions techniques / Total intermédiaire
A69: 42c | B69: Abschluss- und Verwaltungskosten brutto | C69: Frais d'acquisition et de gestion bruts
A70: 43c | B70: Übriger Aufwand (zusammengefasst) | C70: Autres charges (regroupées)
A71: 44c | B71: Dem Überschussfonds zugewiesene Überschussbeteiligung | C71: Participation aux excédents attribuée au fonds d'excédents
A72: 45c | B72: Betriebsergebnis | C72: Résultat de l'exercice
A73: 46c | B73: Gesamtaufwand | C73: Charges totales
A74: 48b | B74: II. Bilanz | C74: II. Bilan
A75: 49b | B75: Aktiven | C75: Actifs
A76: 50c | B76: Kapitalanlagen | C76: Placements de capitaux
A77: 51d | B77: Flüssige Mittel und Festgelder | C77: Liquidités et dépôts à terme
A78: 51h | B78: in %: | C78: en %:
A79: 52d | B79: Festverzinsliche Wertpapiere in Schweizer Franken | C79: Titres à taux d'intérêt fixe en francs suisses
A80: 52h | B80: in %: | C80: en %:
A81: 53d | B81: Festverzinsliche Wertpapiere in ausländischen Währungen | C81: Titres à taux d'intérêt fixe en monnaies étrangères
A82: 53h | B82: in %: | C82: en %:
A83: 54d | B83: Hypotheken und andere Nominalwertforderungen | C83: Hypothèques et autres créances nominales
A84: 54h | B84: in %: | C84: en %:
A85: 55d | B85: Schweizerische und ausländische Aktien | C85: Actions suisses et étrangères
A86: 55h | B86: in %: | C86: en %:
A87: 56d | B87: Anteile an Anlagefonds | C87: Parts de fonds de placement
A88: 56h | B88: in %: | C88: en %:
A89: 57d | B89: Private Equity und Hedge Funds | C89: Private Equity et Hedge Funds
A90: 57h | B90: in %: | C90: en %:
A91: 58d | B91: Guthaben aus derivativen Finanzinstrumenten | C91: Avoirs découlant d'instruments financiers dérivés
A92: 58h | B92: in %: | C92: en %:
A93: 59d | B93: Anlagen in Beteiligungen und verbundenen Unternehmen | C93: Placements dans des participations et des entreprises liées
A94: 59h | B94: in %: | C94: en %:
A95: 60d | B95: Immobilien | C95: Immeubles
A96: 60h | B96: in %: | C96: en %:
A97: 61d | B97: Sonstige Kapitalanlagen / Total | C97: Autres placements de capitaux / Total
A98: 61ac | B98: Übrige Aktiven | C98: Autres actifs
A99: 61bc | B99: Bilanzsumme | C99: Somme du bilan
A100: 63b | B100: Passiven | C100: Passifs
A101: 64c | B101: Versicherungstechnische Rückstellungen brutto | C101: Provisions techniques brutes
A102: 64h | B102: Obligatorium | C102: Obligatoire
A103: 64i | B103: Überobligatorium | C103: Surobligatoire
A104: 65d | B104: Altersguthaben / Aufgeteilt nach Obligatorium und Überobligatorium | C104: Avoirs de vieillesse / Ventilés en Obligatoire et Surobligatoire
A105: 65j | B105: Anteil Obligatorium: | C105: Part de l'obligatoire:
A106: 65ad | B106: Zusätzliche Rückstellung für zukünftige Rentenumwandlungen | C106: Provision complémentaire pour transformations en rente futures
A107: 65aj | B107: Anteil Obligatorium: | C107: Part de l'obligatoire:
A108: 66d | B108: Deckungskapital für laufende Alters- und Hinterbliebenenrenten | C108: Provisions math. des rentes de vieillesse et de survivants en cours
A109: 66j | B109: Anteil Obligatorium: | C109: Part de l'obligatoire:
A110: 67d | B110: Deckungskapital für laufende Invalidenrenten | C110: Provisions mathématiques des rentes d'invalidité en cours
A111: 67j | B111: Anteil Obligatorium: | C111: Part de l'obligatoire:
A112: 68d | B112: Deckungskapitalverstärkung der laufenden Renten | C112: Renforcement de la provision mathématique des rentes en cours
A113: 68j | B113: Anteil Obligatorium: | C113: Part de l'obligatoire:
A114: 69d | B114: Deckungskapital Freizügigkeitspolicen | C114: Provision mathématique des polices de libre passage
A115: 70d | B115: Rückstellung für eingetretene, noch nicht erledigte Versicherungsfälle | C115: Provision pour sinistres survenus mais non encore liquidés
A116: 71d | B116: Teuerungsfonds | C116: Fonds de renchérissement
A117: 72d | B117: Gutgeschriebene Überschussanteile | C117: Parts d'excédents créditées aux assurés
A118: 73d | B118: Übrige versicherungstechnische Rückstellungen / Total | C118: Autres provisions techniques / Total
A119: 73ac | B119: Überschussfonds | C119: Fonds d'excédents
A120: 73bc | B120: Übrige Verbindlichkeiten (einschliesslich solchen gegenüber Versicherungsnehmern) | C120: Autres dettes (y comprises celles envers les preneurs d'assurance)
A121: 73cc | B121: Übrige Passiven | C121: Autres passifs
A122: 73dc | B122: Bilanzsumme | C122: Somme du bilan
A123: 73dj | B123: Vollständige Bilanz erstmals in der Offenlegung 2015 | C123: Bilan complet pour la première fois dans la publication de 2015
A124: 75b | B124: III. Überschussfonds | C124: III. Fonds d'excédents
A125: 76d | B125: Stand Ende Vorjahr | C125: Etat à la fin de l'exercice précédent
A126: 77d | B126: Dem Überschussfonds aus der Betriebsrechnung zugewiesen | C126: Attribution du compte d'exploitation au fonds d'excédents
A127: 78d | B127: Valorisationskorrektur | C127: Gains ou pertes de changes sur les monnaies étrangères
A128: 79d | B128: Dem Überschussfonds zur Deckung eines Betriebsdefizits entnommen | C128: Prélevé du fonds d'exc. pour couvrir un déficit du compte d'exploit.
A129: 80d | B129: Den Vorsorgeeinrichtungen zugeteilt / Zwischentotal | C129: Distribué aux institutions de prévoyance / Total intermédiaire
A130: 81d | B130: Stand am Ende des Rechnungsjahrs | C130: Etat à la fin de l'exercice en cours
A131: 81j | B131: Höhe im Verhältnis zum Bruttoergebnis: | C131: Importance en proportion du résultat brut:
A132: 83b | B132: IV. Teuerungsfonds | C132: IV. Fonds de renchérissement
A133: 84d | B133: Stand Ende Vorjahr | C133: Etat à la fin de l'exercice précédent
A134: 85d | B134: Vereinnahmte Teuerungsprämien brutto | C134: Primes de renchérissement encaissées brutes
A135: 86d | B135: Tarifzins / Zwischentotal | C135: Intérêt tarifaire / Total intermédiaire
A136: 87d | B136: Aufwand für teuerungsbedingte Erhöhungen der Risikorenten | C136: Charges pour augmentations liées au rench. des rentes de risque
A137: 88d | B137: Entnahme für Kostenaufwand / Zwischentotal | C137: Prélèvement pour autres charges administratives / Total intermédiaire
A138: 89d | B138: Stand am Ende des Rechnungsjahrs | C138: Etat à la fin de l'exercice en cours
A139: 89j | B139: Höhe im Verhältnis zum RisikorentenDK: | C139: Imp. en prop. de la PM des rentes de risque:
A140: 91b | B140: V. Weitere Kennzahlen | C140: V. Autres chiffres indicatifs
A141: 92d | B141: Kapitalanlageertrag brutto / Kapitalanlageertrag netto | C141: Produit des placements de capitaux brut / net
A142: 94d | B142: Kapitalanlagebestand | C142: Placements de capitaux
A143: 94g | B143: Buchwert | C143: Valeur comptable
A144: 94h | B144: Marktwert | C144: Valeur de marché
A145: 95d | B145: Kapitalanlagebestand zu Beginn des Rechnungsjahrs | C145: Placements de capitaux au début de l'exercice
A146: 96d | B146: Kapitalanlagebestand am Ende des Rechnungsjahrs a) | C146: Placements de capitaux à la fin de l'exercice a)
A147: 97d | B147: a) Total Kapitalanlagen minus Verpflichtungen aus derivativen Finanzinstrumenten | C147: a) Total des placements de capitaux moins engagements découlant d'instruments financiers dérivés
A148: 98d | B148: Bewertungsreserven | C148: Réserves d'évaluation
A149: 99d | B149: Bewertungsreserven zu Beginn des Rechnungsjahrs | C149: Réserves d'évaluation au début de l'exercice
A150: 100d | B150: Bewertungsreserven am Ende des Rechnungsjahrs | C150: Réserves d'évaluation à la fin de l'exercice
A151: 101d | B151: Veränderung der Bewertungsreserven | C151: Variation des réserves d'évaluation
A152: 103d | B152: Rendite auf Buchwerten brutto / netto | C152: Rendement sur valeurs comptables brut / net
A153: 104d | B153: Performance auf Marktwerten brutto / netto | C153: Rendement sur valeurs de marché brut / net
A154: 105g | B154: Berichtsjahr | C154: Année d'exercice
A155: 105h | B155: Vorjahr | C155: Exercice précédent
A156: 105ad | B156: Technischer Zinssatz für die Bewertung der Rentenverpflichtungen, Berichtsjahr / Vorjahr | C156: Intérêt technique pour l'évaluation des engagements de rente, exercice en cours / précédent
A157: 105bd | B157: Leistungen infolge Alter, Tod und Invalidität (gemäss Erfolgsrechnung) | C157: Prestations en cas de vieillesse, de décès ou d'invalidité (selon compte de résultat)
A158: 105cd | B158: Aufgliederung nach Alter / Tod / Invalidität in Prozent | C158: Ventilation selon vieillesse / décès / invalidité en pour-cent
A159: 106d | B159: Kosten der Vermögensverwaltung ohne Immobilienunterhalt / in % der Kapitalanlagen zu Marktwerten | C159: Frais de gestion de la fortune sans frais d'entretien des immeubles / en % des placem. à la val. de marché
A160: 106ad | B160: Kosten Unterhalt und Instandhaltung der Immobilien / in % der Kapitalanlagen zu Marktwerten | C160: Frais d'entretien et de maintien des immeubles / en % des placements à la valeur de marché
A161: 106bd | B161: Kosten der Vermögensverwaltung mit Immobilienunterhalt / in % der Kapitalanlagen zu Marktwerten | C161: Frais de gestion de la fortune avec frais d'entretien des immeubles / en % des placem. à la val. de marché
A162: 106cd | B162: Die Kosten für Unterhalt und Instandhaltung der Immobilien werden in der Erfolgsrechnung direkt mit dem Ertrag aus Immobilien verrechnet (Nettodarstellung). | C162: Dans le compte de résultat, les frais d'entretien et de maintien des immeubles sont directement déduits du produit des immeubles (présentation nette).
A163: 107d | B163: Anteil der Kollektivanlagen / Anteil der nicht kostentransparenten Kapitalanlagen | C163: Part des placements collectifs / Part des placements non-transparents
A164: 107ad | B164: Gemessen am Marktwert des Kapitalanlagebestands unter Ziff. 2 | C164: Mesurée sur la base de la valeur de marché des placements de capitaux selon ch. 2
A165: 107ed | B165: Aufgliederung der Vermögensverwaltungskosten | C165: Décomposition des charges de gestion patrimoniale
A166: 107fea | B166: Marktwert | C166: Valeur de marché
A167: 107ef | B167: Verursachte Kosten | C167: Frais occasionnés
A168: 107ej | B168: Erstmals in der Offenlegung für 2015 | C168: Pour la première fois dans la publication de 2015
A169: 107ff | B169: TER-Kosten | C169: Frais TER
A170: 107fg | B170: TTC-Kosten | C170: Frais TTC
A171: 107fh | B171: SC-Kosten | C171: Frais SC
A172: 107fi | B172: Total | C172: Total
A173: 107gd | B173: Direkte Kapitalanlagen | C173: Placements de capitaux directs
A174: 107hd | B174: Einstufige kollektive Kapitalanlagen | C174: Placements collectifs à un niveau
A175: 107id | B175: Mehrstufige kollektive Kapitalanlagen | C175: Placements collectifs à plusieurs niveaux
A176: 107jd | B176: Kostenintransparente Kapitalanlagen | C176: Placements collectifs non-transparents
A177: 107kd | B177: Total Marktwert / Total vor Aktivierung | C177: Total valeur de marché / Total avant activation
A178: 107ld | B178: Aktivierte Kosten | C178: Charges activées
A179: 107md | B179: Total erfolgswirksam ausgewiesen | C179: Total avec effet sur le résultat
A180: 107nf | B180: TER-Kosten: Kosten für Verwaltung und Bewirtschaftung (intern und extern) | C180: Frais TER: Frais liées à la gestion des placements (internes et externes)
A181: 107of | B181: TTC-Kosten: Transaktionskosten | C181: Frais TTC: Frais de transaction
A182: 107pf | B182: SC-Kosten: Kosten, die nicht einzelnen Kapitalanlagen zugeordnet werden | C182: Frais SC: Frais qui ne sont pas assignés à un placement donné
A183: 108d | B183: Verwendete Parameter im Überobligatorium | C183: Paramètres utilisés dans la partie sur-obligatoire
A184: 108f | B184: Aggregierte Daten nach Altersguthaben gewichtet | C184: Données aggrégées pondérées selon les avoirs de vieillesse
A185: 109d | B185: Zinssatz für die Verzinsung der Altersguthaben | C185: Taux d'intérêt valable pour la rémunération des avoirs de vieillesse
A186: 110d | B186: Rentenumwandlungssatz für Männer im Schlussalter 65 | C186: Taux de conversion en rente pour hommes à l'âge de retraite 65
A187: 111d | B187: Rentenumwandlungssatz für Frauen im Schlussalter 64 | C187: Taux de conversion en rente pour femmes à l'âge de retraite 64
A188: 113d | B188: Anzahl Versicherte Ende Rechnungsjahr | C188: Nombre d'assurés à la fin de l'exercice en cours
A189: 114d | B189: Anzahl aktiv Versicherte | C189: Nombre d'assurés actifs
A190: 115d | B190: Anzahl Rentenbezüger | C190: Nombre de bénéficiaires de rentes
A191: 116d | B191: Anzahl Freizügigkeitspolicen | C191: Polices de libre passage
A192: 117d | B192: Anzahl Versicherte insgesamt | C192: Nombre d'assurés total
A193: 119d | B193: Aufgliederung der Kostenprämien nach Kostenträgern | C193: Ventilation des primes de frais selon répondants de frais
A194: 120d | B194: Kostenprämien aktive Versicherte, absolut / pro Kopf in CHF | C194: Primes de frais des assurés actifs, valeur absolue / par personne en CHF
A195: 121d | B195: Kostenprämien Freizügigkeitspolicen, absolut / pro Kopf in CHF | C195: Primes de frais des polices de libre passage, val. abs. / par pers. en CHF
A196: 122d | B196: Übrige Kostenprämien / Kostenprämien total | C196: Autres primes de frais / Total des primes de frais
A197: 124d | B197: Aufgliederung des Betriebsaufwands nach Kostenstellen | C197: Ventilations des charges d'exploitation selon sections de frais
A198: 124h | B198: An Broker und Makler | C198: Aux courtiers et agents
A199: 124i | B199: An eigenen Aussendienst | C199: Au propre service extérieur
A200: 125d | B200: Abschlussaufwendungen, davon: Provisionen an Broker, Makler, Aussendienst | C200: Frais d'acquisition, dont: commissions aux courtiers, agents, service ext.
... 67 more rows
